Workbook

Sheet COTIZADOR
AN1: SI
T2: COBERTURA POTENCIADA | U2: 1 | AN2: NO
T3: COBERTURA PARA ASCENDIENTES | U3: 2 | Y3: 2024-01-01 | Z3: =+Y3+14 -> 2024-01-15 | AA3: 1 | AD3: 2024-01-01 | AE3: 20
Y4: =+Z3+1 -> 2024-01-16 | Z4: =+Y4+15 -> 2024-01-31 | AA4: =+AA3+1 -> 2 | AD4: =+AD3+1 -> 2024-01-02 | AE4: 20
T5: H | Y5: =+Z4+1 -> 2024-02-01 | Z5: =+Y5+14 -> 2024-02-15 | AA5: =+AA4+1 -> 3 | AD5: =+AD4+1 -> 2024-01-03 | AE5: 20
T6: M | Y6: 2024-02-16 | Z6: =+Y6+13 -> 2024-02-29 | AA6: 4 | AD6: 2024-01-04 | AE6: 20
Y7: 2024-03-01 | Z7: =+Y7+14 -> 2024-03-15 | AA7: 5 | AD7: 2024-01-05 | AE7: 20
B8: Tipo de Cotización | E8: =IFERROR(+VLOOKUP(D8,T2:U3,2,0),0) -> 0 | T8: 0 | Y8: 2024-03-16 | Z8: =+Y8+15 -> 2024-03-31 | AA8: 6 | AD8: 2024-01-06 | AE8: 20
T9: 1 | Y9: 2024-04-01 | Z9: =+Y9+14 -> 2024-04-15 | AA9: 7 | AD9: 2024-01-07 | AE9: 20
E10: POR FAVOR INGRESE LOS SIGUIENTES DATOS DEL ASEGURADO TITULAR | T10: 2 | Y10: 2024-04-16 | Z10: =+Y10+14 -> 2024-04-30 | AA10: 8 | AD10: 2024-01-08 | AE10: 20
T11: 3 | Y11: 2024-05-01 | Z11: =+Y11+14 -> 2024-05-15 | AA11: 9 | AD11: 2024-01-09 | AE11: 20
B12: Puesto | E12: =+IFERROR(VLOOKUP(D12,NIVEL_DE_PUESTO!$B$3:$D$118,3,0),"") ->  | F12: UMAM | T12: 4 | Y12: 2024-05-16 | Z12: 2024-05-31 | AA12: 10 | AD12: 2024-01-10 | AE12: 20
T13: 5 | Y13: 2024-06-01 | Z13: =+Y13+14 -> 2024-06-15 | AA13: 11 | AD13: 2024-01-11 | AE13: 20
T14: 6 | Y14: 2024-06-16 | Z14: =+Y14+14 -> 2024-06-30 | AA14: 12 | AD14: 2024-01-12 | AE14: 20
B15: Fecha de nacimiento | D15: 1987-09-06 | T15: 2024-01-01 | Y15: 2024-07-01 | Z15: =+Y15+14 -> 2024-07-15 | AA15: 13 | AD15: 2024-01-13 | AE15: 20
Y16: 2024-07-16 | Z16: 2024-07-31 | AA16: 14 | AD16: 2024-01-14 | AE16: 20
Y17: 2024-08-01 | Z17: =+Y17+14 -> 2024-08-15 | AA17: 15 | AD17: 2024-01-15 | AE17: 20
B18: Edad | D18: =+IF(D15="","",ROUNDDOWN((TODAY()-D15)/365,0)) -> 36 | Y18: 2024-08-16 | Z18: 2024-08-31 | AA18: 16 | AD18: 2024-01-16 | AE18: 19
Y19: 2024-09-01 | Z19: =+Y19+14 -> 2024-09-15 | AA19: 17 | AD19: 2024-01-17 | AE19: 19
B20: Sexo | C20: M | D20: H | Y20: 2024-09-16 | Z20: =+Y20+14 -> 2024-09-30 | AA20: 18 | AD20: 2024-01-18 | AE20: 19
Y21: 2024-10-01 | Z21: =+Y21+14 -> 2024-10-15 | AA21: 19 | AD21: 2024-01-19 | AE21: 19
Y22: 2024-10-16 | Z22: 2024-10-31 | AA22: 20 | AD22: 2024-01-20 | AE22: 19
B23: INICIO DE VIGENCIA | E23: al | F23: 2024-12-31 | AD23: 2024-01-21 | AE23: 19
AD24: 2024-01-22 | AE24: 19
B25: DÍAS VIGENTE | D25: =+IF(ISBLANK(D23),"",IF(OR(D23>F23,D23<T15),"Error en la fecha de inicio de vigencia",(F23-D23+1))) ->  | AD25: 2024-01-23 | AE25: 19
B26: Nota 1: La fechas tiene que ser en formato dd/mm/aaaa (ejemplo 15/12/1987) | AD26: 2024-01-24 | AE26: 19
B27: Nota 2: La fecha de inicio de vigencia no puede ser mayor al 31 de octubre del 2024, de lo contrario no nos dará el monto por descuento quincenal | AD27: 2024-01-25 | AE27: 19
AD28: 2024-01-26 | AE28: 19
AD29: 2024-01-27 | AE29: 19
AD30: 2024-01-28 | AE30: 19
AD31: 2024-01-29 | AE31: 19
AD32: 2024-01-30 | AE32: 19
AD33: 2024-01-31 | AE33: 19
AD34: 2024-02-01 | AE34: 18
AD35: 2024-02-02 | AE35: 18
AD36: 2024-02-03 | AE36: 18
AD37: 2024-02-04 | AE37: 18
AD38: 2024-02-05 | AE38: 18
AD39: 2024-02-06 | AE39: 18
AD40: 2024-02-07 | AE40: 18
AD41: 2024-02-08 | AE41: 18
AD42: 2024-02-09 | AE42: 18
AD43: 2024-02-10 | AE43: 18
AD44: 2024-02-11 | AE44: 18
AD45: 2024-02-12 | AE45: 18
AD46: 2024-02-13 | AE46: 18
AD47: 2024-02-14 | AE47: 18
AD48: 2024-02-15 | AE48: 18
AD49: 2024-02-16 | AE49: 17
AD50: 2024-02-17 | AE50: 17
AD51: 2024-02-18 | AE51: 17
AD52: 2024-02-19 | AE52: 17
AD53: 2024-02-20 | AE53: 17
AD54: 2024-02-21 | AE54: 17
AD55: 2024-02-22 | AE55: 17
AD56: 2024-02-23 | AE56: 17
AD57: 2024-02-24 | AE57: 17
AD58: 2024-02-25 | AE58: 17
AD59: 2024-02-26 | AE59: 17
AD60: 2024-02-27 | AE60: 17
AD61: 2024-02-28 | AE61: 17
AD62: 2024-02-29 | AE62: 17
AD63: 2024-03-01 | AE63: 16
AD64: 2024-03-02 | AE64: 16
AD65: 2024-03-03 | AE65: 16
AD66: 2024-03-04 | AE66: 16
AD67: 2024-03-05 | AE67: 16
AD68: 2024-03-06 | AE68: 16
AD69: =+AD68+1 -> 2024-03-07 | AE69: 16
AD70: 2024-03-08 | AE70: 16
AD71: 2024-03-09 | AE71: 16
AD72: 2024-03-10 | AE72: 16
AD73: 2024-03-11 | AE73: 16
AD74: 2024-03-12 | AE74: 16
AD75: 2024-03-13 | AE75: 16
AD76: 2024-03-14 | AE76: 16
AD77: 2024-03-15 | AE77: 16
AD78: 2024-03-16 | AE78: 15
AD79: 2024-03-17 | AE79: 15
AD80: 2024-03-18 | AE80: 15
AD81: 2024-03-19 | AE81: 15
AD82: 2024-03-20 | AE82: 15
AD83: 2024-03-21 | AE83: 15
AD84: 2024-03-22 | AE84: 15
AD85: 2024-03-23 | AE85: 15
AD86: 2024-03-24 | AE86: 15
AD87: 2024-03-25 | AE87: 15
AD88: 2024-03-26 | AE88: 15
AD89: 2024-03-27 | AE89: 15
AD90: 2024-03-28 | AE90: 15
AD91: 2024-03-29 | AE91: 15
AD92: 2024-03-30 | AE92: 15
AD93: 2024-03-31 | AE93: 15
AD94: 2024-04-01 | AE94: 14
AD95: 2024-04-02 | AE95: 14
AD96: 2024-04-03 | AE96: 14
AD97: 2024-04-04 | AE97: 14
AD98: 2024-04-05 | AE98: 14
AD99: 2024-04-06 | AE99: 14
AD100: 2024-04-07 | AE100: 14
AD101: 2024-04-08 | AE101: 14
AD102: 2024-04-09 | AE102: 14
AD103: 2024-04-10 | AE103: 14
AD104: 2024-04-11 | AE104: 14
AD105: 2024-04-12 | AE105: 14
AD106: 2024-04-13 | AE106: 14
AD107: 2024-04-14 | AE107: 14
AD108: 2024-04-15 | AE108: 14
AD109: 2024-04-16 | AE109: 13
AD110: 2024-04-17 | AE110: 13
AD111: 2024-04-18 | AE111: 13
AD112: 2024-04-19 | AE112: 13
AD113: 2024-04-20 | AE113: 13
AD114: 2024-04-21 | AE114: 13
AD115: 2024-04-22 | AE115: 13
AD116: 2024-04-23 | AE116: 13
AD117: 2024-04-24 | AE117: 13
AD118: 2024-04-25 | AE118: 13
AD119: 2024-04-26 | AE119: 13
AD120: 2024-04-27 | AE120: 13
AD121: 2024-04-28 | AE121: 13
AD122: 2024-04-29 | AE122: 13
AD123: 2024-04-30 | AE123: 13
AD124: 2024-05-01 | AE124: 12
AD125: 2024-05-02 | AE125: 12
AD126: 2024-05-03 | AE126: 12
AD127: 2024-05-04 | AE127: 12
AD128: 2024-05-05 | AE128: 12
AD129: 2024-05-06 | AE129: 12
AD130: 2024-05-07 | AE130: 12
AD131: 2024-05-08 | AE131: 12
AD132: 2024-05-09 | AE132: 12
AD133: =+AD132+1 -> 2024-05-10 | AE133: 12
AD134: 2024-05-11 | AE134: 12
AD135: 2024-05-12 | AE135: 12
AD136: 2024-05-13 | AE136: 12
AD137: 2024-05-14 | AE137: 12
AD138: 2024-05-15 | AE138: 12
AD139: 2024-05-16 | AE139: 11
AD140: 2024-05-17 | AE140: 11
AD141: 2024-05-18 | AE141: 11
AD142: 2024-05-19 | AE142: 11
AD143: 2024-05-20 | AE143: 11
AD144: 2024-05-21 | AE144: 11
AD145: 2024-05-22 | AE145: 11
AD146: 2024-05-23 | AE146: 11
AD147: 2024-05-24 | AE147: 11
AD148: 2024-05-25 | AE148: 11
AD149: 2024-05-26 | AE149: 11
AD150: 2024-05-27 | AE150: 11
AD151: 2024-05-28 | AE151: 11
AD152: 2024-05-29 | AE152: 11
AD153: 2024-05-30 | AE153: 11
AD154: 2024-05-31 | AE154: 11
AD155: 2024-06-01 | AE155: 10
AD156: 2024-06-02 | AE156: 10
AD157: 2024-06-03 | AE157: 10
AD158: 2024-06-04 | AE158: 10
AD159: 2024-06-05 | AE159: 10
AD160: 2024-06-06 | AE160: 10
AD161: 2024-06-07 | AE161: 10
AD162: 2024-06-08 | AE162: 10
AD163: 2024-06-09 | AE163: 10
AD164: 2024-06-10 | AE164: 10
AD165: 2024-06-11 | AE165: 10
AD166: 2024-06-12 | AE166: 10
AD167: 2024-06-13 | AE167: 10
AD168: 2024-06-14 | AE168: 10
AD169: 2024-06-15 | AE169: 10
AD170: 2024-06-16 | AE170: 9
AD171: 2024-06-17 | AE171: 9
AD172: 2024-06-18 | AE172: 9
AD173: 2024-06-19 | AE173: 9
AD174: 2024-06-20 | AE174: 9
AD175: 2024-06-21 | AE175: 9
AD176: 2024-06-22 | AE176: 9
AD177: 2024-06-23 | AE177: 9
AD178: 2024-06-24 | AE178: 9
AD179: 2024-06-25 | AE179: 9
AD180: 2024-06-26 | AE180: 9
AD181: 2024-06-27 | AE181: 9
AD182: 2024-06-28 | AE182: 9
AD183: 2024-06-29 | AE183: 9
AD184: 2024-06-30 | AE184: 9
AD185: 2024-07-01 | AE185: 8
AD186: 2024-07-02 | AE186: 8
AD187: 2024-07-03 | AE187: 8
AD188: 2024-07-04 | AE188: 8
AD189: 2024-07-05 | AE189: 8
AD190: 2024-07-06 | AE190: 8
AD191: 2024-07-07 | AE191: 8
AD192: 2024-07-08 | AE192: 8
AD193: 2024-07-09 | AE193: 8
AD194: 2024-07-10 | AE194: 8
AD195: 2024-07-11 | AE195: 8
AD196: 2024-07-12 | AE196: 8
AD197: =+AD196+1 -> 2024-07-13 | AE197: 8
AD198: 2024-07-14 | AE198: 8
AD199: 2024-07-15 | AE199: 8
AD200: 2024-07-16 | AE200: 7
... 107 more rows

Sheet ADICIONALES_P (hidden)
T2: COBERTURA POTENCIADA
T3: COBERTURA PARA ASCENDIENTES
T5: H
T6: M
D8: CONYUGE (Menores de 85 años)
B10: ¿Desea asegurarlo?
D15: HIJOS Número de hijos a cotizar (menores de 25 años)
B17: ¿Desea asegurarlos?
B19: Número de Hijos

Sheet DEPENDIENTES (hidden)
T2: COBERTURA POTENCIADA
T3: COBERTURA PARA ASCENDIENTES
T5: H
T6: M
D8: ASCENDIENTES Número de Ascendientes a cotizar
B10: Número de Ascendientes
D12: ASCENDIENTE 1
B14: Fecha de nacimiento
B16: Edad | D16: =+IF(D14="","",ROUNDDOWN((TODAY()-D14)/365,0)) -> 
D18: H
D21: ASCENDIENTE 2
B23: Fecha de nacimiento
B25: Edad | D25: =+IF(D23="","",ROUNDDOWN((TODAY()-D23)/365,0)) -> 
D27: H

Sheet COTIZACION (hidden)
M1: =+TODAY() -> 2023-12-13 | N1: =+M1+15 -> 2023-12-28
T2: COBERTURA POTENCIADA
T3: COBERTURA PARA ASCENDIENTES
T5: H
T6: M
D8: COBERTURA POTENCIADA
P9: =+"CDMX a "& TEXT(TODAY(),"d/mmmm/aaaa") -> CDMX a 13/diciembre/2023
E12: Fecha de cálculo | H12: =+TODAY() -> 2023-12-13
E14: Vigencia de la cotización | H14: =+CONCATENATE(TEXT(TODAY(),"d/mmmm/aaaa")," al ",TEXT(TODAY()+15,"d/mmmm/aaaa")) -> 13/diciembre/2023 al 28/diciembre/2023
E15: Vigencia de la póliza | H15: =+CONCATENATE(TEXT(COTIZADOR!D23,"d/mmmm/aaaa")," al ",TEXT(COTIZADOR!F23,"d/mmmm/aaaa")) -> 0/enero/1900 al 31/diciembre/2024
E16: Dias de Vigentes | H16: =+COTIZADOR!D25 -> 
E18: ID TARIFA BASICA | F18: ASEGURADO | G18: SUMA ASEGURADA BÁSICA | H18: PRIMA TOTAL ANUAL
E19: =+CONCATENATE(COTIZADOR!D18,COTIZADOR!D20,COTIZADOR!E12) -> 36H | F19: TITULAR | G19: =+COTIZADOR!E12 ->  | H19: =+IFERROR(VLOOKUP(E19,TARIFAS!$A$3:$F$811,6,0),"") ->  | K19: NÚMERO DE QUINCENAS: | L19: =+IFERROR(B39,"") -> 
C21: SUMA ASEGURADA POTENCIADA | D21: 94 UMAM | E21: 111 UMAM | F21: 148 UMAM | G21: 185 UMAM | H21: 222 UMAM | I21: 259 UMAM | J21: 295 UMAM | K21: 333 UMAM | L21: 444 UMAM | M21: 592 UMAM | N21: 740 UMAM | O21: 850 UMAM | P21: 1000 UMAM | Q21: 3000 UMAM | R21: 5000 UMAM | S21: 7000 UMAM
B22: =+CONCATENATE("POTEN",CONCATENATE(COTIZADOR!D18,COTIZADOR!D20,COTIZADOR!E12)) -> POTEN36H | C22: PRIMA TOTAL ANUAL DEL TITULAR | D22: =IFERROR((VLOOKUP($B$22,TARIFAS!$H$3:$X$811,2,0)*366),"") ->  | E22: =+IFERROR((VLOOKUP($B$22,TARIFAS!$H$3:$X$811,3,0)*366),"") ->  | F22: =+IFERROR((VLOOKUP($B$22,TARIFAS!$H$3:$X$811,4,0)*366),"") ->  | G22: =+IFERROR((VLOOKUP($B$22,TARIFAS!$H$3:$X$811,5,0)*366),"") ->  | H22: =+IFERROR((VLOOKUP($B$22,TARIFAS!$H$3:$X$811,6,0)*366),"") ->  | I22: =+IFERROR((VLOOKUP($B$22,TARIFAS!$H$3:$X$811,7,0)*366),"") ->  | J22: =+IFERROR((VLOOKUP($B$22,TARIFAS!$H$3:$X$811,8,0)*366),"") ->  | K22: =+IFERROR((VLOOKUP($B$22,TARIFAS!$H$3:$X$811,9,0)*366),"") ->  | L22: =+IFERROR((VLOOKUP($B$22,TARIFAS!$H$3:$X$811,10,0)*366),"") ->  | M22: =+IFERROR((VLOOKUP($B$22,TARIFAS!$H$3:$X$811,11,0)*366),"") ->  | N22: =+IFERROR((VLOOKUP($B$22,TARIFAS!$H$3:$X$811,12,0)*366),"") ->  | O22: =+IFERROR((VLOOKUP($B$22,TARIFAS!$H$3:$X$811,13,0)*366),"") ->  | P22: =+IFERROR((VLOOKUP($B$22,TARIFAS!$H$3:$X$811,14,0)*366),"") ->  | Q22: =+IFERROR((VLOOKUP($B$22,TARIFAS!$H$3:$X$811,15,0)*366),"") ->  | R22: =+IFERROR((VLOOKUP($B$22,TARIFAS!$H$3:$X$811,16,0)*366),"") ->  | S22: =+IFERROR((VLOOKUP($B$22,TARIFAS!$H$3:$X$811,17,0)*366),"") -> 
K25: OPCIONES DE COBERTURA
C26: PRIMAS A PAGAR POR PERSONA POR EL PERIODO
C28: SUMA ASEGURADA POTENCIADA | D28: 94 UMAM | E28: 111 UMAM | F28: 148 UMAM | G28: 185 UMAM | H28: 222 UMAM | I28: 259 UMAM | J28: 295 UMAM | K28: 333 UMAM | L28: 444 UMAM | M28: 592 UMAM | N28: 740 UMAM | O28: 850 UMAM | P28: 1000 UMAM | Q28: 3000 UMAM | R28: 5000 UMAM | S28: 7000 UMAM
C29: PRIMA A PAGAR TITULAR | D29: =+IFERROR((D$22/366)*COTIZADOR!$D$25,"") ->  | E29: =+IFERROR((E$22/366)*COTIZADOR!$D$25,"") ->  | F29: =+IFERROR((F$22/366)*COTIZADOR!$D$25,"") ->  | G29: =+IFERROR((G$22/366)*COTIZADOR!$D$25,"") ->  | H29: =+IFERROR((H$22/366)*COTIZADOR!$D$25,"") ->  | I29: =+IFERROR((I$22/366)*COTIZADOR!$D$25,"") ->  | J29: =+IFERROR((J$22/366)*COTIZADOR!$D$25,"") ->  | K29: =+IFERROR((K$22/366)*COTIZADOR!$D$25,"") ->  | L29: =+IFERROR((L$22/366)*COTIZADOR!$D$25,"") ->  | M29: =+IFERROR((M$22/366)*COTIZADOR!$D$25,"") ->  | N29: =+IFERROR((N$22/366)*COTIZADOR!$D$25,"") ->  | O29: =+IFERROR((O$22/366)*COTIZADOR!$D$25,"") ->  | P29: =+IFERROR((P$22/366)*COTIZADOR!$D$25,"") ->  | Q29: =+IFERROR((Q$22/366)*COTIZADOR!$D$25,"") ->  | R29: =+IFERROR((R$22/366)*COTIZADOR!$D$25,"") ->  | S29: =+IFERROR((S$22/366)*COTIZADOR!$D$25,"") -> 
C30: PRIMA A PAGAR CONYUGE | D30: =+IFERROR(IF(OR(ADICIONALES_P!$D$10="NO",ISBLANK(ADICIONALES_P!$D$10)),"",(D$22/366)*COTIZADOR!$D$25),"") ->  | E30: =+IFERROR(IF(OR(ADICIONALES_P!$D$10="NO",ISBLANK(ADICIONALES_P!$D$10)),"",(E$22/366)*COTIZADOR!$D$25),"") ->  | F30: =+IFERROR(IF(OR(ADICIONALES_P!$D$10="NO",ISBLANK(ADICIONALES_P!$D$10)),"",(F$22/366)*COTIZADOR!$D$25),"") ->  | G30: =+IFERROR(IF(OR(ADICIONALES_P!$D$10="NO",ISBLANK(ADICIONALES_P!$D$10)),"",(G$22/366)*COTIZADOR!$D$25),"") ->  | H30: =+IFERROR(IF(OR(ADICIONALES_P!$D$10="NO",ISBLANK(ADICIONALES_P!$D$10)),"",(H$22/366)*COTIZADOR!$D$25),"") ->  | I30: =+IFERROR(IF(OR(ADICIONALES_P!$D$10="NO",ISBLANK(ADICIONALES_P!$D$10)),"",(I$22/366)*COTIZADOR!$D$25),"") ->  | J30: =+IFERROR(IF(OR(ADICIONALES_P!$D$10="NO",ISBLANK(ADICIONALES_P!$D$10)),"",(J$22/366)*COTIZADOR!$D$25),"") ->  | K30: =+IFERROR(IF(OR(ADICIONALES_P!$D$10="NO",ISBLANK(ADICIONALES_P!$D$10)),"",(K$22/366)*COTIZADOR!$D$25),"") ->  | L30: =+IFERROR(IF(OR(ADICIONALES_P!$D$10="NO",ISBLANK(ADICIONALES_P!$D$10)),"",(L$22/366)*COTIZADOR!$D$25),"") ->  | M30: =+IFERROR(IF(OR(ADICIONALES_P!$D$10="NO",ISBLANK(ADICIONALES_P!$D$10)),"",(M$22/366)*COTIZADOR!$D$25),"") ->  | N30: =+IFERROR(IF(OR(ADICIONALES_P!$D$10="NO",ISBLANK(ADICIONALES_P!$D$10)),"",(N$22/366)*COTIZADOR!$D$25),"") ->  | O30: =+IFERROR(IF(OR(ADICIONALES_P!$D$10="NO",ISBLANK(ADICIONALES_P!$D$10)),"",(O$22/366)*COTIZADOR!$D$25),"") ->  | P30: =+IFERROR(IF(OR(ADICIONALES_P!$D$10="NO",ISBLANK(ADICIONALES_P!$D$10)),"",(P$22/366)*COTIZADOR!$D$25),"") ->  | Q30: =+IFERROR(IF(OR(ADICIONALES_P!$D$10="NO",ISBLANK(ADICIONALES_P!$D$10)),"",(Q$22/366)*COTIZADOR!$D$25),"") ->  | R30: =+IFERROR(IF(OR(ADICIONALES_P!$D$10="NO",ISBLANK(ADICIONALES_P!$D$10)),"",(R$22/366)*COTIZADOR!$D$25),"") ->  | S30: =+IFERROR(IF(OR(ADICIONALES_P!$D$10="NO",ISBLANK(ADICIONALES_P!$D$10)),"",(S$22/366)*COTIZADOR!$D$25),"") -> 
B31: 1 | C31: PRIMA A PAGAR HIJO(A) 1 | D31: =+IFERROR(IF(OR(ADICIONALES_P!$D$17="NO",ISBLANK(ADICIONALES_P!$D$17)),"",IF($B31<=ADICIONALES_P!$D$19,(D$22/366)*COTIZADOR!$D$25,"")),"") ->  | E31: =+IFERROR(IF(OR(ADICIONALES_P!$D$17="NO",ISBLANK(ADICIONALES_P!$D$17)),"",IF($B31<=ADICIONALES_P!$D$19,(E$22/366)*COTIZADOR!$D$25,"")),"") ->  | F31: =+IFERROR(IF(OR(ADICIONALES_P!$D$17="NO",ISBLANK(ADICIONALES_P!$D$17)),"",IF($B31<=ADICIONALES_P!$D$19,(F$22/366)*COTIZADOR!$D$25,"")),"") ->  | G31: =+IFERROR(IF(OR(ADICIONALES_P!$D$17="NO",ISBLANK(ADICIONALES_P!$D$17)),"",IF($B31<=ADICIONALES_P!$D$19,(G$22/366)*COTIZADOR!$D$25,"")),"") ->  | H31: =+IFERROR(IF(OR(ADICIONALES_P!$D$17="NO",ISBLANK(ADICIONALES_P!$D$17)),"",IF($B31<=ADICIONALES_P!$D$19,(H$22/366)*COTIZADOR!$D$25,"")),"") ->  | I31: =+IFERROR(IF(OR(ADICIONALES_P!$D$17="NO",ISBLANK(ADICIONALES_P!$D$17)),"",IF($B31<=ADICIONALES_P!$D$19,(I$22/366)*COTIZADOR!$D$25,"")),"") ->  | J31: =+IFERROR(IF(OR(ADICIONALES_P!$D$17="NO",ISBLANK(ADICIONALES_P!$D$17)),"",IF($B31<=ADICIONALES_P!$D$19,(J$22/366)*COTIZADOR!$D$25,"")),"") ->  | K31: =+IFERROR(IF(OR(ADICIONALES_P!$D$17="NO",ISBLANK(ADICIONALES_P!$D$17)),"",IF($B31<=ADICIONALES_P!$D$19,(K$22/366)*COTIZADOR!$D$25,"")),"") ->  | L31: =+IFERROR(IF(OR(ADICIONALES_P!$D$17="NO",ISBLANK(ADICIONALES_P!$D$17)),"",IF($B31<=ADICIONALES_P!$D$19,(L$22/366)*COTIZADOR!$D$25,"")),"") ->  | M31: =+IFERROR(IF(OR(ADICIONALES_P!$D$17="NO",ISBLANK(ADICIONALES_P!$D$17)),"",IF($B31<=ADICIONALES_P!$D$19,(M$22/366)*COTIZADOR!$D$25,"")),"") ->  | N31: =+IFERROR(IF(OR(ADICIONALES_P!$D$17="NO",ISBLANK(ADICIONALES_P!$D$17)),"",IF($B31<=ADICIONALES_P!$D$19,(N$22/366)*COTIZADOR!$D$25,"")),"") ->  | O31: =+IFERROR(IF(OR(ADICIONALES_P!$D$17="NO",ISBLANK(ADICIONALES_P!$D$17)),"",IF($B31<=ADICIONALES_P!$D$19,(O$22/366)*COTIZADOR!$D$25,"")),"") ->  | P31: =+IFERROR(IF(OR(ADICIONALES_P!$D$17="NO",ISBLANK(ADICIONALES_P!$D$17)),"",IF($B31<=ADICIONALES_P!$D$19,(P$22/366)*COTIZADOR!$D$25,"")),"") ->  | Q31: =+IFERROR(IF(OR(ADICIONALES_P!$D$17="NO",ISBLANK(ADICIONALES_P!$D$17)),"",IF($B31<=ADICIONALES_P!$D$19,(Q$22/366)*COTIZADOR!$D$25,"")),"") ->  | R31: =+IFERROR(IF(OR(ADICIONALES_P!$D$17="NO",ISBLANK(ADICIONALES_P!$D$17)),"",IF($B31<=ADICIONALES_P!$D$19,(R$22/366)*COTIZADOR!$D$25,"")),"") ->  | S31: =+IFERROR(IF(OR(ADICIONALES_P!$D$17="NO",ISBLANK(ADICIONALES_P!$D$17)),"",IF($B31<=ADICIONALES_P!$D$19,(S$22/366)*COTIZADOR!$D$25,"")),"") -> 
B32: 2 | C32: HIJO(A) 2 | D32: =IFERROR(IF(OR(ADICIONALES_P!$D$17="NO",ISBLANK(ADICIONALES_P!$D$17)),"",IF($B32<=ADICIONALES_P!$D$19,(D$22/366)*COTIZADOR!$D$25,"")),"") ->  | E32: =IFERROR(IF(OR(ADICIONALES_P!$D$17="NO",ISBLANK(ADICIONALES_P!$D$17)),"",IF($B32<=ADICIONALES_P!$D$19,(E$22/366)*COTIZADOR!$D$25,"")),"") ->  | F32: =IFERROR(IF(OR(ADICIONALES_P!$D$17="NO",ISBLANK(ADICIONALES_P!$D$17)),"",IF($B32<=ADICIONALES_P!$D$19,(F$22/366)*COTIZADOR!$D$25,"")),"") ->  | G32: =IFERROR(IF(OR(ADICIONALES_P!$D$17="NO",ISBLANK(ADICIONALES_P!$D$17)),"",IF($B32<=ADICIONALES_P!$D$19,(G$22/366)*COTIZADOR!$D$25,"")),"") ->  | H32: =IFERROR(IF(OR(ADICIONALES_P!$D$17="NO",ISBLANK(ADICIONALES_P!$D$17)),"",IF($B32<=ADICIONALES_P!$D$19,(H$22/366)*COTIZADOR!$D$25,"")),"") ->  | I32: =IFERROR(IF(OR(ADICIONALES_P!$D$17="NO",ISBLANK(ADICIONALES_P!$D$17)),"",IF($B32<=ADICIONALES_P!$D$19,(I$22/366)*COTIZADOR!$D$25,"")),"") ->  | J32: =IFERROR(IF(OR(ADICIONALES_P!$D$17="NO",ISBLANK(ADICIONALES_P!$D$17)),"",IF($B32<=ADICIONALES_P!$D$19,(J$22/366)*COTIZADOR!$D$25,"")),"") ->  | K32: =IFERROR(IF(OR(ADICIONALES_P!$D$17="NO",ISBLANK(ADICIONALES_P!$D$17)),"",IF($B32<=ADICIONALES_P!$D$19,(K$22/366)*COTIZADOR!$D$25,"")),"") ->  | L32: =IFERROR(IF(OR(ADICIONALES_P!$D$17="NO",ISBLANK(ADICIONALES_P!$D$17)),"",IF($B32<=ADICIONALES_P!$D$19,(L$22/366)*COTIZADOR!$D$25,"")),"") ->  | M32: =IFERROR(IF(OR(ADICIONALES_P!$D$17="NO",ISBLANK(ADICIONALES_P!$D$17)),"",IF($B32<=ADICIONALES_P!$D$19,(M$22/366)*COTIZADOR!$D$25,"")),"") ->  | N32: =IFERROR(IF(OR(ADICIONALES_P!$D$17="NO",ISBLANK(ADICIONALES_P!$D$17)),"",IF($B32<=ADICIONALES_P!$D$19,(N$22/366)*COTIZADOR!$D$25,"")),"") ->  | O32: =IFERROR(IF(OR(ADICIONALES_P!$D$17="NO",ISBLANK(ADICIONALES_P!$D$17)),"",IF($B32<=ADICIONALES_P!$D$19,(O$22/366)*COTIZADOR!$D$25,"")),"") ->  | P32: =IFERROR(IF(OR(ADICIONALES_P!$D$17="NO",ISBLANK(ADICIONALES_P!$D$17)),"",IF($B32<=ADICIONALES_P!$D$19,(P$22/366)*COTIZADOR!$D$25,"")),"") ->  | Q32: =IFERROR(IF(OR(ADICIONALES_P!$D$17="NO",ISBLANK(ADICIONALES_P!$D$17)),"",IF($B32<=ADICIONALES_P!$D$19,(Q$22/366)*COTIZADOR!$D$25,"")),"") ->  | R32: =IFERROR(IF(OR(ADICIONALES_P!$D$17="NO",ISBLANK(ADICIONALES_P!$D$17)),"",IF($B32<=ADICIONALES_P!$D$19,(R$22/366)*COTIZADOR!$D$25,"")),"") ->  | S32: =IFERROR(IF(OR(ADICIONALES_P!$D$17="NO",ISBLANK(ADICIONALES_P!$D$17)),"",IF($B32<=ADICIONALES_P!$D$19,(S$22/366)*COTIZADOR!$D$25,"")),"") -> 
B33: 3 | C33: HIJO(A) 3 | D33: =IFERROR(IF(OR(ADICIONALES_P!$D$17="NO",ISBLANK(ADICIONALES_P!$D$17)),"",IF($B33<=ADICIONALES_P!$D$19,(D$22/366)*COTIZADOR!$D$25,"")),"") ->  | E33: =IFERROR(IF(OR(ADICIONALES_P!$D$17="NO",ISBLANK(ADICIONALES_P!$D$17)),"",IF($B33<=ADICIONALES_P!$D$19,(E$22/366)*COTIZADOR!$D$25,"")),"") ->  | F33: =IFERROR(IF(OR(ADICIONALES_P!$D$17="NO",ISBLANK(ADICIONALES_P!$D$17)),"",IF($B33<=ADICIONALES_P!$D$19,(F$22/366)*COTIZADOR!$D$25,"")),"") ->  | G33: =IFERROR(IF(OR(ADICIONALES_P!$D$17="NO",ISBLANK(ADICIONALES_P!$D$17)),"",IF($B33<=ADICIONALES_P!$D$19,(G$22/366)*COTIZADOR!$D$25,"")),"") ->  | H33: =IFERROR(IF(OR(ADICIONALES_P!$D$17="NO",ISBLANK(ADICIONALES_P!$D$17)),"",IF($B33<=ADICIONALES_P!$D$19,(H$22/366)*COTIZADOR!$D$25,"")),"") ->  | I33: =IFERROR(IF(OR(ADICIONALES_P!$D$17="NO",ISBLANK(ADICIONALES_P!$D$17)),"",IF($B33<=ADICIONALES_P!$D$19,(I$22/366)*COTIZADOR!$D$25,"")),"") ->  | J33: =IFERROR(IF(OR(ADICIONALES_P!$D$17="NO",ISBLANK(ADICIONALES_P!$D$17)),"",IF($B33<=ADICIONALES_P!$D$19,(J$22/366)*COTIZADOR!$D$25,"")),"") ->  | K33: =IFERROR(IF(OR(ADICIONALES_P!$D$17="NO",ISBLANK(ADICIONALES_P!$D$17)),"",IF($B33<=ADICIONALES_P!$D$19,(K$22/366)*COTIZADOR!$D$25,"")),"") ->  | L33: =IFERROR(IF(OR(ADICIONALES_P!$D$17="NO",ISBLANK(ADICIONALES_P!$D$17)),"",IF($B33<=ADICIONALES_P!$D$19,(L$22/366)*COTIZADOR!$D$25,"")),"") ->  | M33: =IFERROR(IF(OR(ADICIONALES_P!$D$17="NO",ISBLANK(ADICIONALES_P!$D$17)),"",IF($B33<=ADICIONALES_P!$D$19,(M$22/366)*COTIZADOR!$D$25,"")),"") ->  | N33: =IFERROR(IF(OR(ADICIONALES_P!$D$17="NO",ISBLANK(ADICIONALES_P!$D$17)),"",IF($B33<=ADICIONALES_P!$D$19,(N$22/366)*COTIZADOR!$D$25,"")),"") ->  | O33: =IFERROR(IF(OR(ADICIONALES_P!$D$17="NO",ISBLANK(ADICIONALES_P!$D$17)),"",IF($B33<=ADICIONALES_P!$D$19,(O$22/366)*COTIZADOR!$D$25,"")),"") ->  | P33: =IFERROR(IF(OR(ADICIONALES_P!$D$17="NO",ISBLANK(ADICIONALES_P!$D$17)),"",IF($B33<=ADICIONALES_P!$D$19,(P$22/366)*COTIZADOR!$D$25,"")),"") ->  | Q33: =IFERROR(IF(OR(ADICIONALES_P!$D$17="NO",ISBLANK(ADICIONALES_P!$D$17)),"",IF($B33<=ADICIONALES_P!$D$19,(Q$22/366)*COTIZADOR!$D$25,"")),"") ->  | R33: =IFERROR(IF(OR(ADICIONALES_P!$D$17="NO",ISBLANK(ADICIONALES_P!$D$17)),"",IF($B33<=ADICIONALES_P!$D$19,(R$22/366)*COTIZADOR!$D$25,"")),"") ->  | S33: =IFERROR(IF(OR(ADICIONALES_P!$D$17="NO",ISBLANK(ADICIONALES_P!$D$17)),"",IF($B33<=ADICIONALES_P!$D$19,(S$22/366)*COTIZADOR!$D$25,"")),"") -> 
B34: 4 | C34: HIJO(A) 4 | D34: =IFERROR(IF(OR(ADICIONALES_P!$D$17="NO",ISBLANK(ADICIONALES_P!$D$17)),"",IF($B34<=ADICIONALES_P!$D$19,(D$22/366)*COTIZADOR!$D$25,"")),"") ->  | E34: =IFERROR(IF(OR(ADICIONALES_P!$D$17="NO",ISBLANK(ADICIONALES_P!$D$17)),"",IF($B34<=ADICIONALES_P!$D$19,(E$22/366)*COTIZADOR!$D$25,"")),"") ->  | F34: =IFERROR(IF(OR(ADICIONALES_P!$D$17="NO",ISBLANK(ADICIONALES_P!$D$17)),"",IF($B34<=ADICIONALES_P!$D$19,(F$22/366)*COTIZADOR!$D$25,"")),"") ->  | G34: =IFERROR(IF(OR(ADICIONALES_P!$D$17="NO",ISBLANK(ADICIONALES_P!$D$17)),"",IF($B34<=ADICIONALES_P!$D$19,(G$22/366)*COTIZADOR!$D$25,"")),"") ->  | H34: =IFERROR(IF(OR(ADICIONALES_P!$D$17="NO",ISBLANK(ADICIONALES_P!$D$17)),"",IF($B34<=ADICIONALES_P!$D$19,(H$22/366)*COTIZADOR!$D$25,"")),"") ->  | I34: =IFERROR(IF(OR(ADICIONALES_P!$D$17="NO",ISBLANK(ADICIONALES_P!$D$17)),"",IF($B34<=ADICIONALES_P!$D$19,(I$22/366)*COTIZADOR!$D$25,"")),"") ->  | J34: =IFERROR(IF(OR(ADICIONALES_P!$D$17="NO",ISBLANK(ADICIONALES_P!$D$17)),"",IF($B34<=ADICIONALES_P!$D$19,(J$22/366)*COTIZADOR!$D$25,"")),"") ->  | K34: =IFERROR(IF(OR(ADICIONALES_P!$D$17="NO",ISBLANK(ADICIONALES_P!$D$17)),"",IF($B34<=ADICIONALES_P!$D$19,(K$22/366)*COTIZADOR!$D$25,"")),"") ->  | L34: =IFERROR(IF(OR(ADICIONALES_P!$D$17="NO",ISBLANK(ADICIONALES_P!$D$17)),"",IF($B34<=ADICIONALES_P!$D$19,(L$22/366)*COTIZADOR!$D$25,"")),"") ->  | M34: =IFERROR(IF(OR(ADICIONALES_P!$D$17="NO",ISBLANK(ADICIONALES_P!$D$17)),"",IF($B34<=ADICIONALES_P!$D$19,(M$22/366)*COTIZADOR!$D$25,"")),"") ->  | N34: =IFERROR(IF(OR(ADICIONALES_P!$D$17="NO",ISBLANK(ADICIONALES_P!$D$17)),"",IF($B34<=ADICIONALES_P!$D$19,(N$22/366)*COTIZADOR!$D$25,"")),"") ->  | O34: =IFERROR(IF(OR(ADICIONALES_P!$D$17="NO",ISBLANK(ADICIONALES_P!$D$17)),"",IF($B34<=ADICIONALES_P!$D$19,(O$22/366)*COTIZADOR!$D$25,"")),"") ->  | P34: =IFERROR(IF(OR(ADICIONALES_P!$D$17="NO",ISBLANK(ADICIONALES_P!$D$17)),"",IF($B34<=ADICIONALES_P!$D$19,(P$22/366)*COTIZADOR!$D$25,"")),"") ->  | Q34: =IFERROR(IF(OR(ADICIONALES_P!$D$17="NO",ISBLANK(ADICIONALES_P!$D$17)),"",IF($B34<=ADICIONALES_P!$D$19,(Q$22/366)*COTIZADOR!$D$25,"")),"") ->  | R34: =IFERROR(IF(OR(ADICIONALES_P!$D$17="NO",ISBLANK(ADICIONALES_P!$D$17)),"",IF($B34<=ADICIONALES_P!$D$19,(R$22/366)*COTIZADOR!$D$25,"")),"") ->  | S34: =IFERROR(IF(OR(ADICIONALES_P!$D$17="NO",ISBLANK(ADICIONALES_P!$D$17)),"",IF($B34<=ADICIONALES_P!$D$19,(S$22/366)*COTIZADOR!$D$25,"")),"") -> 
B35: 5 | C35: HIJO(A) 5 | D35: =IFERROR(IF(OR(ADICIONALES_P!$D$17="NO",ISBLANK(ADICIONALES_P!$D$17)),"",IF($B35<=ADICIONALES_P!$D$19,(D$22/366)*COTIZADOR!$D$25,"")),"") ->  | E35: =IFERROR(IF(OR(ADICIONALES_P!$D$17="NO",ISBLANK(ADICIONALES_P!$D$17)),"",IF($B35<=ADICIONALES_P!$D$19,(E$22/366)*COTIZADOR!$D$25,"")),"") ->  | F35: =IFERROR(IF(OR(ADICIONALES_P!$D$17="NO",ISBLANK(ADICIONALES_P!$D$17)),"",IF($B35<=ADICIONALES_P!$D$19,(F$22/366)*COTIZADOR!$D$25,"")),"") ->  | G35: =IFERROR(IF(OR(ADICIONALES_P!$D$17="NO",ISBLANK(ADICIONALES_P!$D$17)),"",IF($B35<=ADICIONALES_P!$D$19,(G$22/366)*COTIZADOR!$D$25,"")),"") ->  | H35: =IFERROR(IF(OR(ADICIONALES_P!$D$17="NO",ISBLANK(ADICIONALES_P!$D$17)),"",IF($B35<=ADICIONALES_P!$D$19,(H$22/366)*COTIZADOR!$D$25,"")),"") ->  | I35: =IFERROR(IF(OR(ADICIONALES_P!$D$17="NO",ISBLANK(ADICIONALES_P!$D$17)),"",IF($B35<=ADICIONALES_P!$D$19,(I$22/366)*COTIZADOR!$D$25,"")),"") ->  | J35: =IFERROR(IF(OR(ADICIONALES_P!$D$17="NO",ISBLANK(ADICIONALES_P!$D$17)),"",IF($B35<=ADICIONALES_P!$D$19,(J$22/366)*COTIZADOR!$D$25,"")),"") ->  | K35: =IFERROR(IF(OR(ADICIONALES_P!$D$17="NO",ISBLANK(ADICIONALES_P!$D$17)),"",IF($B35<=ADICIONALES_P!$D$19,(K$22/366)*COTIZADOR!$D$25,"")),"") ->  | L35: =IFERROR(IF(OR(ADICIONALES_P!$D$17="NO",ISBLANK(ADICIONALES_P!$D$17)),"",IF($B35<=ADICIONALES_P!$D$19,(L$22/366)*COTIZADOR!$D$25,"")),"") ->  | M35: =IFERROR(IF(OR(ADICIONALES_P!$D$17="NO",ISBLANK(ADICIONALES_P!$D$17)),"",IF($B35<=ADICIONALES_P!$D$19,(M$22/366)*COTIZADOR!$D$25,"")),"") ->  | N35: =IFERROR(IF(OR(ADICIONALES_P!$D$17="NO",ISBLANK(ADICIONALES_P!$D$17)),"",IF($B35<=ADICIONALES_P!$D$19,(N$22/366)*COTIZADOR!$D$25,"")),"") ->  | O35: =IFERROR(IF(OR(ADICIONALES_P!$D$17="NO",ISBLANK(ADICIONALES_P!$D$17)),"",IF($B35<=ADICIONALES_P!$D$19,(O$22/366)*COTIZADOR!$D$25,"")),"") ->  | P35: =IFERROR(IF(OR(ADICIONALES_P!$D$17="NO",ISBLANK(ADICIONALES_P!$D$17)),"",IF($B35<=ADICIONALES_P!$D$19,(P$22/366)*COTIZADOR!$D$25,"")),"") ->  | Q35: =IFERROR(IF(OR(ADICIONALES_P!$D$17="NO",ISBLANK(ADICIONALES_P!$D$17)),"",IF($B35<=ADICIONALES_P!$D$19,(Q$22/366)*COTIZADOR!$D$25,"")),"") ->  | R35: =IFERROR(IF(OR(ADICIONALES_P!$D$17="NO",ISBLANK(ADICIONALES_P!$D$17)),"",IF($B35<=ADICIONALES_P!$D$19,(R$22/366)*COTIZADOR!$D$25,"")),"") ->  | S35: =IFERROR(IF(OR(ADICIONALES_P!$D$17="NO",ISBLANK(ADICIONALES_P!$D$17)),"",IF($B35<=ADICIONALES_P!$D$19,(S$22/366)*COTIZADOR!$D$25,"")),"") -> 
B36: 6 | C36: HIJO(A) 6 | D36: =+IFERROR(IF(OR(ADICIONALES_P!$D$17="NO",ISBLANK(ADICIONALES_P!$D$17)),"",IF($B36<=ADICIONALES_P!$D$19,(D$22/366)*COTIZADOR!$D$25,"")),"") ->  | E36: =+IFERROR(IF(OR(ADICIONALES_P!$D$17="NO",ISBLANK(ADICIONALES_P!$D$17)),"",IF($B36<=ADICIONALES_P!$D$19,(E$22/366)*COTIZADOR!$D$25,"")),"") ->  | F36: =+IFERROR(IF(OR(ADICIONALES_P!$D$17="NO",ISBLANK(ADICIONALES_P!$D$17)),"",IF($B36<=ADICIONALES_P!$D$19,(F$22/366)*COTIZADOR!$D$25,"")),"") ->  | G36: =+IFERROR(IF(OR(ADICIONALES_P!$D$17="NO",ISBLANK(ADICIONALES_P!$D$17)),"",IF($B36<=ADICIONALES_P!$D$19,(G$22/366)*COTIZADOR!$D$25,"")),"") ->  | H36: =+IFERROR(IF(OR(ADICIONALES_P!$D$17="NO",ISBLANK(ADICIONALES_P!$D$17)),"",IF($B36<=ADICIONALES_P!$D$19,(H$22/366)*COTIZADOR!$D$25,"")),"") ->  | I36: =+IFERROR(IF(OR(ADICIONALES_P!$D$17="NO",ISBLANK(ADICIONALES_P!$D$17)),"",IF($B36<=ADICIONALES_P!$D$19,(I$22/366)*COTIZADOR!$D$25,"")),"") ->  | J36: =+IFERROR(IF(OR(ADICIONALES_P!$D$17="NO",ISBLANK(ADICIONALES_P!$D$17)),"",IF($B36<=ADICIONALES_P!$D$19,(J$22/366)*COTIZADOR!$D$25,"")),"") ->  | K36: =+IFERROR(IF(OR(ADICIONALES_P!$D$17="NO",ISBLANK(ADICIONALES_P!$D$17)),"",IF($B36<=ADICIONALES_P!$D$19,(K$22/366)*COTIZADOR!$D$25,"")),"") ->  | L36: =+IFERROR(IF(OR(ADICIONALES_P!$D$17="NO",ISBLANK(ADICIONALES_P!$D$17)),"",IF($B36<=ADICIONALES_P!$D$19,(L$22/366)*COTIZADOR!$D$25,"")),"") ->  | M36: =+IFERROR(IF(OR(ADICIONALES_P!$D$17="NO",ISBLANK(ADICIONALES_P!$D$17)),"",IF($B36<=ADICIONALES_P!$D$19,(M$22/366)*COTIZADOR!$D$25,"")),"") ->  | N36: =+IFERROR(IF(OR(ADICIONALES_P!$D$17="NO",ISBLANK(ADICIONALES_P!$D$17)),"",IF($B36<=ADICIONALES_P!$D$19,(N$22/366)*COTIZADOR!$D$25,"")),"") ->  | O36: =+IFERROR(IF(OR(ADICIONALES_P!$D$17="NO",ISBLANK(ADICIONALES_P!$D$17)),"",IF($B36<=ADICIONALES_P!$D$19,(O$22/366)*COTIZADOR!$D$25,"")),"") ->  | P36: =+IFERROR(IF(OR(ADICIONALES_P!$D$17="NO",ISBLANK(ADICIONALES_P!$D$17)),"",IF($B36<=ADICIONALES_P!$D$19,(P$22/366)*COTIZADOR!$D$25,"")),"") ->  | Q36: =+IFERROR(IF(OR(ADICIONALES_P!$D$17="NO",ISBLANK(ADICIONALES_P!$D$17)),"",IF($B36<=ADICIONALES_P!$D$19,(Q$22/366)*COTIZADOR!$D$25,"")),"") ->  | R36: =+IFERROR(IF(OR(ADICIONALES_P!$D$17="NO",ISBLANK(ADICIONALES_P!$D$17)),"",IF($B36<=ADICIONALES_P!$D$19,(R$22/366)*COTIZADOR!$D$25,"")),"") ->  | S36: =+IFERROR(IF(OR(ADICIONALES_P!$D$17="NO",ISBLANK(ADICIONALES_P!$D$17)),"",IF($B36<=ADICIONALES_P!$D$19,(S$22/366)*COTIZADOR!$D$25,"")),"") -> 
C37: PRIMA TOTAL POR EL PERIODO SELECCIONADO | D37: =SUM(D29:D36) -> 0 | E37: =SUM(E29:E36) -> 0 | F37: 0 | G37: 0 | H37: 0 | I37: 0 | J37: 0 | K37: 0 | L37: 0 | M37: 0 | N37: 0 | O37: 0 | P37: 0 | Q37: 0 | R37: 0 | S37: 0
B38: =+COTIZADOR!D23 -> 00:00:00
B39: =VLOOKUP(B38,COTIZADOR!$AD$3:$AE$307,2,0) ->  | C39: DESCUENTO QUINCENAL | D39: =IFERROR(IF(D37<=0,"",+D37/$B$39),"") ->  | E39: =IFERROR(IF(E37<=0,"",+E37/$B$39),"") -> 

Sheet COTIZACION. (hidden)
M1: =+TODAY() -> 2023-12-13 | N1: =+M1+15 -> 2023-12-28
T2: COBERTURA POTENCIADA
T3: COBERTURA PARA ASCENDIENTES
T5: H
T6: M
D8: COBERTURA PARA ASCENDENTES
P9: =+"CDMX a "& TEXT(TODAY(),"d/mmmm/aaaa") -> CDMX a 13/diciembre/2023
E12: Fecha de cálculo | H12: =+TODAY() -> 2023-12-13
E14: Vigencia de la cotización | H14: =+CONCATENATE(TEXT(TODAY(),"d/mmmm/aaaa")," al ",TEXT(TODAY()+15,"d/mmmm/aaaa")) -> 13/diciembre/2023 al 28/diciembre/2023
E15: Vigencia de la póliza | H15: =+CONCATENATE(TEXT(COTIZADOR!D23,"d/mmmm/aaaa")," al ",TEXT(COTIZADOR!F23,"d/mmmm/aaaa")) -> 0/enero/1900 al 31/diciembre/2024
E16: Dias de Vigentes | H16: =+COTIZADOR!D25 -> 
E18: ID TARIFA BASICA | F18: ASEGURADO | G18: SUMA ASEGURADA BÁSICA | H18: PRIMA TOTAL POR EL PERIODO
E19: =+CONCATENATE(COTIZADOR!D18,COTIZADOR!D20,COTIZADOR!E12) -> 36H | F19: TITULAR | G19: =+COTIZADOR!E12 ->  | H19: =+(VLOOKUP(E19,TARIFAS!$A$3:$F$811,6,0)*1.16) -> 
E20: =++CONCATENATE("ASCENDIENTES",DEPENDIENTES!$D$16,DEPENDIENTES!$D$18,$G$19) -> ASCENDIENTESH | F20: PRIMA DE INCLUSIÓN DE ASCENDIENTE 1 | G20: =IFERROR(COTIZADOR!E12,"") ->  | H20: =IFERROR((IF(B29<=DEPENDIENTES!$D$10,(VLOOKUP($E$20,TARIFAS!$Z$3:$AE$411,6,0)/366)*H16,0)),0) -> 0
E21: =++CONCATENATE("ASCENDIENTES",DEPENDIENTES!$D$25,DEPENDIENTES!$D$27,$G$19) -> ASCENDIENTESH | F21: PRIMA DE INCLUSIÓN DE ASCENDIENTE 2 | G21: =IFERROR(COTIZADOR!E12,"") ->  | H21: =IFERROR((IF(B30<=DEPENDIENTES!$D$10,(VLOOKUP($E$21,TARIFAS!$Z$3:$AE$411,6,0)/366)*H16,0)),0) -> 0
F23: NÚMERO DE QUINCENAS: | H23: =+IFERROR(B35,"") -> 
K25: OPCIONES DE COBERTURA
C26: POTENCIACIÓN
D27: 94 | E27: 111 | F27: 148 | G27: 185 | H27: 222 | I27: 259 | J27: 295 | K27: 333 | L27: 444 | M27: 592 | N27: 740 | O27: 850 | P27: 1000 | Q27: 3000 | R27: 5000 | S27: 7000
C28: SUMA ASEGURADA POTENCIADA | D28: 94 UMAM | E28: 111 UMAM | F28: 148 UMAM | G28: 185 UMAM | H28: 222 UMAM | I28: 259 UMAM | J28: 295 UMAM | K28: 333 UMAM | L28: 444 UMAM | M28: 592 UMAM | N28: 740 UMAM | O28: 850 UMAM | P28: 1000 UMAM | Q28: 3000 UMAM | R28: 5000 UMAM | S28: 7000 UMAM
A29: =+CONCATENATE("POT- ",E20) -> POT- ASCENDIENTESH | B29: 1 | C29: PRIMA POTENCIADA ASCENDIENTE 1 | D29: =+IFERROR(IF(B29<=DEPENDIENTES!$D$10,(VLOOKUP($A29,TARIFAS!$AG$3:$AW$411,17,0))*$H$16,""),"") ->  | E29: =+IFERROR(IF(B29<=DEPENDIENTES!$D$10,(VLOOKUP($A29,TARIFAS!$AG$3:$AW$411,16,0))*$H$16,""),"") ->  | F29: =IFERROR(IF(B29<=DEPENDIENTES!$D$10,(VLOOKUP($A29,TARIFAS!$AG$3:$AW$411,15,0))*$H$16,""),"") ->  | G29: =IFERROR(IF(B29<=DEPENDIENTES!$D$10,(VLOOKUP($A29,TARIFAS!$AG$3:$AW$411,14,0))*$H$16,""),"") ->  | H29: =IFERROR(IF(B29<=DEPENDIENTES!$D$10,(VLOOKUP($A29,TARIFAS!$AG$3:$AW$411,13,0))*$H$16,""),"") ->  | I29: =IFERROR(IF(B29<=DEPENDIENTES!$D$10,(VLOOKUP($A29,TARIFAS!$AG$3:$AW$411,12,0))*$H$16,""),"") ->  | J29: =IFERROR(IF(B29<=DEPENDIENTES!$D$10,(VLOOKUP($A29,TARIFAS!$AG$3:$AW$411,11,0))*$H$16,""),"") ->  | K29: =IFERROR(IF(B29<=DEPENDIENTES!$D$10,(VLOOKUP($A29,TARIFAS!$AG$3:$AW$411,10,0))*$H$16,""),"") ->  | L29: =+IFERROR(IF(B29<=DEPENDIENTES!$D$10,(VLOOKUP($A29,TARIFAS!$AG$3:$AW$411,9,0))*$H$16,""),"") ->  | M29: =IFERROR(IF(B29<=DEPENDIENTES!$D$10,(VLOOKUP($A29,TARIFAS!$AG$3:$AW$411,8,0))*$H$16,""),"") ->  | N29: =IFERROR(IF(B29<=DEPENDIENTES!$D$10,(VLOOKUP($A29,TARIFAS!$AG$3:$AW$411,7,0))*$H$16,""),"") ->  | O29: =IFERROR(IF(B29<=DEPENDIENTES!$D$10,(VLOOKUP($A29,TARIFAS!$AG$3:$AW$411,6,0))*$H$16,""),"") ->  | P29: =IFERROR(IF(B29<=DEPENDIENTES!$D$10,(VLOOKUP($A29,TARIFAS!$AG$3:$AW$411,5,0))*$H$16,""),"") ->  | Q29: =IFERROR(IF(B29<=DEPENDIENTES!$D$10,(VLOOKUP($A29,TARIFAS!$AG$3:$AW$411,4,0))*$H$16,""),"") ->  | R29: =IFERROR(IF(B29<=DEPENDIENTES!$D$10,(VLOOKUP($A29,TARIFAS!$AG$3:$AW$411,3,0))*$H$16,""),"") ->  | S29: =IFERROR(IF(B29<=DEPENDIENTES!$D$10,(VLOOKUP($A29,TARIFAS!$AG$3:$AW$411,2,0))*$H$16,""),"") -> 
A30: =+CONCATENATE("POT- ",E21) -> POT- ASCENDIENTESH | B30: 2 | C30: PRIMA POTENCIADA ASCENDIENTE 2 | D30: =IFERROR(+IF(B30<=DEPENDIENTES!$D$10,(VLOOKUP($A30,TARIFAS!$AG$3:$AW$411,17,0))*$H$16,""),"") ->  | E30: =+IFERROR(IF(B30<=DEPENDIENTES!$D$10,(VLOOKUP($A30,TARIFAS!$AG$3:$AW$411,16,0))*$H$16,""),"") ->  | F30: =IFERROR(IF(B30<=DEPENDIENTES!$D$10,(VLOOKUP($A30,TARIFAS!$AG$3:$AW$411,15,0))*$H$16,""),"") ->  | G30: =IFERROR(IF(B30<=DEPENDIENTES!$D$10,(VLOOKUP($A30,TARIFAS!$AG$3:$AW$411,14,0))*$H$16,""),"") ->  | H30: =IFERROR(IF(B30<=DEPENDIENTES!$D$10,(VLOOKUP($A30,TARIFAS!$AG$3:$AW$411,13,0))*$H$16,""),"") ->  | I30: =IFERROR(IF(B30<=DEPENDIENTES!$D$10,(VLOOKUP($A30,TARIFAS!$AG$3:$AW$411,12,0))*$H$16,""),"") ->  | J30: =IFERROR(IF(B30<=DEPENDIENTES!$D$10,(VLOOKUP($A30,TARIFAS!$AG$3:$AW$411,11,0))*$H$16,""),"") ->  | K30: =IFERROR(IF(B30<=DEPENDIENTES!$D$10,(VLOOKUP($A30,TARIFAS!$AG$3:$AW$411,10,0))*$H$16,""),"") ->  | L30: =+IFERROR(IF(B30<=DEPENDIENTES!$D$10,(VLOOKUP($A30,TARIFAS!$AG$3:$AW$411,9,0))*$H$16,""),"") ->  | M30: =IFERROR(IF(B30<=DEPENDIENTES!$D$10,(VLOOKUP($A30,TARIFAS!$AG$3:$AW$411,8,0))*$H$16,""),"") ->  | N30: =IFERROR(IF(B30<=DEPENDIENTES!$D$10,(VLOOKUP($A30,TARIFAS!$AG$3:$AW$411,7,0))*$H$16,""),"") ->  | O30: =IFERROR(IF(B30<=DEPENDIENTES!$D$10,(VLOOKUP($A30,TARIFAS!$AG$3:$AW$411,6,0))*$H$16,""),"") ->  | P30: =IFERROR(IF(B30<=DEPENDIENTES!$D$10,(VLOOKUP($A30,TARIFAS!$AG$3:$AW$411,5,0))*$H$16,""),"") ->  | Q30: =IFERROR(IF(B30<=DEPENDIENTES!$D$10,(VLOOKUP($A30,TARIFAS!$AG$3:$AW$411,4,0))*$H$16,""),"") ->  | R30: =IFERROR(IF(B30<=DEPENDIENTES!$D$10,(VLOOKUP($A30,TARIFAS!$AG$3:$AW$411,3,0))*$H$16,""),"") ->  | S30: =IFERROR(IF(B30<=DEPENDIENTES!$D$10,(VLOOKUP($A30,TARIFAS!$AG$3:$AW$411,2,0))*$H$16,""),"") -> 
C31: PRIMA POTENCIADA POR EL PERIODO | D31: =SUM(D29:D30) -> 0 | E31: =SUM(E29:E30) -> 0 | F31: 0 | G31: 0 | H31: 0 | I31: 0 | J31: 0 | K31: 0 | L31: 0 | M31: 0 | N31: 0 | O31: 0 | P31: 0 | Q31: 0 | R31: 0 | S31: 0
A32: DESCUENTO QUINCENAL | B32: =+COTIZADOR!D23 -> 00:00:00
A33: (20 QUINCENAS) | B33: =VLOOKUP(B32,COTIZADOR!$AD$3:$AE$307,2,0) ->  | C33: DESCUENTO QUINCENAL INCLUSIÓN DE ASCENDIENTE(S) | D33: =+IF(D31=0,"",IFERROR(($H$20+$H$21)/$B$33,"")) ->  | E33: =+IF(E31=0,"",IFERROR(($H$20+$H$21)/$B$33,"")) -> 
A34: DESCUENTO QUINCENAL | B34: =+COTIZADOR!D23 -> 00:00:00
A35: (20 QUINCENAS) | B35: =VLOOKUP(B34,COTIZADOR!$AD$3:$AE$307,2,0) ->  | C35: DESCUENTO QUINCENAL POTENCIACIÓN | D35: =IF(D31<=0,"",+D31/$B$35) ->  | E35: =IF(E31<=0,"",+E31/$B$35) ->  | F35: =IF(F31<=0,"",+F31/$B$35) ->  | G35: =IF(G31<=0,"",+G31/$B$35) ->  | H35: =IF(H31<=0,"",+H31/$B$35) -> 
C37: DESCUENTO QUINCENAL TOTAL | D37: =+IFERROR(D33+D35,"") ->  | E37: =+IFERROR(E33+E35,"") -> 

Sheet TARIFAS (hidden)
A1: TARIFA BASICA | H1: TARIFA | I1: POTENCIACIÓN | Z1: TARIFA | AG1: TARIFA | AH1: 2 | AI1: =+AH1+1 -> 3 | AJ1: =+AI1+1 -> 4 | AK1: 5 | AL1: 6 | AM1: 7 | AN1: 8 | AO1: 9 | AP1: 10 | AQ1: 11 | AR1: 12 | AS1: 13 | AT1: 14 | AU1: 15 | AV1: 16 | AW1: 17
B2: TITULARES CONYUGES E HIJOS | E2: 1 | I2: POTEN | AA2: ASCENDIENTES | AH2: POT- ASCENDIENTES
A3: ID TARIFA BASICA | B3: EDAD | C3: SEXO | D3: UMAM | E3: TARIFA DIARIA | F3: TARIFA ANUAL | H3: ID TARIFA POTENCIACION | I3: 94 | J3: 111 | K3: 148 | L3: 185 | M3: 222 | N3: 259 | O3: 295 | P3: 333 | Q3: 444 | R3: 592 | S3: 740 | T3: 850 | U3: 1000 | V3: 3000 | W3: 5000 | X3: 7000 | Z3: ID TARIFA ASCENDIENTES | AA3: EDAD | AB3: SEXO | AC3: UMAM | AD3: TARIFA DIARIA | AE3: TARIFA ANUAL | AG3: ID TARIFA POT ASCEN. | AH3: 7000 | AI3: 5000 | AJ3: 3000 | AK3: 1000 | AL3: 850 | AM3: 740 | AN3: 592 | AO3: 444 | AP3: 333 | AQ3: 295 | AR3: 259 | AS3: 222 | AT3: 185 | AU3: 148 | AV3: 111 | AW3: 94
A4: =+CONCATENATE($B4,$C4,$D4,) -> 0H74 | B4: 0 | C4: H | D4: 74 | E4: 11.97 | F4: =+E4*366 -> 4381.02 | H4: =+CONCATENATE($I$2,$B4,$C4,$D4,) -> POTEN0H74 | I4: 36.57 | J4: 38.83 | K4: 49.13 | L4: 51.43 | M4: 57.41 | N4: 60.77 | O4: 65.22 | P4: 70.83 | Q4: 78.98 | R4: 87.23 | S4: 94.54 | T4: 99.17 | U4: 104.6 | V4: 132.61 | W4: 160.59 | X4: 208.73 | Z4: =+CONCATENATE($AA$2,$AA4,$AB4,$AC4,) -> ASCENDIENTES35H74 | AA4: 35 | AB4: H | AC4: 74 | AD4: 281.09 | AE4: =+AD4*366 -> 102878.94 | AG4: =+CONCATENATE($AH$2,$AA4,$AB4,$AC4,) -> POT- ASCENDIENTES35H74 | AH4: 900.82 | AI4: 692.96 | AJ4: 572.24 | AK4: 451.45 | AL4: 427.92 | AM4: 407.96 | AN4: 376.21 | AO4: 340.98 | AP4: 305.36 | AQ4: 281.31 | AR4: 262.16 | AS4: 247.72 | AT4: 222.01 | AU4: 212.11 | AV4: 167.45 | AW4: 159.44
A5: =+CONCATENATE($B5,$C5,$D5,) -> 1H74 | B5: 1 | C5: H | D5: 74 | E5: 11.97 | F5: =+E5*366 -> 4381.02 | H5: =+CONCATENATE($I$2,$B5,$C5,$D5,) -> POTEN1H74 | I5: 36.57 | J5: 38.83 | K5: 49.13 | L5: 51.43 | M5: 57.41 | N5: 60.77 | O5: 65.22 | P5: 70.83 | Q5: 78.98 | R5: 87.23 | S5: 94.54 | T5: 99.17 | U5: 104.6 | V5: 132.61 | W5: 160.59 | X5: 208.73 | Z5: =+CONCATENATE($AA$2,$AA5,$AB5,$AC5,) -> ASCENDIENTES36H74 | AA5: 36 | AB5: H | AC5: 74 | AD5: 281.09 | AE5: =+AD5*366 -> 102878.94 | AG5: =+CONCATENATE($AH$2,$AA5,$AB5,$AC5,) -> POT- ASCENDIENTES36H74 | AH5: 900.82 | AI5: 692.96 | AJ5: 572.24 | AK5: 451.45 | AL5: 427.92 | AM5: 407.96 | AN5: 376.21 | AO5: 340.98 | AP5: 305.36 | AQ5: 281.31 | AR5: 262.16 | AS5: 247.72 | AT5: 222.01 | AU5: 212.11 | AV5: 167.45 | AW5: 159.44
A6: 2H74 | B6: 2 | C6: H | D6: 74 | E6: 11.97 | F6: 4381.02 | H6: POTEN2H74 | I6: 36.57 | J6: 38.83 | K6: 49.13 | L6: 51.43 | M6: 57.41 | N6: 60.77 | O6: 65.22 | P6: 70.83 | Q6: 78.98 | R6: 87.23 | S6: 94.54 | T6: 99.17 | U6: 104.6 | V6: 132.61 | W6: 160.59 | X6: 208.73 | Z6: ASCENDIENTES37H74 | AA6: 37 | AB6: H | AC6: 74 | AD6: 281.09 | AE6: 102878.94 | AG6: POT- ASCENDIENTES37H74 | AH6: 900.82 | AI6: 692.96 | AJ6: 572.24 | AK6: 451.45 | AL6: 427.92 | AM6: 407.96 | AN6: 376.21 | AO6: 340.98 | AP6: 305.36 | AQ6: 281.31 | AR6: 262.16 | AS6: 247.72 | AT6: 222.01 | AU6: 212.11 | AV6: 167.45 | AW6: 159.44
A7: 3H74 | B7: 3 | C7: H | D7: 74 | E7: 11.97 | F7: 4381.02 | H7: POTEN3H74 | I7: 36.57 | J7: 38.83 | K7: 49.13 | L7: 51.43 | M7: 57.41 | N7: 60.77 | O7: 65.22 | P7: 70.83 | Q7: 78.98 | R7: 87.23 | S7: 94.54 | T7: 99.17 | U7: 104.6 | V7: 132.61 | W7: 160.59 | X7: 208.73 | Z7: ASCENDIENTES38H74 | AA7: 38 | AB7: H | AC7: 74 | AD7: 281.09 | AE7: 102878.94 | AG7: POT- ASCENDIENTES38H74 | AH7: 900.82 | AI7: 692.96 | AJ7: 572.24 | AK7: 451.45 | AL7: 427.92 | AM7: 407.96 | AN7: 376.21 | AO7: 340.98 | AP7: 305.36 | AQ7: 281.31 | AR7: 262.16 | AS7: 247.72 | AT7: 222.01 | AU7: 212.11 | AV7: 167.45 | AW7: 159.44
A8: 4H74 | B8: 4 | C8: H | D8: 74 | E8: 11.97 | F8: 4381.02 | H8: POTEN4H74 | I8: 36.57 | J8: 38.83 | K8: 49.13 | L8: 51.43 | M8: 57.41 | N8: 60.77 | O8: 65.22 | P8: 70.83 | Q8: 78.98 | R8: 87.23 | S8: 94.54 | T8: 99.17 | U8: 104.6 | V8: 132.61 | W8: 160.59 | X8: 208.73 | Z8: ASCENDIENTES39H74 | AA8: 39 | AB8: H | AC8: 74 | AD8: 281.09 | AE8: 102878.94 | AG8: POT- ASCENDIENTES39H74 | AH8: 900.82 | AI8: 692.96 | AJ8: 572.24 | AK8: 451.45 | AL8: 427.92 | AM8: 407.96 | AN8: 376.21 | AO8: 340.98 | AP8: 305.36 | AQ8: 281.31 | AR8: 262.16 | AS8: 247.72 | AT8: 222.01 | AU8: 212.11 | AV8: 167.45 | AW8: 159.44
A9: 5H74 | B9: 5 | C9: H | D9: 74 | E9: 11.97 | F9: 4381.02 | H9: POTEN5H74 | I9: 36.57 | J9: 38.83 | K9: 49.13 | L9: 51.43 | M9: 57.41 | N9: 60.77 | O9: 65.22 | P9: 70.83 | Q9: 78.98 | R9: 87.23 | S9: 94.54 | T9: 99.17 | U9: 104.6 | V9: 132.61 | W9: 160.59 | X9: 208.73 | Z9: ASCENDIENTES40H74 | AA9: 40 | AB9: H | AC9: 74 | AD9: 281.09 | AE9: 102878.94 | AG9: POT- ASCENDIENTES40H74 | AH9: 900.82 | AI9: 692.96 | AJ9: 572.24 | AK9: 451.45 | AL9: 427.92 | AM9: 407.96 | AN9: 376.21 | AO9: 340.98 | AP9: 305.36 | AQ9: 281.31 | AR9: 262.16 | AS9: 247.72 | AT9: 222.01 | AU9: 212.11 | AV9: 167.45 | AW9: 159.44
A10: 6H74 | B10: 6 | C10: H | D10: 74 | E10: 11.97 | F10: 4381.02 | H10: POTEN6H74 | I10: 36.57 | J10: 38.83 | K10: 49.13 | L10: 51.43 | M10: 57.41 | N10: 60.77 | O10: 65.22 | P10: 70.83 | Q10: 78.98 | R10: 87.23 | S10: 94.54 | T10: 99.17 | U10: 104.6 | V10: 132.61 | W10: 160.59 | X10: 208.73 | Z10: ASCENDIENTES41H74 | AA10: 41 | AB10: H | AC10: 74 | AD10: 281.09 | AE10: 102878.94 | AG10: POT- ASCENDIENTES41H74 | AH10: 900.82 | AI10: 692.96 | AJ10: 572.24 | AK10: 451.45 | AL10: 427.92 | AM10: 407.96 | AN10: 376.21 | AO10: 340.98 | AP10: 305.36 | AQ10: 281.31 | AR10: 262.16 | AS10: 247.72 | AT10: 222.01 | AU10: 212.11 | AV10: 167.45 | AW10: 159.44
A11: 7H74 | B11: 7 | C11: H | D11: 74 | E11: 11.97 | F11: 4381.02 | H11: POTEN7H74 | I11: 36.57 | J11: 38.83 | K11: 49.13 | L11: 51.43 | M11: 57.41 | N11: 60.77 | O11: 65.22 | P11: 70.83 | Q11: 78.98 | R11: 87.23 | S11: 94.54 | T11: 99.17 | U11: 104.6 | V11: 132.61 | W11: 160.59 | X11: 208.73 | Z11: ASCENDIENTES42H74 | AA11: 42 | AB11: H | AC11: 74 | AD11: 281.09 | AE11: 102878.94 | AG11: POT- ASCENDIENTES42H74 | AH11: 900.82 | AI11: 692.96 | AJ11: 572.24 | AK11: 451.45 | AL11: 427.92 | AM11: 407.96 | AN11: 376.21 | AO11: 340.98 | AP11: 305.36 | AQ11: 281.31 | AR11: 262.16 | AS11: 247.72 | AT11: 222.01 | AU11: 212.11 | AV11: 167.45 | AW11: 159.44
A12: 8H74 | B12: 8 | C12: H | D12: 74 | E12: 11.97 | F12: 4381.02 | H12: POTEN8H74 | I12: 36.57 | J12: 38.83 | K12: 49.13 | L12: 51.43 | M12: 57.41 | N12: 60.77 | O12: 65.22 | P12: 70.83 | Q12: 78.98 | R12: 87.23 | S12: 94.54 | T12: 99.17 | U12: 104.6 | V12: 132.61 | W12: 160.59 | X12: 208.73 | Z12: ASCENDIENTES43H74 | AA12: 43 | AB12: H | AC12: 74 | AD12: 281.09 | AE12: 102878.94 | AG12: POT- ASCENDIENTES43H74 | AH12: 900.82 | AI12: 692.96 | AJ12: 572.24 | AK12: 451.45 | AL12: 427.92 | AM12: 407.96 | AN12: 376.21 | AO12: 340.98 | AP12: 305.36 | AQ12: 281.31 | AR12: 262.16 | AS12: 247.72 | AT12: 222.01 | AU12: 212.11 | AV12: 167.45 | AW12: 159.44
A13: 9H74 | B13: 9 | C13: H | D13: 74 | E13: 11.97 | F13: 4381.02 | H13: POTEN9H74 | I13: 36.57 | J13: 38.83 | K13: 49.13 | L13: 51.43 | M13: 57.41 | N13: 60.77 | O13: 65.22 | P13: 70.83 | Q13: 78.98 | R13: 87.23 | S13: 94.54 | T13: 99.17 | U13: 104.6 | V13: 132.61 | W13: 160.59 | X13: 208.73 | Z13: ASCENDIENTES44H74 | AA13: 44 | AB13: H | AC13: 74 | AD13: 281.09 | AE13: 102878.94 | AG13: POT- ASCENDIENTES44H74 | AH13: 900.82 | AI13: 692.96 | AJ13: 572.24 | AK13: 451.45 | AL13: 427.92 | AM13: 407.96 | AN13: 376.21 | AO13: 340.98 | AP13: 305.36 | AQ13: 281.31 | AR13: 262.16 | AS13: 247.72 | AT13: 222.01 | AU13: 212.11 | AV13: 167.45 | AW13: 159.44
A14: 10H74 | B14: 10 | C14: H | D14: 74 | E14: 11.97 | F14: 4381.02 | H14: POTEN10H74 | I14: 36.57 | J14: 38.83 | K14: 49.13 | L14: 51.43 | M14: 57.41 | N14: 60.77 | O14: 65.22 | P14: 70.83 | Q14: 78.98 | R14: 87.23 | S14: 94.54 | T14: 99.17 | U14: 104.6 | V14: 132.61 | W14: 160.59 | X14: 208.73 | Z14: ASCENDIENTES45H74 | AA14: 45 | AB14: H | AC14: 74 | AD14: 281.09 | AE14: 102878.94 | AG14: POT- ASCENDIENTES45H74 | AH14: 900.82 | AI14: 692.96 | AJ14: 572.24 | AK14: 451.45 | AL14: 427.92 | AM14: 407.96 | AN14: 376.21 | AO14: 340.98 | AP14: 305.36 | AQ14: 281.31 | AR14: 262.16 | AS14: 247.72 | AT14: 222.01 | AU14: 212.11 | AV14: 167.45 | AW14: 159.44
A15: 11H74 | B15: 11 | C15: H | D15: 74 | E15: 11.97 | F15: 4381.02 | H15: POTEN11H74 | I15: 36.57 | J15: 38.83 | K15: 49.13 | L15: 51.43 | M15: 57.41 | N15: 60.77 | O15: 65.22 | P15: 70.83 | Q15: 78.98 | R15: 87.23 | S15: 94.54 | T15: 99.17 | U15: 104.6 | V15: 132.61 | W15: 160.59 | X15: 208.73 | Z15: ASCENDIENTES46H74 | AA15: 46 | AB15: H | AC15: 74 | AD15: 281.09 | AE15: 102878.94 | AG15: POT- ASCENDIENTES46H74 | AH15: 900.82 | AI15: 692.96 | AJ15: 572.24 | AK15: 451.45 | AL15: 427.92 | AM15: 407.96 | AN15: 376.21 | AO15: 340.98 | AP15: 305.36 | AQ15: 281.31 | AR15: 262.16 | AS15: 247.72 | AT15: 222.01 | AU15: 212.11 | AV15: 167.45 | AW15: 159.44
A16: 12H74 | B16: 12 | C16: H | D16: 74 | E16: 11.97 | F16: 4381.02 | H16: POTEN12H74 | I16: 36.57 | J16: 38.83 | K16: 49.13 | L16: 51.43 | M16: 57.41 | N16: 60.77 | O16: 65.22 | P16: 70.83 | Q16: 78.98 | R16: 87.23 | S16: 94.54 | T16: 99.17 | U16: 104.6 | V16: 132.61 | W16: 160.59 | X16: 208.73 | Z16: ASCENDIENTES47H74 | AA16: 47 | AB16: H | AC16: 74 | AD16: 281.09 | AE16: 102878.94 | AG16: POT- ASCENDIENTES47H74 | AH16: 900.82 | AI16: 692.96 | AJ16: 572.24 | AK16: 451.45 | AL16: 427.92 | AM16: 407.96 | AN16: 376.21 | AO16: 340.98 | AP16: 305.36 | AQ16: 281.31 | AR16: 262.16 | AS16: 247.72 | AT16: 222.01 | AU16: 212.11 | AV16: 167.45 | AW16: 159.44
A17: 13H74 | B17: 13 | C17: H | D17: 74 | E17: 11.97 | F17: 4381.02 | H17: POTEN13H74 | I17: 36.57 | J17: 38.83 | K17: 49.13 | L17: 51.43 | M17: 57.41 | N17: 60.77 | O17: 65.22 | P17: 70.83 | Q17: 78.98 | R17: 87.23 | S17: 94.54 | T17: 99.17 | U17: 104.6 | V17: 132.61 | W17: 160.59 | X17: 208.73 | Z17: ASCENDIENTES48H74 | AA17: 48 | AB17: H | AC17: 74 | AD17: 281.09 | AE17: 102878.94 | AG17: POT- ASCENDIENTES48H74 | AH17: 900.82 | AI17: 692.96 | AJ17: 572.24 | AK17: 451.45 | AL17: 427.92 | AM17: 407.96 | AN17: 376.21 | AO17: 340.98 | AP17: 305.36 | AQ17: 281.31 | AR17: 262.16 | AS17: 247.72 | AT17: 222.01 | AU17: 212.11 | AV17: 167.45 | AW17: 159.44
A18: 14H74 | B18: 14 | C18: H | D18: 74 | E18: 11.97 | F18: 4381.02 | H18: POTEN14H74 | I18: 36.57 | J18: 38.83 | K18: 49.13 | L18: 51.43 | M18: 57.41 | N18: 60.77 | O18: 65.22 | P18: 70.83 | Q18: 78.98 | R18: 87.23 | S18: 94.54 | T18: 99.17 | U18: 104.6 | V18: 132.61 | W18: 160.59 | X18: 208.73 | Z18: ASCENDIENTES49H74 | AA18: 49 | AB18: H | AC18: 74 | AD18: 281.09 | AE18: 102878.94 | AG18: POT- ASCENDIENTES49H74 | AH18: 900.82 | AI18: 692.96 | AJ18: 572.24 | AK18: 451.45 | AL18: 427.92 | AM18: 407.96 | AN18: 376.21 | AO18: 340.98 | AP18: 305.36 | AQ18: 281.31 | AR18: 262.16 | AS18: 247.72 | AT18: 222.01 | AU18: 212.11 | AV18: 167.45 | AW18: 159.44
A19: 15H74 | B19: 15 | C19: H | D19: 74 | E19: 11.97 | F19: 4381.02 | H19: POTEN15H74 | I19: 36.57 | J19: 38.83 | K19: 49.13 | L19: 51.43 | M19: 57.41 | N19: 60.77 | O19: 65.22 | P19: 70.83 | Q19: 78.98 | R19: 87.23 | S19: 94.54 | T19: 99.17 | U19: 104.6 | V19: 132.61 | W19: 160.59 | X19: 208.73 | Z19: ASCENDIENTES50H74 | AA19: 50 | AB19: H | AC19: 74 | AD19: 281.09 | AE19: 102878.94 | AG19: POT- ASCENDIENTES50H74 | AH19: 900.82 | AI19: 692.96 | AJ19: 572.24 | AK19: 451.45 | AL19: 427.92 | AM19: 407.96 | AN19: 376.21 | AO19: 340.98 | AP19: 305.36 | AQ19: 281.31 | AR19: 262.16 | AS19: 247.72 | AT19: 222.01 | AU19: 212.11 | AV19: 167.45 | AW19: 159.44
A20: 16H74 | B20: 16 | C20: H | D20: 74 | E20: 11.97 | F20: 4381.02 | H20: POTEN16H74 | I20: 36.57 | J20: 38.83 | K20: 49.13 | L20: 51.43 | M20: 57.41 | N20: 60.77 | O20: 65.22 | P20: 70.83 | Q20: 78.98 | R20: 87.23 | S20: 94.54 | T20: 99.17 | U20: 104.6 | V20: 132.61 | W20: 160.59 | X20: 208.73 | Z20: ASCENDIENTES51H74 | AA20: 51 | AB20: H | AC20: 74 | AD20: 281.09 | AE20: 102878.94 | AG20: POT- ASCENDIENTES51H74 | AH20: 900.82 | AI20: 692.96 | AJ20: 572.24 | AK20: 451.45 | AL20: 427.92 | AM20: 407.96 | AN20: 376.21 | AO20: 340.98 | AP20: 305.36 | AQ20: 281.31 | AR20: 262.16 | AS20: 247.72 | AT20: 222.01 | AU20: 212.11 | AV20: 167.45 | AW20: 159.44
A21: 17H74 | B21: 17 | C21: H | D21: 74 | E21: 11.97 | F21: 4381.02 | H21: POTEN17H74 | I21: 36.57 | J21: 38.83 | K21: 49.13 | L21: 51.43 | M21: 57.41 | N21: 60.77 | O21: 65.22 | P21: 70.83 | Q21: 78.98 | R21: 87.23 | S21: 94.54 | T21: 99.17 | U21: 104.6 | V21: 132.61 | W21: 160.59 | X21: 208.73 | Z21: ASCENDIENTES52H74 | AA21: 52 | AB21: H | AC21: 74 | AD21: 281.09 | AE21: 102878.94 | AG21: POT- ASCENDIENTES52H74 | AH21: 900.82 | AI21: 692.96 | AJ21: 572.24 | AK21: 451.45 | AL21: 427.92 | AM21: 407.96 | AN21: 376.21 | AO21: 340.98 | AP21: 305.36 | AQ21: 281.31 | AR21: 262.16 | AS21: 247.72 | AT21: 222.01 | AU21: 212.11 | AV21: 167.45 | AW21: 159.44
A22: 18H74 | B22: 18 | C22: H | D22: 74 | E22: 11.97 | F22: 4381.02 | H22: POTEN18H74 | I22: 36.57 | J22: 38.83 | K22: 49.13 | L22: 51.43 | M22: 57.41 | N22: 60.77 | O22: 65.22 | P22: 70.83 | Q22: 78.98 | R22: 87.23 | S22: 94.54 | T22: 99.17 | U22: 104.6 | V22: 132.61 | W22: 160.59 | X22: 208.73 | Z22: ASCENDIENTES53H74 | AA22: 53 | AB22: H | AC22: 74 | AD22: 281.09 | AE22: 102878.94 | AG22: POT- ASCENDIENTES53H74 | AH22: 900.82 | AI22: 692.96 | AJ22: 572.24 | AK22: 451.45 | AL22: 427.92 | AM22: 407.96 | AN22: 376.21 | AO22: 340.98 | AP22: 305.36 | AQ22: 281.31 | AR22: 262.16 | AS22: 247.72 | AT22: 222.01 | AU22: 212.11 | AV22: 167.45 | AW22: 159.44
A23: 19H74 | B23: 19 | C23: H | D23: 74 | E23: 11.97 | F23: 4381.02 | H23: POTEN19H74 | I23: 36.57 | J23: 38.83 | K23: 49.13 | L23: 51.43 | M23: 57.41 | N23: 60.77 | O23: 65.22 | P23: 70.83 | Q23: 78.98 | R23: 87.23 | S23: 94.54 | T23: 99.17 | U23: 104.6 | V23: 132.61 | W23: 160.59 | X23: 208.73 | Z23: ASCENDIENTES54H74 | AA23: 54 | AB23: H | AC23: 74 | AD23: 281.09 | AE23: 102878.94 | AG23: POT- ASCENDIENTES54H74 | AH23: 900.82 | AI23: 692.96 | AJ23: 572.24 | AK23: 451.45 | AL23: 427.92 | AM23: 407.96 | AN23: 376.21 | AO23: 340.98 | AP23: 305.36 | AQ23: 281.31 | AR23: 262.16 | AS23: 247.72 | AT23: 222.01 | AU23: 212.11 | AV23: 167.45 | AW23: 159.44
A24: 20H74 | B24: 20 | C24: H | D24: 74 | E24: 16.53 | F24: 6049.98 | H24: POTEN20H74 | I24: 36.57 | J24: 38.83 | K24: 49.13 | L24: 51.43 | M24: 57.41 | N24: 60.77 | O24: 65.22 | P24: 70.83 | Q24: 78.98 | R24: 87.23 | S24: 94.54 | T24: 99.17 | U24: 104.6 | V24: 132.61 | W24: 160.59 | X24: 208.73 | Z24: ASCENDIENTES55H74 | AA24: 55 | AB24: H | AC24: 74 | AD24: 281.09 | AE24: 102878.94 | AG24: POT- ASCENDIENTES55H74 | AH24: 900.82 | AI24: 692.96 | AJ24: 572.24 | AK24: 451.45 | AL24: 427.92 | AM24: 407.96 | AN24: 376.21 | AO24: 340.98 | AP24: 305.36 | AQ24: 281.31 | AR24: 262.16 | AS24: 247.72 | AT24: 222.01 | AU24: 212.11 | AV24: 167.45 | AW24: 159.44
A25: 21H74 | B25: 21 | C25: H | D25: 74 | E25: 16.53 | F25: 6049.98 | H25: POTEN21H74 | I25: 36.57 | J25: 38.83 | K25: 49.13 | L25: 51.43 | M25: 57.41 | N25: 60.77 | O25: 65.22 | P25: 70.83 | Q25: 78.98 | R25: 87.23 | S25: 94.54 | T25: 99.17 | U25: 104.6 | V25: 132.61 | W25: 160.59 | X25: 208.73 | Z25: ASCENDIENTES56H74 | AA25: 56 | AB25: H | AC25: 74 | AD25: 281.09 | AE25: 102878.94 | AG25: POT- ASCENDIENTES56H74 | AH25: 900.82 | AI25: 692.96 | AJ25: 572.24 | AK25: 451.45 | AL25: 427.92 | AM25: 407.96 | AN25: 376.21 | AO25: 340.98 | AP25: 305.36 | AQ25: 281.31 | AR25: 262.16 | AS25: 247.72 | AT25: 222.01 | AU25: 212.11 | AV25: 167.45 | AW25: 159.44
A26: 22H74 | B26: 22 | C26: H | D26: 74 | E26: 16.53 | F26: 6049.98 | H26: POTEN22H74 | I26: 36.57 | J26: 38.83 | K26: 49.13 | L26: 51.43 | M26: 57.41 | N26: 60.77 | O26: 65.22 | P26: 70.83 | Q26: 78.98 | R26: 87.23 | S26: 94.54 | T26: 99.17 | U26: 104.6 | V26: 132.61 | W26: 160.59 | X26: 208.73 | Z26: ASCENDIENTES57H74 | AA26: 57 | AB26: H | AC26: 74 | AD26: 281.09 | AE26: 102878.94 | AG26: POT- ASCENDIENTES57H74 | AH26: 900.82 | AI26: 692.96 | AJ26: 572.24 | AK26: 451.45 | AL26: 427.92 | AM26: 407.96 | AN26: 376.21 | AO26: 340.98 | AP26: 305.36 | AQ26: 281.31 | AR26: 262.16 | AS26: 247.72 | AT26: 222.01 | AU26: 212.11 | AV26: 167.45 | AW26: 159.44
A27: 23H74 | B27: 23 | C27: H | D27: 74 | E27: 16.53 | F27: 6049.98 | H27: POTEN23H74 | I27: 36.57 | J27: 38.83 | K27: 49.13 | L27: 51.43 | M27: 57.41 | N27: 60.77 | O27: 65.22 | P27: 70.83 | Q27: 78.98 | R27: 87.23 | S27: 94.54 | T27: 99.17 | U27: 104.6 | V27: 132.61 | W27: 160.59 | X27: 208.73 | Z27: ASCENDIENTES58H74 | AA27: 58 | AB27: H | AC27: 74 | AD27: 281.09 | AE27: 102878.94 | AG27: POT- ASCENDIENTES58H74 | AH27: 900.82 | AI27: 692.96 | AJ27: 572.24 | AK27: 451.45 | AL27: 427.92 | AM27: 407.96 | AN27: 376.21 | AO27: 340.98 | AP27: 305.36 | AQ27: 281.31 | AR27: 262.16 | AS27: 247.72 | AT27: 222.01 | AU27: 212.11 | AV27: 167.45 | AW27: 159.44
A28: 24H74 | B28: 24 | C28: H | D28: 74 | E28: 16.53 | F28: 6049.98 | H28: POTEN24H74 | I28: 36.57 | J28: 38.83 | K28: 49.13 | L28: 51.43 | M28: 57.41 | N28: 60.77 | O28: 65.22 | P28: 70.83 | Q28: 78.98 | R28: 87.23 | S28: 94.54 | T28: 99.17 | U28: 104.6 | V28: 132.61 | W28: 160.59 | X28: 208.73 | Z28: ASCENDIENTES59H74 | AA28: 59 | AB28: H | AC28: 74 | AD28: 281.09 | AE28: 102878.94 | AG28: POT- ASCENDIENTES59H74 | AH28: 900.82 | AI28: 692.96 | AJ28: 572.24 | AK28: 451.45 | AL28: 427.92 | AM28: 407.96 | AN28: 376.21 | AO28: 340.98 | AP28: 305.36 | AQ28: 281.31 | AR28: 262.16 | AS28: 247.72 | AT28: 222.01 | AU28: 212.11 | AV28: 167.45 | AW28: 159.44
A29: 25H74 | B29: 25 | C29: H | D29: 74 | E29: 16.61 | F29: 6079.26 | H29: POTEN25H74 | I29: 36.57 | J29: 38.83 | K29: 49.13 | L29: 51.43 | M29: 57.41 | N29: 60.77 | O29: 65.22 | P29: 70.83 | Q29: 78.98 | R29: 87.23 | S29: 94.54 | T29: 99.17 | U29: 104.6 | V29: 132.61 | W29: 160.59 | X29: 208.73 | Z29: ASCENDIENTES60H74 | AA29: 60 | AB29: H | AC29: 74 | AD29: 281.09 | AE29: 102878.94 | AG29: POT- ASCENDIENTES60H74 | AH29: 900.82 | AI29: 692.96 | AJ29: 572.24 | AK29: 451.45 | AL29: 427.92 | AM29: 407.96 | AN29: 376.21 | AO29: 340.98 | AP29: 305.36 | AQ29: 281.31 | AR29: 262.16 | AS29: 247.72 | AT29: 222.01 | AU29: 212.11 | AV29: 167.45 | AW29: 159.44
A30: 26H74 | B30: 26 | C30: H | D30: 74 | E30: 16.61 | F30: 6079.26 | H30: POTEN26H74 | I30: 36.57 | J30: 38.83 | K30: 49.13 | L30: 51.43 | M30: 57.41 | N30: 60.77 | O30: 65.22 | P30: 70.83 | Q30: 78.98 | R30: 87.23 | S30: 94.54 | T30: 99.17 | U30: 104.6 | V30: 132.61 | W30: 160.59 | X30: 208.73 | Z30: ASCENDIENTES61H74 | AA30: 61 | AB30: H | AC30: 74 | AD30: 281.09 | AE30: 102878.94 | AG30: POT- ASCENDIENTES61H74 | AH30: 900.82 | AI30: 692.96 | AJ30: 572.24 | AK30: 451.45 | AL30: 427.92 | AM30: 407.96 | AN30: 376.21 | AO30: 340.98 | AP30: 305.36 | AQ30: 281.31 | AR30: 262.16 | AS30: 247.72 | AT30: 222.01 | AU30: 212.11 | AV30: 167.45 | AW30: 159.44
A31: 27H74 | B31: 27 | C31: H | D31: 74 | E31: 16.61 | F31: 6079.26 | H31: POTEN27H74 | I31: 36.57 | J31: 38.83 | K31: 49.13 | L31: 51.43 | M31: 57.41 | N31: 60.77 | O31: 65.22 | P31: 70.83 | Q31: 78.98 | R31: 87.23 | S31: 94.54 | T31: 99.17 | U31: 104.6 | V31: 132.61 | W31: 160.59 | X31: 208.73 | Z31: ASCENDIENTES62H74 | AA31: 62 | AB31: H | AC31: 74 | AD31: 281.09 | AE31: 102878.94 | AG31: POT- ASCENDIENTES62H74 | AH31: 900.82 | AI31: 692.96 | AJ31: 572.24 | AK31: 451.45 | AL31: 427.92 | AM31: 407.96 | AN31: 376.21 | AO31: 340.98 | AP31: 305.36 | AQ31: 281.31 | AR31: 262.16 | AS31: 247.72 | AT31: 222.01 | AU31: 212.11 | AV31: 167.45 | AW31: 159.44
A32: 28H74 | B32: 28 | C32: H | D32: 74 | E32: 16.61 | F32: 6079.26 | H32: POTEN28H74 | I32: 36.57 | J32: 38.83 | K32: 49.13 | L32: 51.43 | M32: 57.41 | N32: 60.77 | O32: 65.22 | P32: 70.83 | Q32: 78.98 | R32: 87.23 | S32: 94.54 | T32: 99.17 | U32: 104.6 | V32: 132.61 | W32: 160.59 | X32: 208.73 | Z32: ASCENDIENTES63H74 | AA32: 63 | AB32: H | AC32: 74 | AD32: 281.09 | AE32: 102878.94 | AG32: POT- ASCENDIENTES63H74 | AH32: 900.82 | AI32: 692.96 | AJ32: 572.24 | AK32: 451.45 | AL32: 427.92 | AM32: 407.96 | AN32: 376.21 | AO32: 340.98 | AP32: 305.36 | AQ32: 281.31 | AR32: 262.16 | AS32: 247.72 | AT32: 222.01 | AU32: 212.11 | AV32: 167.45 | AW32: 159.44
A33: 29H74 | B33: 29 | C33: H | D33: 74 | E33: 16.61 | F33: 6079.26 | H33: POTEN29H74 | I33: 36.57 | J33: 38.83 | K33: 49.13 | L33: 51.43 | M33: 57.41 | N33: 60.77 | O33: 65.22 | P33: 70.83 | Q33: 78.98 | R33: 87.23 | S33: 94.54 | T33: 99.17 | U33: 104.6 | V33: 132.61 | W33: 160.59 | X33: 208.73 | Z33: ASCENDIENTES64H74 | AA33: 64 | AB33: H | AC33: 74 | AD33: 281.09 | AE33: 102878.94 | AG33: POT- ASCENDIENTES64H74 | AH33: 900.82 | AI33: 692.96 | AJ33: 572.24 | AK33: 451.45 | AL33: 427.92 | AM33: 407.96 | AN33: 376.21 | AO33: 340.98 | AP33: 305.36 | AQ33: 281.31 | AR33: 262.16 | AS33: 247.72 | AT33: 222.01 | AU33: 212.11 | AV33: 167.45 | AW33: 159.44
A34: 30H74 | B34: 30 | C34: H | D34: 74 | E34: 19.21 | F34: 7030.86 | H34: POTEN30H74 | I34: 36.57 | J34: 38.83 | K34: 49.13 | L34: 51.43 | M34: 57.41 | N34: 60.77 | O34: 65.22 | P34: 70.83 | Q34: 78.98 | R34: 87.23 | S34: 94.54 | T34: 99.17 | U34: 104.6 | V34: 132.61 | W34: 160.59 | X34: 208.73 | Z34: ASCENDIENTES65H74 | AA34: 65 | AB34: H | AC34: 74 | AD34: 281.09 | AE34: 102878.94 | AG34: POT- ASCENDIENTES65H74 | AH34: 900.82 | AI34: 692.96 | AJ34: 572.24 | AK34: 451.45 | AL34: 427.92 | AM34: 407.96 | AN34: 376.21 | AO34: 340.98 | AP34: 305.36 | AQ34: 281.31 | AR34: 262.16 | AS34: 247.72 | AT34: 222.01 | AU34: 212.11 | AV34: 167.45 | AW34: 159.44
A35: 31H74 | B35: 31 | C35: H | D35: 74 | E35: 19.21 | F35: 7030.86 | H35: POTEN31H74 | I35: 36.57 | J35: 38.83 | K35: 49.13 | L35: 51.43 | M35: 57.41 | N35: 60.77 | O35: 65.22 | P35: 70.83 | Q35: 78.98 | R35: 87.23 | S35: 94.54 | T35: 99.17 | U35: 104.6 | V35: 132.61 | W35: 160.59 | X35: 208.73 | Z35: ASCENDIENTES66H74 | AA35: 66 | AB35: H | AC35: 74 | AD35: 281.09 | AE35: 102878.94 | AG35: POT- ASCENDIENTES66H74 | AH35: 900.82 | AI35: 692.96 | AJ35: 572.24 | AK35: 451.45 | AL35: 427.92 | AM35: 407.96 | AN35: 376.21 | AO35: 340.98 | AP35: 305.36 | AQ35: 281.31 | AR35: 262.16 | AS35: 247.72 | AT35: 222.01 | AU35: 212.11 | AV35: 167.45 | AW35: 159.44
A36: 32H74 | B36: 32 | C36: H | D36: 74 | E36: 19.21 | F36: 7030.86 | H36: POTEN32H74 | I36: 36.57 | J36: 38.83 | K36: 49.13 | L36: 51.43 | M36: 57.41 | N36: 60.77 | O36: 65.22 | P36: 70.83 | Q36: 78.98 | R36: 87.23 | S36: 94.54 | T36: 99.17 | U36: 104.6 | V36: 132.61 | W36: 160.59 | X36: 208.73 | Z36: ASCENDIENTES67H74 | AA36: 67 | AB36: H | AC36: 74 | AD36: 281.09 | AE36: 102878.94 | AG36: POT- ASCENDIENTES67H74 | AH36: 900.82 | AI36: 692.96 | AJ36: 572.24 | AK36: 451.45 | AL36: 427.92 | AM36: 407.96 | AN36: 376.21 | AO36: 340.98 | AP36: 305.36 | AQ36: 281.31 | AR36: 262.16 | AS36: 247.72 | AT36: 222.01 | AU36: 212.11 | AV36: 167.45 | AW36: 159.44
A37: 33H74 | B37: 33 | C37: H | D37: 74 | E37: 19.21 | F37: 7030.86 | H37: POTEN33H74 | I37: 36.57 | J37: 38.83 | K37: 49.13 | L37: 51.43 | M37: 57.41 | N37: 60.77 | O37: 65.22 | P37: 70.83 | Q37: 78.98 | R37: 87.23 | S37: 94.54 | T37: 99.17 | U37: 104.6 | V37: 132.61 | W37: 160.59 | X37: 208.73 | Z37: ASCENDIENTES68H74 | AA37: 68 | AB37: H | AC37: 74 | AD37: 281.09 | AE37: 102878.94 | AG37: POT- ASCENDIENTES68H74 | AH37: 900.82 | AI37: 692.96 | AJ37: 572.24 | AK37: 451.45 | AL37: 427.92 | AM37: 407.96 | AN37: 376.21 | AO37: 340.98 | AP37: 305.36 | AQ37: 281.31 | AR37: 262.16 | AS37: 247.72 | AT37: 222.01 | AU37: 212.11 | AV37: 167.45 | AW37: 159.44
A38: 34H74 | B38: 34 | C38: H | D38: 74 | E38: 19.21 | F38: 7030.86 | H38: POTEN34H74 | I38: 36.57 | J38: 38.83 | K38: 49.13 | L38: 51.43 | M38: 57.41 | N38: 60.77 | O38: 65.22 | P38: 70.83 | Q38: 78.98 | R38: 87.23 | S38: 94.54 | T38: 99.17 | U38: 104.6 | V38: 132.61 | W38: 160.59 | X38: 208.73 | Z38: ASCENDIENTES69H74 | AA38: 69 | AB38: H | AC38: 74 | AD38: 281.09 | AE38: 102878.94 | AG38: POT- ASCENDIENTES69H74 | AH38: 900.82 | AI38: 692.96 | AJ38: 572.24 | AK38: 451.45 | AL38: 427.92 | AM38: 407.96 | AN38: 376.21 | AO38: 340.98 | AP38: 305.36 | AQ38: 281.31 | AR38: 262.16 | AS38: 247.72 | AT38: 222.01 | AU38: 212.11 | AV38: 167.45 | AW38: 159.44
A39: 35H74 | B39: 35 | C39: H | D39: 74 | E39: 22.16 | F39: 8110.56 | H39: POTEN35H74 | I39: 36.57 | J39: 38.83 | K39: 49.13 | L39: 51.43 | M39: 57.41 | N39: 60.77 | O39: 65.22 | P39: 70.83 | Q39: 78.98 | R39: 87.23 | S39: 94.54 | T39: 99.17 | U39: 104.6 | V39: 132.61 | W39: 160.59 | X39: 208.73 | Z39: ASCENDIENTES70H74 | AA39: 70 | AB39: H | AC39: 74 | AD39: 281.09 | AE39: 102878.94 | AG39: POT- ASCENDIENTES70H74 | AH39: 900.82 | AI39: 692.96 | AJ39: 572.24 | AK39: 451.45 | AL39: 427.92 | AM39: 407.96 | AN39: 376.21 | AO39: 340.98 | AP39: 305.36 | AQ39: 281.31 | AR39: 262.16 | AS39: 247.72 | AT39: 222.01 | AU39: 212.11 | AV39: 167.45 | AW39: 159.44
A40: 36H74 | B40: 36 | C40: H | D40: 74 | E40: 22.16 | F40: 8110.56 | H40: POTEN36H74 | I40: 36.57 | J40: 38.83 | K40: 49.13 | L40: 51.43 | M40: 57.41 | N40: 60.77 | O40: 65.22 | P40: 70.83 | Q40: 78.98 | R40: 87.23 | S40: 94.54 | T40: 99.17 | U40: 104.6 | V40: 132.61 | W40: 160.59 | X40: 208.73 | Z40: ASCENDIENTES71H74 | AA40: 71 | AB40: H | AC40: 74 | AD40: 281.09 | AE40: 102878.94 | AG40: POT- ASCENDIENTES71H74 | AH40: 1098.6 | AI40: 845.05 | AJ40: 697.77 | AK40: 550.51 | AL40: 521.85 | AM40: 497.42 | AN40: 458.73 | AO40: 415.99 | AP40: 372.42 | AQ40: 343.1 | AR40: 319.61 | AS40: 302.3 | AT40: 270.66 | AU40: 258.75 | AV40: 204.24 | AW40: 194.49
A41: 37H74 | B41: 37 | C41: H | D41: 74 | E41: 22.16 | F41: 8110.56 | H41: POTEN37H74 | I41: 36.57 | J41: 38.83 | K41: 49.13 | L41: 51.43 | M41: 57.41 | N41: 60.77 | O41: 65.22 | P41: 70.83 | Q41: 78.98 | R41: 87.23 | S41: 94.54 | T41: 99.17 | U41: 104.6 | V41: 132.61 | W41: 160.59 | X41: 208.73 | Z41: ASCENDIENTES72H74 | AA41: 72 | AB41: H | AC41: 74 | AD41: 281.09 | AE41: 102878.94 | AG41: POT- ASCENDIENTES72H74 | AH41: 1098.6 | AI41: 845.05 | AJ41: 697.77 | AK41: 550.51 | AL41: 521.85 | AM41: 497.42 | AN41: 458.73 | AO41: 415.99 | AP41: 372.42 | AQ41: 343.1 | AR41: 319.61 | AS41: 302.3 | AT41: 270.66 | AU41: 258.75 | AV41: 204.24 | AW41: 194.49
A42: 38H74 | B42: 38 | C42: H | D42: 74 | E42: 22.16 | F42: 8110.56 | H42: POTEN38H74 | I42: 36.57 | J42: 38.83 | K42: 49.13 | L42: 51.43 | M42: 57.41 | N42: 60.77 | O42: 65.22 | P42: 70.83 | Q42: 78.98 | R42: 87.23 | S42: 94.54 | T42: 99.17 | U42: 104.6 | V42: 132.61 | W42: 160.59 | X42: 208.73 | Z42: ASCENDIENTES73H74 | AA42: 73 | AB42: H | AC42: 74 | AD42: 281.09 | AE42: 102878.94 | AG42: POT- ASCENDIENTES73H74 | AH42: 1098.6 | AI42: 845.05 | AJ42: 697.77 | AK42: 550.51 | AL42: 521.85 | AM42: 497.42 | AN42: 458.73 | AO42: 415.99 | AP42: 372.42 | AQ42: 343.1 | AR42: 319.61 | AS42: 302.3 | AT42: 270.66 | AU42: 258.75 | AV42: 204.24 | AW42: 194.49
A43: 39H74 | B43: 39 | C43: H | D43: 74 | E43: 22.16 | F43: 8110.56 | H43: POTEN39H74 | I43: 36.57 | J43: 38.83 | K43: 49.13 | L43: 51.43 | M43: 57.41 | N43: 60.77 | O43: 65.22 | P43: 70.83 | Q43: 78.98 | R43: 87.23 | S43: 94.54 | T43: 99.17 | U43: 104.6 | V43: 132.61 | W43: 160.59 | X43: 208.73 | Z43: ASCENDIENTES74H74 | AA43: 74 | AB43: H | AC43: 74 | AD43: 281.09 | AE43: 102878.94 | AG43: POT- ASCENDIENTES74H74 | AH43: 1098.6 | AI43: 845.05 | AJ43: 697.77 | AK43: 550.51 | AL43: 521.85 | AM43: 497.42 | AN43: 458.73 | AO43: 415.99 | AP43: 372.42 | AQ43: 343.1 | AR43: 319.61 | AS43: 302.3 | AT43: 270.66 | AU43: 258.75 | AV43: 204.24 | AW43: 194.49
A44: 40H74 | B44: 40 | C44: H | D44: 74 | E44: 26.2 | F44: 9589.2 | H44: POTEN40H74 | I44: 36.57 | J44: 38.83 | K44: 49.13 | L44: 51.43 | M44: 57.41 | N44: 60.77 | O44: 65.22 | P44: 70.83 | Q44: 78.98 | R44: 87.23 | S44: 94.54 | T44: 99.17 | U44: 104.6 | V44: 132.61 | W44: 160.59 | X44: 208.73 | Z44: ASCENDIENTES75H74 | AA44: 75 | AB44: H | AC44: 74 | AD44: 281.09 | AE44: 102878.94 | AG44: POT- ASCENDIENTES75H74 | AH44: 1098.6 | AI44: 845.05 | AJ44: 697.77 | AK44: 550.51 | AL44: 521.85 | AM44: 497.42 | AN44: 458.73 | AO44: 415.99 | AP44: 372.42 | AQ44: 343.1 | AR44: 319.61 | AS44: 302.3 | AT44: 270.66 | AU44: 258.75 | AV44: 204.24 | AW44: 194.49
A45: 41H74 | B45: 41 | C45: H | D45: 74 | E45: 26.2 | F45: 9589.2 | H45: POTEN41H74 | I45: 36.57 | J45: 38.83 | K45: 49.13 | L45: 51.43 | M45: 57.41 | N45: 60.77 | O45: 65.22 | P45: 70.83 | Q45: 78.98 | R45: 87.23 | S45: 94.54 | T45: 99.17 | U45: 104.6 | V45: 132.61 | W45: 160.59 | X45: 208.73 | Z45: ASCENDIENTES76H74 | AA45: 76 | AB45: H | AC45: 74 | AD45: 281.09 | AE45: 102878.94 | AG45: POT- ASCENDIENTES76H74 | AH45: 1321.27 | AI45: 1016.36 | AJ45: 839.23 | AK45: 662.07 | AL45: 627.47 | AM45: 598.35 | AN45: 551.71 | AO45: 500.18 | AP45: 448.04 | AQ45: 412.58 | AR45: 384.54 | AS45: 363.37 | AT45: 325.62 | AU45: 311.18 | AV45: 245.71 | AW45: 233.95
A46: 42H74 | B46: 42 | C46: H | D46: 74 | E46: 26.2 | F46: 9589.2 | H46: POTEN42H74 | I46: 36.57 | J46: 38.83 | K46: 49.13 | L46: 51.43 | M46: 57.41 | N46: 60.77 | O46: 65.22 | P46: 70.83 | Q46: 78.98 | R46: 87.23 | S46: 94.54 | T46: 99.17 | U46: 104.6 | V46: 132.61 | W46: 160.59 | X46: 208.73 | Z46: ASCENDIENTES77H74 | AA46: 77 | AB46: H | AC46: 74 | AD46: 281.09 | AE46: 102878.94 | AG46: POT- ASCENDIENTES77H74 | AH46: 1321.27 | AI46: 1016.36 | AJ46: 839.23 | AK46: 662.07 | AL46: 627.47 | AM46: 598.35 | AN46: 551.71 | AO46: 500.18 | AP46: 448.04 | AQ46: 412.58 | AR46: 384.54 | AS46: 363.37 | AT46: 325.62 | AU46: 311.18 | AV46: 245.71 | AW46: 233.95
A47: 43H74 | B47: 43 | C47: H | D47: 74 | E47: 26.2 | F47: 9589.2 | H47: POTEN43H74 | I47: 36.57 | J47: 38.83 | K47: 49.13 | L47: 51.43 | M47: 57.41 | N47: 60.77 | O47: 65.22 | P47: 70.83 | Q47: 78.98 | R47: 87.23 | S47: 94.54 | T47: 99.17 | U47: 104.6 | V47: 132.61 | W47: 160.59 | X47: 208.73 | Z47: ASCENDIENTES78H74 | AA47: 78 | AB47: H | AC47: 74 | AD47: 281.09 | AE47: 102878.94 | AG47: POT- ASCENDIENTES78H74 | AH47: 1321.27 | AI47: 1016.36 | AJ47: 839.23 | AK47: 662.07 | AL47: 627.47 | AM47: 598.35 | AN47: 551.71 | AO47: 500.18 | AP47: 448.04 | AQ47: 412.58 | AR47: 384.54 | AS47: 363.37 | AT47: 325.62 | AU47: 311.18 | AV47: 245.71 | AW47: 233.95
A48: 44H74 | B48: 44 | C48: H | D48: 74 | E48: 26.2 | F48: 9589.2 | H48: POTEN44H74 | I48: 36.57 | J48: 38.83 | K48: 49.13 | L48: 51.43 | M48: 57.41 | N48: 60.77 | O48: 65.22 | P48: 70.83 | Q48: 78.98 | R48: 87.23 | S48: 94.54 | T48: 99.17 | U48: 104.6 | V48: 132.61 | W48: 160.59 | X48: 208.73 | Z48: ASCENDIENTES79H74 | AA48: 79 | AB48: H | AC48: 74 | AD48: 281.09 | AE48: 102878.94 | AG48: POT- ASCENDIENTES79H74 | AH48: 1321.27 | AI48: 1016.36 | AJ48: 839.23 | AK48: 662.07 | AL48: 627.47 | AM48: 598.35 | AN48: 551.71 | AO48: 500.18 | AP48: 448.04 | AQ48: 412.58 | AR48: 384.54 | AS48: 363.37 | AT48: 325.62 | AU48: 311.18 | AV48: 245.71 | AW48: 233.95
A49: 45H74 | B49: 45 | C49: H | D49: 74 | E49: 32.34 | F49: 11836.44 | H49: POTEN45H74 | I49: 36.57 | J49: 38.83 | K49: 49.13 | L49: 51.43 | M49: 57.41 | N49: 60.77 | O49: 65.22 | P49: 70.83 | Q49: 78.98 | R49: 87.23 | S49: 94.54 | T49: 99.17 | U49: 104.6 | V49: 132.61 | W49: 160.59 | X49: 208.73 | Z49: ASCENDIENTES80H74 | AA49: 80 | AB49: H | AC49: 74 | AD49: 281.09 | AE49: 102878.94 | AG49: POT- ASCENDIENTES80H74 | AH49: 1321.27 | AI49: 1016.36 | AJ49: 839.23 | AK49: 662.07 | AL49: 627.47 | AM49: 598.35 | AN49: 551.71 | AO49: 500.18 | AP49: 448.04 | AQ49: 412.58 | AR49: 384.54 | AS49: 363.37 | AT49: 325.62 | AU49: 311.18 | AV49: 245.71 | AW49: 233.95
A50: 46H74 | B50: 46 | C50: H | D50: 74 | E50: 32.34 | F50: 11836.44 | H50: POTEN46H74 | I50: 36.57 | J50: 38.83 | K50: 49.13 | L50: 51.43 | M50: 57.41 | N50: 60.77 | O50: 65.22 | P50: 70.83 | Q50: 78.98 | R50: 87.23 | S50: 94.54 | T50: 99.17 | U50: 104.6 | V50: 132.61 | W50: 160.59 | X50: 208.73 | Z50: ASCENDIENTES81H74 | AA50: 81 | AB50: H | AC50: 74 | AD50: 281.09 | AE50: 102878.94 | AG50: POT- ASCENDIENTES81H74 | AH50: 1453.36 | AI50: 1117.94 | AJ50: 923.12 | AK50: 728.39 | AL50: 690.28 | AM50: 658.18 | AN50: 606.84 | AO50: 550.34 | AP50: 492.79 | AQ50: 453.92 | AR50: 422.84 | AS50: 399.81 | AT50: 358.09 | AU50: 342.27 | AV50: 270.12 | AW50: 257.2
A51: 47H74 | B51: 47 | C51: H | D51: 74 | E51: 32.34 | F51: 11836.44 | H51: POTEN47H74 | I51: 36.57 | J51: 38.83 | K51: 49.13 | L51: 51.43 | M51: 57.41 | N51: 60.77 | O51: 65.22 | P51: 70.83 | Q51: 78.98 | R51: 87.23 | S51: 94.54 | T51: 99.17 | U51: 104.6 | V51: 132.61 | W51: 160.59 | X51: 208.73 | Z51: ASCENDIENTES82H74 | AA51: 82 | AB51: H | AC51: 74 | AD51: 281.09 | AE51: 102878.94 | AG51: POT- ASCENDIENTES82H74 | AH51: 1453.36 | AI51: 1117.94 | AJ51: 923.12 | AK51: 728.39 | AL51: 690.28 | AM51: 658.18 | AN51: 606.84 | AO51: 550.34 | AP51: 492.79 | AQ51: 453.92 | AR51: 422.84 | AS51: 399.81 | AT51: 358.09 | AU51: 342.27 | AV51: 270.12 | AW51: 257.2
A52: 48H74 | B52: 48 | C52: H | D52: 74 | E52: 32.34 | F52: 11836.44 | H52: POTEN48H74 | I52: 36.57 | J52: 38.83 | K52: 49.13 | L52: 51.43 | M52: 57.41 | N52: 60.77 | O52: 65.22 | P52: 70.83 | Q52: 78.98 | R52: 87.23 | S52: 94.54 | T52: 99.17 | U52: 104.6 | V52: 132.61 | W52: 160.59 | X52: 208.73 | Z52: ASCENDIENTES83H74 | AA52: 83 | AB52: H | AC52: 74 | AD52: 281.09 | AE52: 102878.94 | AG52: POT- ASCENDIENTES83H74 | AH52: 1453.36 | AI52: 1117.94 | AJ52: 923.12 | AK52: 728.39 | AL52: 690.28 | AM52: 658.18 | AN52: 606.84 | AO52: 550.34 | AP52: 492.79 | AQ52: 453.92 | AR52: 422.84 | AS52: 399.81 | AT52: 358.09 | AU52: 342.27 | AV52: 270.12 | AW52: 257.2
A53: 49H74 | B53: 49 | C53: H | D53: 74 | E53: 32.34 | F53: 11836.44 | H53: POTEN49H74 | I53: 36.57 | J53: 38.83 | K53: 49.13 | L53: 51.43 | M53: 57.41 | N53: 60.77 | O53: 65.22 | P53: 70.83 | Q53: 78.98 | R53: 87.23 | S53: 94.54 | T53: 99.17 | U53: 104.6 | V53: 132.61 | W53: 160.59 | X53: 208.73 | Z53: ASCENDIENTES84H74 | AA53: 84 | AB53: H | AC53: 74 | AD53: 281.09 | AE53: 102878.94 | AG53: POT- ASCENDIENTES84H74 | AH53: 1453.36 | AI53: 1117.94 | AJ53: 923.12 | AK53: 728.39 | AL53: 690.28 | AM53: 658.18 | AN53: 606.84 | AO53: 550.34 | AP53: 492.79 | AQ53: 453.92 | AR53: 422.84 | AS53: 399.81 | AT53: 358.09 | AU53: 342.27 | AV53: 270.12 | AW53: 257.2
A54: 50H74 | B54: 50 | C54: H | D54: 74 | E54: 41.91 | F54: 15339.06 | H54: POTEN50H74 | I54: 36.57 | J54: 38.83 | K54: 49.13 | L54: 51.43 | M54: 57.41 | N54: 60.77 | O54: 65.22 | P54: 70.83 | Q54: 78.98 | R54: 87.23 | S54: 94.54 | T54: 99.17 | U54: 104.6 | V54: 132.61 | W54: 160.59 | X54: 208.73 | Z54: ASCENDIENTES85H74 | AA54: 85 | AB54: H | AC54: 74 | AD54: 281.09 | AE54: 102878.94 | AG54: POT- ASCENDIENTES85H74 | AH54: 1453.36 | AI54: 1117.94 | AJ54: 923.12 | AK54: 728.39 | AL54: 690.28 | AM54: 658.18 | AN54: 606.84 | AO54: 550.34 | AP54: 492.79 | AQ54: 453.92 | AR54: 422.84 | AS54: 399.81 | AT54: 358.09 | AU54: 342.27 | AV54: 270.12 | AW54: 257.2
A55: 51H74 | B55: 51 | C55: H | D55: 74 | E55: 41.91 | F55: 15339.06 | H55: POTEN51H74 | I55: 36.57 | J55: 38.83 | K55: 49.13 | L55: 51.43 | M55: 57.41 | N55: 60.77 | O55: 65.22 | P55: 70.83 | Q55: 78.98 | R55: 87.23 | S55: 94.54 | T55: 99.17 | U55: 104.6 | V55: 132.61 | W55: 160.59 | X55: 208.73 | Z55: ASCENDIENTES35H111 | AA55: 35 | AB55: H | AC55: 111 | AD55: 286.55 | AE55: 104877.3 | AG55: POT- ASCENDIENTES35H111 | AH55: 801.29 | AI55: 616.38 | AJ55: 497.69 | AK55: 379.09 | AL55: 356.26 | AM55: 337.29 | AN55: 307.03 | AO55: 269.75 | AP55: 240.61 | AQ55: 227.38 | AR55: 204.33 | AS55: 184.44 | AT55: 170.03 | AU55: 144.32
A56: 52H74 | B56: 52 | C56: H | D56: 74 | E56: 41.91 | F56: 15339.06 | H56: POTEN52H74 | I56: 36.57 | J56: 38.83 | K56: 49.13 | L56: 51.43 | M56: 57.41 | N56: 60.77 | O56: 65.22 | P56: 70.83 | Q56: 78.98 | R56: 87.23 | S56: 94.54 | T56: 99.17 | U56: 104.6 | V56: 132.61 | W56: 160.59 | X56: 208.73 | Z56: ASCENDIENTES36H111 | AA56: 36 | AB56: H | AC56: 111 | AD56: 286.55 | AE56: 104877.3 | AG56: POT- ASCENDIENTES36H111 | AH56: 801.29 | AI56: 616.38 | AJ56: 497.69 | AK56: 379.09 | AL56: 356.26 | AM56: 337.29 | AN56: 307.03 | AO56: 269.75 | AP56: 240.61 | AQ56: 227.38 | AR56: 204.33 | AS56: 184.44 | AT56: 170.03 | AU56: 144.32
A57: 53H74 | B57: 53 | C57: H | D57: 74 | E57: 41.91 | F57: 15339.06 | H57: POTEN53H74 | I57: 36.57 | J57: 38.83 | K57: 49.13 | L57: 51.43 | M57: 57.41 | N57: 60.77 | O57: 65.22 | P57: 70.83 | Q57: 78.98 | R57: 87.23 | S57: 94.54 | T57: 99.17 | U57: 104.6 | V57: 132.61 | W57: 160.59 | X57: 208.73 | Z57: ASCENDIENTES37H111 | AA57: 37 | AB57: H | AC57: 111 | AD57: 286.55 | AE57: 104877.3 | AG57: POT- ASCENDIENTES37H111 | AH57: 801.29 | AI57: 616.38 | AJ57: 497.69 | AK57: 379.09 | AL57: 356.26 | AM57: 337.29 | AN57: 307.03 | AO57: 269.75 | AP57: 240.61 | AQ57: 227.38 | AR57: 204.33 | AS57: 184.44 | AT57: 170.03 | AU57: 144.32
A58: 54H74 | B58: 54 | C58: H | D58: 74 | E58: 41.91 | F58: 15339.06 | H58: POTEN54H74 | I58: 36.57 | J58: 38.83 | K58: 49.13 | L58: 51.43 | M58: 57.41 | N58: 60.77 | O58: 65.22 | P58: 70.83 | Q58: 78.98 | R58: 87.23 | S58: 94.54 | T58: 99.17 | U58: 104.6 | V58: 132.61 | W58: 160.59 | X58: 208.73 | Z58: ASCENDIENTES38H111 | AA58: 38 | AB58: H | AC58: 111 | AD58: 286.55 | AE58: 104877.3 | AG58: POT- ASCENDIENTES38H111 | AH58: 801.29 | AI58: 616.38 | AJ58: 497.69 | AK58: 379.09 | AL58: 356.26 | AM58: 337.29 | AN58: 307.03 | AO58: 269.75 | AP58: 240.61 | AQ58: 227.38 | AR58: 204.33 | AS58: 184.44 | AT58: 170.03 | AU58: 144.32
A59: 55H74 | B59: 55 | C59: H | D59: 74 | E59: 50.74 | F59: 18570.84 | H59: POTEN55H74 | I59: 36.57 | J59: 38.83 | K59: 49.13 | L59: 51.43 | M59: 57.41 | N59: 60.77 | O59: 65.22 | P59: 70.83 | Q59: 78.98 | R59: 87.23 | S59: 94.54 | T59: 99.17 | U59: 104.6 | V59: 132.61 | W59: 160.59 | X59: 208.73 | Z59: ASCENDIENTES39H111 | AA59: 39 | AB59: H | AC59: 111 | AD59: 286.55 | AE59: 104877.3 | AG59: POT- ASCENDIENTES39H111 | AH59: 801.29 | AI59: 616.38 | AJ59: 497.69 | AK59: 379.09 | AL59: 356.26 | AM59: 337.29 | AN59: 307.03 | AO59: 269.75 | AP59: 240.61 | AQ59: 227.38 | AR59: 204.33 | AS59: 184.44 | AT59: 170.03 | AU59: 144.32
A60: 56H74 | B60: 56 | C60: H | D60: 74 | E60: 50.74 | F60: 18570.84 | H60: POTEN56H74 | I60: 36.57 | J60: 38.83 | K60: 49.13 | L60: 51.43 | M60: 57.41 | N60: 60.77 | O60: 65.22 | P60: 70.83 | Q60: 78.98 | R60: 87.23 | S60: 94.54 | T60: 99.17 | U60: 104.6 | V60: 132.61 | W60: 160.59 | X60: 208.73 | Z60: ASCENDIENTES40H111 | AA60: 40 | AB60: H | AC60: 111 | AD60: 286.55 | AE60: 104877.3 | AG60: POT- ASCENDIENTES40H111 | AH60: 801.29 | AI60: 616.38 | AJ60: 497.69 | AK60: 379.09 | AL60: 356.26 | AM60: 337.29 | AN60: 307.03 | AO60: 269.75 | AP60: 240.61 | AQ60: 227.38 | AR60: 204.33 | AS60: 184.44 | AT60: 170.03 | AU60: 144.32
A61: 57H74 | B61: 57 | C61: H | D61: 74 | E61: 50.74 | F61: 18570.84 | H61: POTEN57H74 | I61: 36.57 | J61: 38.83 | K61: 49.13 | L61: 51.43 | M61: 57.41 | N61: 60.77 | O61: 65.22 | P61: 70.83 | Q61: 78.98 | R61: 87.23 | S61: 94.54 | T61: 99.17 | U61: 104.6 | V61: 132.61 | W61: 160.59 | X61: 208.73 | Z61: ASCENDIENTES41H111 | AA61: 41 | AB61: H | AC61: 111 | AD61: 286.55 | AE61: 104877.3 | AG61: POT- ASCENDIENTES41H111 | AH61: 801.29 | AI61: 616.38 | AJ61: 497.69 | AK61: 379.09 | AL61: 356.26 | AM61: 337.29 | AN61: 307.03 | AO61: 269.75 | AP61: 240.61 | AQ61: 227.38 | AR61: 204.33 | AS61: 184.44 | AT61: 170.03 | AU61: 144.32
A62: 58H74 | B62: 58 | C62: H | D62: 74 | E62: 50.74 | F62: 18570.84 | H62: POTEN58H74 | I62: 36.57 | J62: 38.83 | K62: 49.13 | L62: 51.43 | M62: 57.41 | N62: 60.77 | O62: 65.22 | P62: 70.83 | Q62: 78.98 | R62: 87.23 | S62: 94.54 | T62: 99.17 | U62: 104.6 | V62: 132.61 | W62: 160.59 | X62: 208.73 | Z62: ASCENDIENTES42H111 | AA62: 42 | AB62: H | AC62: 111 | AD62: 286.55 | AE62: 104877.3 | AG62: POT- ASCENDIENTES42H111 | AH62: 801.29 | AI62: 616.38 | AJ62: 497.69 | AK62: 379.09 | AL62: 356.26 | AM62: 337.29 | AN62: 307.03 | AO62: 269.75 | AP62: 240.61 | AQ62: 227.38 | AR62: 204.33 | AS62: 184.44 | AT62: 170.03 | AU62: 144.32
A63: 59H74 | B63: 59 | C63: H | D63: 74 | E63: 50.74 | F63: 18570.84 | H63: POTEN59H74 | I63: 36.57 | J63: 38.83 | K63: 49.13 | L63: 51.43 | M63: 57.41 | N63: 60.77 | O63: 65.22 | P63: 70.83 | Q63: 78.98 | R63: 87.23 | S63: 94.54 | T63: 99.17 | U63: 104.6 | V63: 132.61 | W63: 160.59 | X63: 208.73 | Z63: ASCENDIENTES43H111 | AA63: 43 | AB63: H | AC63: 111 | AD63: 286.55 | AE63: 104877.3 | AG63: POT- ASCENDIENTES43H111 | AH63: 801.29 | AI63: 616.38 | AJ63: 497.69 | AK63: 379.09 | AL63: 356.26 | AM63: 337.29 | AN63: 307.03 | AO63: 269.75 | AP63: 240.61 | AQ63: 227.38 | AR63: 204.33 | AS63: 184.44 | AT63: 170.03 | AU63: 144.32
A64: 60H74 | B64: 60 | C64: H | D64: 74 | E64: 63.14 | F64: 23109.24 | H64: POTEN60H74 | I64: 36.57 | J64: 38.83 | K64: 49.13 | L64: 51.43 | M64: 57.41 | N64: 60.77 | O64: 65.22 | P64: 70.83 | Q64: 78.98 | R64: 87.23 | S64: 94.54 | T64: 99.17 | U64: 104.6 | V64: 132.61 | W64: 160.59 | X64: 208.73 | Z64: ASCENDIENTES44H111 | AA64: 44 | AB64: H | AC64: 111 | AD64: 286.55 | AE64: 104877.3 | AG64: POT- ASCENDIENTES44H111 | AH64: 801.29 | AI64: 616.38 | AJ64: 497.69 | AK64: 379.09 | AL64: 356.26 | AM64: 337.29 | AN64: 307.03 | AO64: 269.75 | AP64: 240.61 | AQ64: 227.38 | AR64: 204.33 | AS64: 184.44 | AT64: 170.03 | AU64: 144.32
A65: 61H74 | B65: 61 | C65: H | D65: 74 | E65: 63.14 | F65: 23109.24 | H65: POTEN61H74 | I65: 36.57 | J65: 38.83 | K65: 49.13 | L65: 51.43 | M65: 57.41 | N65: 60.77 | O65: 65.22 | P65: 70.83 | Q65: 78.98 | R65: 87.23 | S65: 94.54 | T65: 99.17 | U65: 104.6 | V65: 132.61 | W65: 160.59 | X65: 208.73 | Z65: ASCENDIENTES45H111 | AA65: 45 | AB65: H | AC65: 111 | AD65: 286.55 | AE65: 104877.3 | AG65: POT- ASCENDIENTES45H111 | AH65: 801.29 | AI65: 616.38 | AJ65: 497.69 | AK65: 379.09 | AL65: 356.26 | AM65: 337.29 | AN65: 307.03 | AO65: 269.75 | AP65: 240.61 | AQ65: 227.38 | AR65: 204.33 | AS65: 184.44 | AT65: 170.03 | AU65: 144.32
A66: 62H74 | B66: 62 | C66: H | D66: 74 | E66: 63.14 | F66: 23109.24 | H66: POTEN62H74 | I66: 36.57 | J66: 38.83 | K66: 49.13 | L66: 51.43 | M66: 57.41 | N66: 60.77 | O66: 65.22 | P66: 70.83 | Q66: 78.98 | R66: 87.23 | S66: 94.54 | T66: 99.17 | U66: 104.6 | V66: 132.61 | W66: 160.59 | X66: 208.73 | Z66: ASCENDIENTES46H111 | AA66: 46 | AB66: H | AC66: 111 | AD66: 286.55 | AE66: 104877.3 | AG66: POT- ASCENDIENTES46H111 | AH66: 801.29 | AI66: 616.38 | AJ66: 497.69 | AK66: 379.09 | AL66: 356.26 | AM66: 337.29 | AN66: 307.03 | AO66: 269.75 | AP66: 240.61 | AQ66: 227.38 | AR66: 204.33 | AS66: 184.44 | AT66: 170.03 | AU66: 144.32
A67: 63H74 | B67: 63 | C67: H | D67: 74 | E67: 63.14 | F67: 23109.24 | H67: POTEN63H74 | I67: 36.57 | J67: 38.83 | K67: 49.13 | L67: 51.43 | M67: 57.41 | N67: 60.77 | O67: 65.22 | P67: 70.83 | Q67: 78.98 | R67: 87.23 | S67: 94.54 | T67: 99.17 | U67: 104.6 | V67: 132.61 | W67: 160.59 | X67: 208.73 | Z67: ASCENDIENTES47H111 | AA67: 47 | AB67: H | AC67: 111 | AD67: 286.55 | AE67: 104877.3 | AG67: POT- ASCENDIENTES47H111 | AH67: 801.29 | AI67: 616.38 | AJ67: 497.69 | AK67: 379.09 | AL67: 356.26 | AM67: 337.29 | AN67: 307.03 | AO67: 269.75 | AP67: 240.61 | AQ67: 227.38 | AR67: 204.33 | AS67: 184.44 | AT67: 170.03 | AU67: 144.32
A68: 64H74 | B68: 64 | C68: H | D68: 74 | E68: 63.14 | F68: 23109.24 | H68: POTEN64H74 | I68: 36.57 | J68: 38.83 | K68: 49.13 | L68: 51.43 | M68: 57.41 | N68: 60.77 | O68: 65.22 | P68: 70.83 | Q68: 78.98 | R68: 87.23 | S68: 94.54 | T68: 99.17 | U68: 104.6 | V68: 132.61 | W68: 160.59 | X68: 208.73 | Z68: ASCENDIENTES48H111 | AA68: 48 | AB68: H | AC68: 111 | AD68: 286.55 | AE68: 104877.3 | AG68: POT- ASCENDIENTES48H111 | AH68: 801.29 | AI68: 616.38 | AJ68: 497.69 | AK68: 379.09 | AL68: 356.26 | AM68: 337.29 | AN68: 307.03 | AO68: 269.75 | AP68: 240.61 | AQ68: 227.38 | AR68: 204.33 | AS68: 184.44 | AT68: 170.03 | AU68: 144.32
A69: =+CONCATENATE($B69,$C69,$D69,) -> 65H74 | B69: 65 | C69: H | D69: 74 | E69: 87.92 | F69: =+E69*366 -> 32178.72 | H69: =+CONCATENATE($I$2,$B69,$C69,$D69,) -> POTEN65H74 | I69: 36.57 | J69: 38.83 | K69: 49.13 | L69: 51.43 | M69: 57.41 | N69: 60.77 | O69: 65.22 | P69: 70.83 | Q69: 78.98 | R69: 87.23 | S69: 94.54 | T69: 99.17 | U69: 104.6 | V69: 132.61 | W69: 160.59 | X69: 208.73 | Z69: =+CONCATENATE($AA$2,$AA69,$AB69,$AC69,) -> ASCENDIENTES49H111 | AA69: 49 | AB69: H | AC69: 111 | AD69: 286.55 | AE69: =+AD69*366 -> 104877.3 | AG69: =+CONCATENATE($AH$2,$AA69,$AB69,$AC69,) -> POT- ASCENDIENTES49H111 | AH69: 801.29 | AI69: 616.38 | AJ69: 497.69 | AK69: 379.09 | AL69: 356.26 | AM69: 337.29 | AN69: 307.03 | AO69: 269.75 | AP69: 240.61 | AQ69: 227.38 | AR69: 204.33 | AS69: 184.44 | AT69: 170.03 | AU69: 144.32
A70: 66H74 | B70: 66 | C70: H | D70: 74 | E70: 87.92 | F70: 32178.72 | H70: POTEN66H74 | I70: 36.57 | J70: 38.83 | K70: 49.13 | L70: 51.43 | M70: 57.41 | N70: 60.77 | O70: 65.22 | P70: 70.83 | Q70: 78.98 | R70: 87.23 | S70: 94.54 | T70: 99.17 | U70: 104.6 | V70: 132.61 | W70: 160.59 | X70: 208.73 | Z70: ASCENDIENTES50H111 | AA70: 50 | AB70: H | AC70: 111 | AD70: 286.55 | AE70: 104877.3 | AG70: POT- ASCENDIENTES50H111 | AH70: 801.29 | AI70: 616.38 | AJ70: 497.69 | AK70: 379.09 | AL70: 356.26 | AM70: 337.29 | AN70: 307.03 | AO70: 269.75 | AP70: 240.61 | AQ70: 227.38 | AR70: 204.33 | AS70: 184.44 | AT70: 170.03 | AU70: 144.32
A71: 67H74 | B71: 67 | C71: H | D71: 74 | E71: 87.92 | F71: 32178.72 | H71: POTEN67H74 | I71: 36.57 | J71: 38.83 | K71: 49.13 | L71: 51.43 | M71: 57.41 | N71: 60.77 | O71: 65.22 | P71: 70.83 | Q71: 78.98 | R71: 87.23 | S71: 94.54 | T71: 99.17 | U71: 104.6 | V71: 132.61 | W71: 160.59 | X71: 208.73 | Z71: ASCENDIENTES51H111 | AA71: 51 | AB71: H | AC71: 111 | AD71: 286.55 | AE71: 104877.3 | AG71: POT- ASCENDIENTES51H111 | AH71: 801.29 | AI71: 616.38 | AJ71: 497.69 | AK71: 379.09 | AL71: 356.26 | AM71: 337.29 | AN71: 307.03 | AO71: 269.75 | AP71: 240.61 | AQ71: 227.38 | AR71: 204.33 | AS71: 184.44 | AT71: 170.03 | AU71: 144.32
A72: 68H74 | B72: 68 | C72: H | D72: 74 | E72: 87.92 | F72: 32178.72 | H72: POTEN68H74 | I72: 36.57 | J72: 38.83 | K72: 49.13 | L72: 51.43 | M72: 57.41 | N72: 60.77 | O72: 65.22 | P72: 70.83 | Q72: 78.98 | R72: 87.23 | S72: 94.54 | T72: 99.17 | U72: 104.6 | V72: 132.61 | W72: 160.59 | X72: 208.73 | Z72: ASCENDIENTES52H111 | AA72: 52 | AB72: H | AC72: 111 | AD72: 286.55 | AE72: 104877.3 | AG72: POT- ASCENDIENTES52H111 | AH72: 801.29 | AI72: 616.38 | AJ72: 497.69 | AK72: 379.09 | AL72: 356.26 | AM72: 337.29 | AN72: 307.03 | AO72: 269.75 | AP72: 240.61 | AQ72: 227.38 | AR72: 204.33 | AS72: 184.44 | AT72: 170.03 | AU72: 144.32
A73: 69H74 | B73: 69 | C73: H | D73: 74 | E73: 87.92 | F73: 32178.72 | H73: POTEN69H74 | I73: 36.57 | J73: 38.83 | K73: 49.13 | L73: 51.43 | M73: 57.41 | N73: 60.77 | O73: 65.22 | P73: 70.83 | Q73: 78.98 | R73: 87.23 | S73: 94.54 | T73: 99.17 | U73: 104.6 | V73: 132.61 | W73: 160.59 | X73: 208.73 | Z73: ASCENDIENTES53H111 | AA73: 53 | AB73: H | AC73: 111 | AD73: 286.55 | AE73: 104877.3 | AG73: POT- ASCENDIENTES53H111 | AH73: 801.29 | AI73: 616.38 | AJ73: 497.69 | AK73: 379.09 | AL73: 356.26 | AM73: 337.29 | AN73: 307.03 | AO73: 269.75 | AP73: 240.61 | AQ73: 227.38 | AR73: 204.33 | AS73: 184.44 | AT73: 170.03 | AU73: 144.32
A74: 70H74 | B74: 70 | C74: H | D74: 74 | E74: 117.98 | F74: 43180.68 | H74: POTEN70H74 | I74: 36.57 | J74: 38.83 | K74: 49.13 | L74: 51.43 | M74: 57.41 | N74: 60.77 | O74: 65.22 | P74: 70.83 | Q74: 78.98 | R74: 87.23 | S74: 94.54 | T74: 99.17 | U74: 104.6 | V74: 132.61 | W74: 160.59 | X74: 208.73 | Z74: ASCENDIENTES54H111 | AA74: 54 | AB74: H | AC74: 111 | AD74: 286.55 | AE74: 104877.3 | AG74: POT- ASCENDIENTES54H111 | AH74: 801.29 | AI74: 616.38 | AJ74: 497.69 | AK74: 379.09 | AL74: 356.26 | AM74: 337.29 | AN74: 307.03 | AO74: 269.75 | AP74: 240.61 | AQ74: 227.38 | AR74: 204.33 | AS74: 184.44 | AT74: 170.03 | AU74: 144.32
A75: 71H74 | B75: 71 | C75: H | D75: 74 | E75: 117.98 | F75: 43180.68 | H75: POTEN71H74 | I75: 36.57 | J75: 38.83 | K75: 49.13 | L75: 51.43 | M75: 57.41 | N75: 60.77 | O75: 65.22 | P75: 70.83 | Q75: 78.98 | R75: 87.23 | S75: 94.54 | T75: 99.17 | U75: 104.6 | V75: 132.61 | W75: 160.59 | X75: 208.73 | Z75: ASCENDIENTES55H111 | AA75: 55 | AB75: H | AC75: 111 | AD75: 286.55 | AE75: 104877.3 | AG75: POT- ASCENDIENTES55H111 | AH75: 801.29 | AI75: 616.38 | AJ75: 497.69 | AK75: 379.09 | AL75: 356.26 | AM75: 337.29 | AN75: 307.03 | AO75: 269.75 | AP75: 240.61 | AQ75: 227.38 | AR75: 204.33 | AS75: 184.44 | AT75: 170.03 | AU75: 144.32
A76: 72H74 | B76: 72 | C76: H | D76: 74 | E76: 117.98 | F76: 43180.68 | H76: POTEN72H74 | I76: 36.57 | J76: 38.83 | K76: 49.13 | L76: 51.43 | M76: 57.41 | N76: 60.77 | O76: 65.22 | P76: 70.83 | Q76: 78.98 | R76: 87.23 | S76: 94.54 | T76: 99.17 | U76: 104.6 | V76: 132.61 | W76: 160.59 | X76: 208.73 | Z76: ASCENDIENTES56H111 | AA76: 56 | AB76: H | AC76: 111 | AD76: 286.55 | AE76: 104877.3 | AG76: POT- ASCENDIENTES56H111 | AH76: 801.29 | AI76: 616.38 | AJ76: 497.69 | AK76: 379.09 | AL76: 356.26 | AM76: 337.29 | AN76: 307.03 | AO76: 269.75 | AP76: 240.61 | AQ76: 227.38 | AR76: 204.33 | AS76: 184.44 | AT76: 170.03 | AU76: 144.32
A77: 73H74 | B77: 73 | C77: H | D77: 74 | E77: 117.98 | F77: 43180.68 | H77: POTEN73H74 | I77: 36.57 | J77: 38.83 | K77: 49.13 | L77: 51.43 | M77: 57.41 | N77: 60.77 | O77: 65.22 | P77: 70.83 | Q77: 78.98 | R77: 87.23 | S77: 94.54 | T77: 99.17 | U77: 104.6 | V77: 132.61 | W77: 160.59 | X77: 208.73 | Z77: ASCENDIENTES57H111 | AA77: 57 | AB77: H | AC77: 111 | AD77: 286.55 | AE77: 104877.3 | AG77: POT- ASCENDIENTES57H111 | AH77: 801.29 | AI77: 616.38 | AJ77: 497.69 | AK77: 379.09 | AL77: 356.26 | AM77: 337.29 | AN77: 307.03 | AO77: 269.75 | AP77: 240.61 | AQ77: 227.38 | AR77: 204.33 | AS77: 184.44 | AT77: 170.03 | AU77: 144.32
A78: 74H74 | B78: 74 | C78: H | D78: 74 | E78: 117.98 | F78: 43180.68 | H78: POTEN74H74 | I78: 36.57 | J78: 38.83 | K78: 49.13 | L78: 51.43 | M78: 57.41 | N78: 60.77 | O78: 65.22 | P78: 70.83 | Q78: 78.98 | R78: 87.23 | S78: 94.54 | T78: 99.17 | U78: 104.6 | V78: 132.61 | W78: 160.59 | X78: 208.73 | Z78: ASCENDIENTES58H111 | AA78: 58 | AB78: H | AC78: 111 | AD78: 286.55 | AE78: 104877.3 | AG78: POT- ASCENDIENTES58H111 | AH78: 801.29 | AI78: 616.38 | AJ78: 497.69 | AK78: 379.09 | AL78: 356.26 | AM78: 337.29 | AN78: 307.03 | AO78: 269.75 | AP78: 240.61 | AQ78: 227.38 | AR78: 204.33 | AS78: 184.44 | AT78: 170.03 | AU78: 144.32
A79: 75H74 | B79: 75 | C79: H | D79: 74 | E79: 144.79 | F79: 52993.14 | H79: POTEN75H74 | I79: 36.57 | J79: 38.83 | K79: 49.13 | L79: 51.43 | M79: 57.41 | N79: 60.77 | O79: 65.22 | P79: 70.83 | Q79: 78.98 | R79: 87.23 | S79: 94.54 | T79: 99.17 | U79: 104.6 | V79: 132.61 | W79: 160.59 | X79: 208.73 | Z79: ASCENDIENTES59H111 | AA79: 59 | AB79: H | AC79: 111 | AD79: 286.55 | AE79: 104877.3 | AG79: POT- ASCENDIENTES59H111 | AH79: 801.29 | AI79: 616.38 | AJ79: 497.69 | AK79: 379.09 | AL79: 356.26 | AM79: 337.29 | AN79: 307.03 | AO79: 269.75 | AP79: 240.61 | AQ79: 227.38 | AR79: 204.33 | AS79: 184.44 | AT79: 170.03 | AU79: 144.32
A80: 76H74 | B80: 76 | C80: H | D80: 74 | E80: 144.79 | F80: 52993.14 | H80: POTEN76H74 | I80: 36.57 | J80: 38.83 | K80: 49.13 | L80: 51.43 | M80: 57.41 | N80: 60.77 | O80: 65.22 | P80: 70.83 | Q80: 78.98 | R80: 87.23 | S80: 94.54 | T80: 99.17 | U80: 104.6 | V80: 132.61 | W80: 160.59 | X80: 208.73 | Z80: ASCENDIENTES60H111 | AA80: 60 | AB80: H | AC80: 111 | AD80: 286.55 | AE80: 104877.3 | AG80: POT- ASCENDIENTES60H111 | AH80: 801.29 | AI80: 616.38 | AJ80: 497.69 | AK80: 379.09 | AL80: 356.26 | AM80: 337.29 | AN80: 307.03 | AO80: 269.75 | AP80: 240.61 | AQ80: 227.38 | AR80: 204.33 | AS80: 184.44 | AT80: 170.03 | AU80: 144.32
A81: 77H74 | B81: 77 | C81: H | D81: 74 | E81: 144.79 | F81: 52993.14 | H81: POTEN77H74 | I81: 36.57 | J81: 38.83 | K81: 49.13 | L81: 51.43 | M81: 57.41 | N81: 60.77 | O81: 65.22 | P81: 70.83 | Q81: 78.98 | R81: 87.23 | S81: 94.54 | T81: 99.17 | U81: 104.6 | V81: 132.61 | W81: 160.59 | X81: 208.73 | Z81: ASCENDIENTES61H111 | AA81: 61 | AB81: H | AC81: 111 | AD81: 286.55 | AE81: 104877.3 | AG81: POT- ASCENDIENTES61H111 | AH81: 801.29 | AI81: 616.38 | AJ81: 497.69 | AK81: 379.09 | AL81: 356.26 | AM81: 337.29 | AN81: 307.03 | AO81: 269.75 | AP81: 240.61 | AQ81: 227.38 | AR81: 204.33 | AS81: 184.44 | AT81: 170.03 | AU81: 144.32
A82: 78H74 | B82: 78 | C82: H | D82: 74 | E82: 144.79 | F82: 52993.14 | H82: POTEN78H74 | I82: 36.57 | J82: 38.83 | K82: 49.13 | L82: 51.43 | M82: 57.41 | N82: 60.77 | O82: 65.22 | P82: 70.83 | Q82: 78.98 | R82: 87.23 | S82: 94.54 | T82: 99.17 | U82: 104.6 | V82: 132.61 | W82: 160.59 | X82: 208.73 | Z82: ASCENDIENTES62H111 | AA82: 62 | AB82: H | AC82: 111 | AD82: 286.55 | AE82: 104877.3 | AG82: POT- ASCENDIENTES62H111 | AH82: 801.29 | AI82: 616.38 | AJ82: 497.69 | AK82: 379.09 | AL82: 356.26 | AM82: 337.29 | AN82: 307.03 | AO82: 269.75 | AP82: 240.61 | AQ82: 227.38 | AR82: 204.33 | AS82: 184.44 | AT82: 170.03 | AU82: 144.32
A83: 79H74 | B83: 79 | C83: H | D83: 74 | E83: 144.79 | F83: 52993.14 | H83: POTEN79H74 | I83: 36.57 | J83: 38.83 | K83: 49.13 | L83: 51.43 | M83: 57.41 | N83: 60.77 | O83: 65.22 | P83: 70.83 | Q83: 78.98 | R83: 87.23 | S83: 94.54 | T83: 99.17 | U83: 104.6 | V83: 132.61 | W83: 160.59 | X83: 208.73 | Z83: ASCENDIENTES63H111 | AA83: 63 | AB83: H | AC83: 111 | AD83: 286.55 | AE83: 104877.3 | AG83: POT- ASCENDIENTES63H111 | AH83: 801.29 | AI83: 616.38 | AJ83: 497.69 | AK83: 379.09 | AL83: 356.26 | AM83: 337.29 | AN83: 307.03 | AO83: 269.75 | AP83: 240.61 | AQ83: 227.38 | AR83: 204.33 | AS83: 184.44 | AT83: 170.03 | AU83: 144.32
A84: 80H74 | B84: 80 | C84: H | D84: 74 | E84: 144.79 | F84: 52993.14 | H84: POTEN80H74 | I84: 36.57 | J84: 38.83 | K84: 49.13 | L84: 51.43 | M84: 57.41 | N84: 60.77 | O84: 65.22 | P84: 70.83 | Q84: 78.98 | R84: 87.23 | S84: 94.54 | T84: 99.17 | U84: 104.6 | V84: 132.61 | W84: 160.59 | X84: 208.73 | Z84: ASCENDIENTES64H111 | AA84: 64 | AB84: H | AC84: 111 | AD84: 286.55 | AE84: 104877.3 | AG84: POT- ASCENDIENTES64H111 | AH84: 801.29 | AI84: 616.38 | AJ84: 497.69 | AK84: 379.09 | AL84: 356.26 | AM84: 337.29 | AN84: 307.03 | AO84: 269.75 | AP84: 240.61 | AQ84: 227.38 | AR84: 204.33 | AS84: 184.44 | AT84: 170.03 | AU84: 144.32
A85: 81H74 | B85: 81 | C85: H | D85: 74 | E85: 144.79 | F85: 52993.14 | H85: POTEN81H74 | I85: 36.57 | J85: 38.83 | K85: 49.13 | L85: 51.43 | M85: 57.41 | N85: 60.77 | O85: 65.22 | P85: 70.83 | Q85: 78.98 | R85: 87.23 | S85: 94.54 | T85: 99.17 | U85: 104.6 | V85: 132.61 | W85: 160.59 | X85: 208.73 | Z85: ASCENDIENTES65H111 | AA85: 65 | AB85: H | AC85: 111 | AD85: 286.55 | AE85: 104877.3 | AG85: POT- ASCENDIENTES65H111 | AH85: 801.29 | AI85: 616.38 | AJ85: 497.69 | AK85: 379.09 | AL85: 356.26 | AM85: 337.29 | AN85: 307.03 | AO85: 269.75 | AP85: 240.61 | AQ85: 227.38 | AR85: 204.33 | AS85: 184.44 | AT85: 170.03 | AU85: 144.32
A86: 82H74 | B86: 82 | C86: H | D86: 74 | E86: 144.79 | F86: 52993.14 | H86: POTEN82H74 | I86: 36.57 | J86: 38.83 | K86: 49.13 | L86: 51.43 | M86: 57.41 | N86: 60.77 | O86: 65.22 | P86: 70.83 | Q86: 78.98 | R86: 87.23 | S86: 94.54 | T86: 99.17 | U86: 104.6 | V86: 132.61 | W86: 160.59 | X86: 208.73 | Z86: ASCENDIENTES66H111 | AA86: 66 | AB86: H | AC86: 111 | AD86: 286.55 | AE86: 104877.3 | AG86: POT- ASCENDIENTES66H111 | AH86: 801.29 | AI86: 616.38 | AJ86: 497.69 | AK86: 379.09 | AL86: 356.26 | AM86: 337.29 | AN86: 307.03 | AO86: 269.75 | AP86: 240.61 | AQ86: 227.38 | AR86: 204.33 | AS86: 184.44 | AT86: 170.03 | AU86: 144.32
A87: 83H74 | B87: 83 | C87: H | D87: 74 | E87: 144.79 | F87: 52993.14 | H87: POTEN83H74 | I87: 36.57 | J87: 38.83 | K87: 49.13 | L87: 51.43 | M87: 57.41 | N87: 60.77 | O87: 65.22 | P87: 70.83 | Q87: 78.98 | R87: 87.23 | S87: 94.54 | T87: 99.17 | U87: 104.6 | V87: 132.61 | W87: 160.59 | X87: 208.73 | Z87: ASCENDIENTES67H111 | AA87: 67 | AB87: H | AC87: 111 | AD87: 286.55 | AE87: 104877.3 | AG87: POT- ASCENDIENTES67H111 | AH87: 801.29 | AI87: 616.38 | AJ87: 497.69 | AK87: 379.09 | AL87: 356.26 | AM87: 337.29 | AN87: 307.03 | AO87: 269.75 | AP87: 240.61 | AQ87: 227.38 | AR87: 204.33 | AS87: 184.44 | AT87: 170.03 | AU87: 144.32
A88: 84H74 | B88: 84 | C88: H | D88: 74 | E88: 144.79 | F88: 52993.14 | H88: POTEN84H74 | I88: 36.57 | J88: 38.83 | K88: 49.13 | L88: 51.43 | M88: 57.41 | N88: 60.77 | O88: 65.22 | P88: 70.83 | Q88: 78.98 | R88: 87.23 | S88: 94.54 | T88: 99.17 | U88: 104.6 | V88: 132.61 | W88: 160.59 | X88: 208.73 | Z88: ASCENDIENTES68H111 | AA88: 68 | AB88: H | AC88: 111 | AD88: 286.55 | AE88: 104877.3 | AG88: POT- ASCENDIENTES68H111 | AH88: 801.29 | AI88: 616.38 | AJ88: 497.69 | AK88: 379.09 | AL88: 356.26 | AM88: 337.29 | AN88: 307.03 | AO88: 269.75 | AP88: 240.61 | AQ88: 227.38 | AR88: 204.33 | AS88: 184.44 | AT88: 170.03 | AU88: 144.32
A89: 85H74 | B89: 85 | C89: H | D89: 74 | E89: 144.79 | F89: 52993.14 | H89: POTEN85H74 | I89: 36.57 | J89: 38.83 | K89: 49.13 | L89: 51.43 | M89: 57.41 | N89: 60.77 | O89: 65.22 | P89: 70.83 | Q89: 78.98 | R89: 87.23 | S89: 94.54 | T89: 99.17 | U89: 104.6 | V89: 132.61 | W89: 160.59 | X89: 208.73 | Z89: ASCENDIENTES69H111 | AA89: 69 | AB89: H | AC89: 111 | AD89: 286.55 | AE89: 104877.3 | AG89: POT- ASCENDIENTES69H111 | AH89: 801.29 | AI89: 616.38 | AJ89: 497.69 | AK89: 379.09 | AL89: 356.26 | AM89: 337.29 | AN89: 307.03 | AO89: 269.75 | AP89: 240.61 | AQ89: 227.38 | AR89: 204.33 | AS89: 184.44 | AT89: 170.03 | AU89: 144.32
A90: 86H74 | B90: 86 | C90: H | D90: 74 | E90: 144.79 | F90: 52993.14 | H90: POTEN86H74 | I90: 36.57 | J90: 38.83 | K90: 49.13 | L90: 51.43 | M90: 57.41 | N90: 60.77 | O90: 65.22 | P90: 70.83 | Q90: 78.98 | R90: 87.23 | S90: 94.54 | T90: 99.17 | U90: 104.6 | V90: 132.61 | W90: 160.59 | X90: 208.73 | Z90: ASCENDIENTES70H111 | AA90: 70 | AB90: H | AC90: 111 | AD90: 286.55 | AE90: 104877.3 | AG90: POT- ASCENDIENTES70H111 | AH90: 801.29 | AI90: 616.38 | AJ90: 497.69 | AK90: 379.09 | AL90: 356.26 | AM90: 337.29 | AN90: 307.03 | AO90: 269.75 | AP90: 240.61 | AQ90: 227.38 | AR90: 204.33 | AS90: 184.44 | AT90: 170.03 | AU90: 144.32
A91: 87H74 | B91: 87 | C91: H | D91: 74 | E91: 144.79 | F91: 52993.14 | H91: POTEN87H74 | I91: 36.57 | J91: 38.83 | K91: 49.13 | L91: 51.43 | M91: 57.41 | N91: 60.77 | O91: 65.22 | P91: 70.83 | Q91: 78.98 | R91: 87.23 | S91: 94.54 | T91: 99.17 | U91: 104.6 | V91: 132.61 | W91: 160.59 | X91: 208.73 | Z91: ASCENDIENTES71H111 | AA91: 71 | AB91: H | AC91: 111 | AD91: 286.55 | AE91: 104877.3 | AG91: POT- ASCENDIENTES71H111 | AH91: 977.03 | AI91: 751.52 | AJ91: 606.94 | AK91: 462.35 | AL91: 434.51 | AM91: 411.21 | AN91: 374.37 | AO91: 329.03 | AP91: 293.42 | AQ91: 277.25 | AR91: 249.23 | AS91: 224.97 | AT91: 207.48 | AU91: 175.84
A92: 88H74 | B92: 88 | C92: H | D92: 74 | E92: 144.79 | F92: 52993.14 | H92: POTEN88H74 | I92: 36.57 | J92: 38.83 | K92: 49.13 | L92: 51.43 | M92: 57.41 | N92: 60.77 | O92: 65.22 | P92: 70.83 | Q92: 78.98 | R92: 87.23 | S92: 94.54 | T92: 99.17 | U92: 104.6 | V92: 132.61 | W92: 160.59 | X92: 208.73 | Z92: ASCENDIENTES72H111 | AA92: 72 | AB92: H | AC92: 111 | AD92: 286.55 | AE92: 104877.3 | AG92: POT- ASCENDIENTES72H111 | AH92: 977.03 | AI92: 751.52 | AJ92: 606.94 | AK92: 462.35 | AL92: 434.51 | AM92: 411.21 | AN92: 374.37 | AO92: 329.03 | AP92: 293.42 | AQ92: 277.25 | AR92: 249.23 | AS92: 224.97 | AT92: 207.48 | AU92: 175.84
A93: 89H74 | B93: 89 | C93: H | D93: 74 | E93: 144.79 | F93: 52993.14 | H93: POTEN89H74 | I93: 36.57 | J93: 38.83 | K93: 49.13 | L93: 51.43 | M93: 57.41 | N93: 60.77 | O93: 65.22 | P93: 70.83 | Q93: 78.98 | R93: 87.23 | S93: 94.54 | T93: 99.17 | U93: 104.6 | V93: 132.61 | W93: 160.59 | X93: 208.73 | Z93: ASCENDIENTES73H111 | AA93: 73 | AB93: H | AC93: 111 | AD93: 286.55 | AE93: 104877.3 | AG93: POT- ASCENDIENTES73H111 | AH93: 977.03 | AI93: 751.52 | AJ93: 606.94 | AK93: 462.35 | AL93: 434.51 | AM93: 411.21 | AN93: 374.37 | AO93: 329.03 | AP93: 293.42 | AQ93: 277.25 | AR93: 249.23 | AS93: 224.97 | AT93: 207.48 | AU93: 175.84
A94: 90H74 | B94: 90 | C94: H | D94: 74 | E94: 144.79 | F94: 52993.14 | H94: POTEN90H74 | I94: 36.57 | J94: 38.83 | K94: 49.13 | L94: 51.43 | M94: 57.41 | N94: 60.77 | O94: 65.22 | P94: 70.83 | Q94: 78.98 | R94: 87.23 | S94: 94.54 | T94: 99.17 | U94: 104.6 | V94: 132.61 | W94: 160.59 | X94: 208.73 | Z94: ASCENDIENTES74H111 | AA94: 74 | AB94: H | AC94: 111 | AD94: 286.55 | AE94: 104877.3 | AG94: POT- ASCENDIENTES74H111 | AH94: 977.03 | AI94: 751.52 | AJ94: 606.94 | AK94: 462.35 | AL94: 434.51 | AM94: 411.21 | AN94: 374.37 | AO94: 329.03 | AP94: 293.42 | AQ94: 277.25 | AR94: 249.23 | AS94: 224.97 | AT94: 207.48 | AU94: 175.84
A95: 91H74 | B95: 91 | C95: H | D95: 74 | E95: 144.79 | F95: 52993.14 | H95: POTEN91H74 | I95: 36.57 | J95: 38.83 | K95: 49.13 | L95: 51.43 | M95: 57.41 | N95: 60.77 | O95: 65.22 | P95: 70.83 | Q95: 78.98 | R95: 87.23 | S95: 94.54 | T95: 99.17 | U95: 104.6 | V95: 132.61 | W95: 160.59 | X95: 208.73 | Z95: ASCENDIENTES75H111 | AA95: 75 | AB95: H | AC95: 111 | AD95: 286.55 | AE95: 104877.3 | AG95: POT- ASCENDIENTES75H111 | AH95: 977.03 | AI95: 751.52 | AJ95: 606.94 | AK95: 462.35 | AL95: 434.51 | AM95: 411.21 | AN95: 374.37 | AO95: 329.03 | AP95: 293.42 | AQ95: 277.25 | AR95: 249.23 | AS95: 224.97 | AT95: 207.48 | AU95: 175.84
A96: 92H74 | B96: 92 | C96: H | D96: 74 | E96: 144.79 | F96: 52993.14 | H96: POTEN92H74 | I96: 36.57 | J96: 38.83 | K96: 49.13 | L96: 51.43 | M96: 57.41 | N96: 60.77 | O96: 65.22 | P96: 70.83 | Q96: 78.98 | R96: 87.23 | S96: 94.54 | T96: 99.17 | U96: 104.6 | V96: 132.61 | W96: 160.59 | X96: 208.73 | Z96: ASCENDIENTES76H111 | AA96: 76 | AB96: H | AC96: 111 | AD96: 286.55 | AE96: 104877.3 | AG96: POT- ASCENDIENTES76H111 | AH96: 1175 | AI96: 903.87 | AJ96: 729.98 | AK96: 556.15 | AL96: 522.57 | AM96: 494.62 | AN96: 450.31 | AO96: 395.73 | AP96: 352.91 | AQ96: 333.48 | AR96: 299.72 | AS96: 270.38 | AT96: 249.39 | AU96: 211.68
A97: 93H74 | B97: 93 | C97: H | D97: 74 | E97: 144.79 | F97: 52993.14 | H97: POTEN93H74 | I97: 36.57 | J97: 38.83 | K97: 49.13 | L97: 51.43 | M97: 57.41 | N97: 60.77 | O97: 65.22 | P97: 70.83 | Q97: 78.98 | R97: 87.23 | S97: 94.54 | T97: 99.17 | U97: 104.6 | V97: 132.61 | W97: 160.59 | X97: 208.73 | Z97: ASCENDIENTES77H111 | AA97: 77 | AB97: H | AC97: 111 | AD97: 286.55 | AE97: 104877.3 | AG97: POT- ASCENDIENTES77H111 | AH97: 1175 | AI97: 903.87 | AJ97: 729.98 | AK97: 556.15 | AL97: 522.57 | AM97: 494.62 | AN97: 450.31 | AO97: 395.73 | AP97: 352.91 | AQ97: 333.48 | AR97: 299.72 | AS97: 270.38 | AT97: 249.39 | AU97: 211.68
A98: 94H74 | B98: 94 | C98: H | D98: 74 | E98: 144.79 | F98: 52993.14 | H98: POTEN94H74 | I98: 36.57 | J98: 38.83 | K98: 49.13 | L98: 51.43 | M98: 57.41 | N98: 60.77 | O98: 65.22 | P98: 70.83 | Q98: 78.98 | R98: 87.23 | S98: 94.54 | T98: 99.17 | U98: 104.6 | V98: 132.61 | W98: 160.59 | X98: 208.73 | Z98: ASCENDIENTES78H111 | AA98: 78 | AB98: H | AC98: 111 | AD98: 286.55 | AE98: 104877.3 | AG98: POT- ASCENDIENTES78H111 | AH98: 1175 | AI98: 903.87 | AJ98: 729.98 | AK98: 556.15 | AL98: 522.57 | AM98: 494.62 | AN98: 450.31 | AO98: 395.73 | AP98: 352.91 | AQ98: 333.48 | AR98: 299.72 | AS98: 270.38 | AT98: 249.39 | AU98: 211.68
A99: 95H74 | B99: 95 | C99: H | D99: 74 | E99: 144.79 | F99: 52993.14 | H99: POTEN95H74 | I99: 36.57 | J99: 38.83 | K99: 49.13 | L99: 51.43 | M99: 57.41 | N99: 60.77 | O99: 65.22 | P99: 70.83 | Q99: 78.98 | R99: 87.23 | S99: 94.54 | T99: 99.17 | U99: 104.6 | V99: 132.61 | W99: 160.59 | X99: 208.73 | Z99: ASCENDIENTES79H111 | AA99: 79 | AB99: H | AC99: 111 | AD99: 286.55 | AE99: 104877.3 | AG99: POT- ASCENDIENTES79H111 | AH99: 1175 | AI99: 903.87 | AJ99: 729.98 | AK99: 556.15 | AL99: 522.57 | AM99: 494.62 | AN99: 450.31 | AO99: 395.73 | AP99: 352.91 | AQ99: 333.48 | AR99: 299.72 | AS99: 270.38 | AT99: 249.39 | AU99: 211.68
A100: 96H74 | B100: 96 | C100: H | D100: 74 | E100: 144.79 | F100: 52993.14 | H100: POTEN96H74 | I100: 36.57 | J100: 38.83 | K100: 49.13 | L100: 51.43 | M100: 57.41 | N100: 60.77 | O100: 65.22 | P100: 70.83 | Q100: 78.98 | R100: 87.23 | S100: 94.54 | T100: 99.17 | U100: 104.6 | V100: 132.61 | W100: 160.59 | X100: 208.73 | Z100: ASCENDIENTES80H111 | AA100: 80 | AB100: H | AC100: 111 | AD100: 286.55 | AE100: 104877.3 | AG100: POT- ASCENDIENTES80H111 | AH100: 1175 | AI100: 903.87 | AJ100: 729.98 | AK100: 556.15 | AL100: 522.57 | AM100: 494.62 | AN100: 450.31 | AO100: 395.73 | AP100: 352.91 | AQ100: 333.48 | AR100: 299.72 | AS100: 270.38 | AT100: 249.39 | AU100: 211.68
A101: 97H74 | B101: 97 | C101: H | D101: 74 | E101: 144.79 | F101: 52993.14 | H101: POTEN97H74 | I101: 36.57 | J101: 38.83 | K101: 49.13 | L101: 51.43 | M101: 57.41 | N101: 60.77 | O101: 65.22 | P101: 70.83 | Q101: 78.98 | R101: 87.23 | S101: 94.54 | T101: 99.17 | U101: 104.6 | V101: 132.61 | W101: 160.59 | X101: 208.73 | Z101: ASCENDIENTES81H111 | AA101: 81 | AB101: H | AC101: 111 | AD101: 286.55 | AE101: 104877.3 | AG101: POT- ASCENDIENTES81H111 | AH101: 1292.5 | AI101: 994.26 | AJ101: 802.96 | AK101: 611.64 | AL101: 574.76 | AM101: 544.03 | AN101: 495.37 | AO101: 435.24 | AP101: 388.24 | AQ101: 366.8 | AR101: 329.59 | AS101: 297.49 | AT101: 274.47 | AU101: 232.74
A102: 98H74 | B102: 98 | C102: H | D102: 74 | E102: 144.79 | F102: 52993.14 | H102: POTEN98H74 | I102: 36.57 | J102: 38.83 | K102: 49.13 | L102: 51.43 | M102: 57.41 | N102: 60.77 | O102: 65.22 | P102: 70.83 | Q102: 78.98 | R102: 87.23 | S102: 94.54 | T102: 99.17 | U102: 104.6 | V102: 132.61 | W102: 160.59 | X102: 208.73 | Z102: ASCENDIENTES82H111 | AA102: 82 | AB102: H | AC102: 111 | AD102: 286.55 | AE102: 104877.3 | AG102: POT- ASCENDIENTES82H111 | AH102: 1292.5 | AI102: 994.26 | AJ102: 802.96 | AK102: 611.64 | AL102: 574.76 | AM102: 544.03 | AN102: 495.37 | AO102: 435.24 | AP102: 388.24 | AQ102: 366.8 | AR102: 329.59 | AS102: 297.49 | AT102: 274.47 | AU102: 232.74
A103: 99H74 | B103: 99 | C103: H | D103: 74 | E103: 144.79 | F103: 52993.14 | H103: POTEN99H74 | I103: 36.57 | J103: 38.83 | K103: 49.13 | L103: 51.43 | M103: 57.41 | N103: 60.77 | O103: 65.22 | P103: 70.83 | Q103: 78.98 | R103: 87.23 | S103: 94.54 | T103: 99.17 | U103: 104.6 | V103: 132.61 | W103: 160.59 | X103: 208.73 | Z103: ASCENDIENTES83H111 | AA103: 83 | AB103: H | AC103: 111 | AD103: 286.55 | AE103: 104877.3 | AG103: POT- ASCENDIENTES83H111 | AH103: 1292.5 | AI103: 994.26 | AJ103: 802.96 | AK103: 611.64 | AL103: 574.76 | AM103: 544.03 | AN103: 495.37 | AO103: 435.24 | AP103: 388.24 | AQ103: 366.8 | AR103: 329.59 | AS103: 297.49 | AT103: 274.47 | AU103: 232.74
A104: 100H74 | B104: 100 | C104: H | D104: 74 | E104: 144.79 | F104: 52993.14 | H104: POTEN100H74 | I104: 36.57 | J104: 38.83 | K104: 49.13 | L104: 51.43 | M104: 57.41 | N104: 60.77 | O104: 65.22 | P104: 70.83 | Q104: 78.98 | R104: 87.23 | S104: 94.54 | T104: 99.17 | U104: 104.6 | V104: 132.61 | W104: 160.59 | X104: 208.73 | Z104: ASCENDIENTES84H111 | AA104: 84 | AB104: H | AC104: 111 | AD104: 286.55 | AE104: 104877.3 | AG104: POT- ASCENDIENTES84H111 | AH104: 1292.5 | AI104: 994.26 | AJ104: 802.96 | AK104: 611.64 | AL104: 574.76 | AM104: 544.03 | AN104: 495.37 | AO104: 435.24 | AP104: 388.24 | AQ104: 366.8 | AR104: 329.59 | AS104: 297.49 | AT104: 274.47 | AU104: 232.74
A105: 0H111 | B105: 0 | C105: H | D105: 111 | E105: 12.82 | F105: 4692.12 | H105: POTEN0H111 | K105: 40.65 | L105: 44.95 | M105: 49.47 | N105: 53.51 | O105: 58.45 | P105: 62.72 | Q105: 70.09 | R105: 78.54 | S105: 85.67 | T105: 90.19 | U105: 95.56 | V105: 123.31 | W105: 151.01 | X105: 196.3 | Z105: ASCENDIENTES85H111 | AA105: 85 | AB105: H | AC105: 111 | AD105: 286.55 | AE105: 104877.3 | AG105: POT- ASCENDIENTES85H111 | AH105: 1292.5 | AI105: 994.26 | AJ105: 802.96 | AK105: 611.64 | AL105: 574.76 | AM105: 544.03 | AN105: 495.37 | AO105: 435.24 | AP105: 388.24 | AQ105: 366.8 | AR105: 329.59 | AS105: 297.49 | AT105: 274.47 | AU105: 232.74
A106: 1H111 | B106: 1 | C106: H | D106: 111 | E106: 12.82 | F106: 4692.12 | H106: POTEN1H111 | K106: 40.65 | L106: 44.95 | M106: 49.47 | N106: 53.51 | O106: 58.45 | P106: 62.72 | Q106: 70.09 | R106: 78.54 | S106: 85.67 | T106: 90.19 | U106: 95.56 | V106: 123.31 | W106: 151.01 | X106: 196.3 | Z106: ASCENDIENTES35H148 | AA106: 35 | AB106: H | AC106: 148 | AD106: 295.39 | AE106: 108112.74 | AG106: POT- ASCENDIENTES35H148 | AH106: 736.16 | AI106: 566.22 | AJ106: 449.49 | AK106: 332.83 | AL106: 310.82 | AM106: 292.59 | AN106: 263.82 | AO106: 224.97 | AP106: 202.13 | AQ106: 189 | AR106: 176.4 | AS106: 152.9 | AT106: 133.02
A107: 2H111 | B107: 2 | C107: H | D107: 111 | E107: 12.82 | F107: 4692.12 | H107: POTEN2H111 | K107: 40.65 | L107: 44.95 | M107: 49.47 | N107: 53.51 | O107: 58.45 | P107: 62.72 | Q107: 70.09 | R107: 78.54 | S107: 85.67 | T107: 90.19 | U107: 95.56 | V107: 123.31 | W107: 151.01 | X107: 196.3 | Z107: ASCENDIENTES36H148 | AA107: 36 | AB107: H | AC107: 148 | AD107: 295.39 | AE107: 108112.74 | AG107: POT- ASCENDIENTES36H148 | AH107: 736.16 | AI107: 566.22 | AJ107: 449.49 | AK107: 332.83 | AL107: 310.82 | AM107: 292.59 | AN107: 263.82 | AO107: 224.97 | AP107: 202.13 | AQ107: 189 | AR107: 176.4 | AS107: 152.9 | AT107: 133.02
A108: 3H111 | B108: 3 | C108: H | D108: 111 | E108: 12.82 | F108: 4692.12 | H108: POTEN3H111 | K108: 40.65 | L108: 44.95 | M108: 49.47 | N108: 53.51 | O108: 58.45 | P108: 62.72 | Q108: 70.09 | R108: 78.54 | S108: 85.67 | T108: 90.19 | U108: 95.56 | V108: 123.31 | W108: 151.01 | X108: 196.3 | Z108: ASCENDIENTES37H148 | AA108: 37 | AB108: H | AC108: 148 | AD108: 295.39 | AE108: 108112.74 | AG108: POT- ASCENDIENTES37H148 | AH108: 736.16 | AI108: 566.22 | AJ108: 449.49 | AK108: 332.83 | AL108: 310.82 | AM108: 292.59 | AN108: 263.82 | AO108: 224.97 | AP108: 202.13 | AQ108: 189 | AR108: 176.4 | AS108: 152.9 | AT108: 133.02
A109: 4H111 | B109: 4 | C109: H | D109: 111 | E109: 12.82 | F109: 4692.12 | H109: POTEN4H111 | K109: 40.65 | L109: 44.95 | M109: 49.47 | N109: 53.51 | O109: 58.45 | P109: 62.72 | Q109: 70.09 | R109: 78.54 | S109: 85.67 | T109: 90.19 | U109: 95.56 | V109: 123.31 | W109: 151.01 | X109: 196.3 | Z109: ASCENDIENTES38H148 | AA109: 38 | AB109: H | AC109: 148 | AD109: 295.39 | AE109: 108112.74 | AG109: POT- ASCENDIENTES38H148 | AH109: 736.16 | AI109: 566.22 | AJ109: 449.49 | AK109: 332.83 | AL109: 310.82 | AM109: 292.59 | AN109: 263.82 | AO109: 224.97 | AP109: 202.13 | AQ109: 189 | AR109: 176.4 | AS109: 152.9 | AT109: 133.02
A110: 5H111 | B110: 5 | C110: H | D110: 111 | E110: 12.82 | F110: 4692.12 | H110: POTEN5H111 | K110: 40.65 | L110: 44.95 | M110: 49.47 | N110: 53.51 | O110: 58.45 | P110: 62.72 | Q110: 70.09 | R110: 78.54 | S110: 85.67 | T110: 90.19 | U110: 95.56 | V110: 123.31 | W110: 151.01 | X110: 196.3 | Z110: ASCENDIENTES39H148 | AA110: 39 | AB110: H | AC110: 148 | AD110: 295.39 | AE110: 108112.74 | AG110: POT- ASCENDIENTES39H148 | AH110: 736.16 | AI110: 566.22 | AJ110: 449.49 | AK110: 332.83 | AL110: 310.82 | AM110: 292.59 | AN110: 263.82 | AO110: 224.97 | AP110: 202.13 | AQ110: 189 | AR110: 176.4 | AS110: 152.9 | AT110: 133.02
A111: 6H111 | B111: 6 | C111: H | D111: 111 | E111: 12.82 | F111: 4692.12 | H111: POTEN6H111 | K111: 40.65 | L111: 44.95 | M111: 49.47 | N111: 53.51 | O111: 58.45 | P111: 62.72 | Q111: 70.09 | R111: 78.54 | S111: 85.67 | T111: 90.19 | U111: 95.56 | V111: 123.31 | W111: 151.01 | X111: 196.3 | Z111: ASCENDIENTES40H148 | AA111: 40 | AB111: H | AC111: 148 | AD111: 295.39 | AE111: 108112.74 | AG111: POT- ASCENDIENTES40H148 | AH111: 736.16 | AI111: 566.22 | AJ111: 449.49 | AK111: 332.83 | AL111: 310.82 | AM111: 292.59 | AN111: 263.82 | AO111: 224.97 | AP111: 202.13 | AQ111: 189 | AR111: 176.4 | AS111: 152.9 | AT111: 133.02
A112: 7H111 | B112: 7 | C112: H | D112: 111 | E112: 12.82 | F112: 4692.12 | H112: POTEN7H111 | K112: 40.65 | L112: 44.95 | M112: 49.47 | N112: 53.51 | O112: 58.45 | P112: 62.72 | Q112: 70.09 | R112: 78.54 | S112: 85.67 | T112: 90.19 | U112: 95.56 | V112: 123.31 | W112: 151.01 | X112: 196.3 | Z112: ASCENDIENTES41H148 | AA112: 41 | AB112: H | AC112: 148 | AD112: 295.39 | AE112: 108112.74 | AG112: POT- ASCENDIENTES41H148 | AH112: 736.16 | AI112: 566.22 | AJ112: 449.49 | AK112: 332.83 | AL112: 310.82 | AM112: 292.59 | AN112: 263.82 | AO112: 224.97 | AP112: 202.13 | AQ112: 189 | AR112: 176.4 | AS112: 152.9 | AT112: 133.02
A113: 8H111 | B113: 8 | C113: H | D113: 111 | E113: 12.82 | F113: 4692.12 | H113: POTEN8H111 | K113: 40.65 | L113: 44.95 | M113: 49.47 | N113: 53.51 | O113: 58.45 | P113: 62.72 | Q113: 70.09 | R113: 78.54 | S113: 85.67 | T113: 90.19 | U113: 95.56 | V113: 123.31 | W113: 151.01 | X113: 196.3 | Z113: ASCENDIENTES42H148 | AA113: 42 | AB113: H | AC113: 148 | AD113: 295.39 | AE113: 108112.74 | AG113: POT- ASCENDIENTES42H148 | AH113: 736.16 | AI113: 566.22 | AJ113: 449.49 | AK113: 332.83 | AL113: 310.82 | AM113: 292.59 | AN113: 263.82 | AO113: 224.97 | AP113: 202.13 | AQ113: 189 | AR113: 176.4 | AS113: 152.9 | AT113: 133.02
A114: 9H111 | B114: 9 | C114: H | D114: 111 | E114: 12.82 | F114: 4692.12 | H114: POTEN9H111 | K114: 40.65 | L114: 44.95 | M114: 49.47 | N114: 53.51 | O114: 58.45 | P114: 62.72 | Q114: 70.09 | R114: 78.54 | S114: 85.67 | T114: 90.19 | U114: 95.56 | V114: 123.31 | W114: 151.01 | X114: 196.3 | Z114: ASCENDIENTES43H148 | AA114: 43 | AB114: H | AC114: 148 | AD114: 295.39 | AE114: 108112.74 | AG114: POT- ASCENDIENTES43H148 | AH114: 736.16 | AI114: 566.22 | AJ114: 449.49 | AK114: 332.83 | AL114: 310.82 | AM114: 292.59 | AN114: 263.82 | AO114: 224.97 | AP114: 202.13 | AQ114: 189 | AR114: 176.4 | AS114: 152.9 | AT114: 133.02
A115: 10H111 | B115: 10 | C115: H | D115: 111 | E115: 12.82 | F115: 4692.12 | H115: POTEN10H111 | K115: 40.65 | L115: 44.95 | M115: 49.47 | N115: 53.51 | O115: 58.45 | P115: 62.72 | Q115: 70.09 | R115: 78.54 | S115: 85.67 | T115: 90.19 | U115: 95.56 | V115: 123.31 | W115: 151.01 | X115: 196.3 | Z115: ASCENDIENTES44H148 | AA115: 44 | AB115: H | AC115: 148 | AD115: 295.39 | AE115: 108112.74 | AG115: POT- ASCENDIENTES44H148 | AH115: 736.16 | AI115: 566.22 | AJ115: 449.49 | AK115: 332.83 | AL115: 310.82 | AM115: 292.59 | AN115: 263.82 | AO115: 224.97 | AP115: 202.13 | AQ115: 189 | AR115: 176.4 | AS115: 152.9 | AT115: 133.02
A116: 11H111 | B116: 11 | C116: H | D116: 111 | E116: 12.82 | F116: 4692.12 | H116: POTEN11H111 | K116: 40.65 | L116: 44.95 | M116: 49.47 | N116: 53.51 | O116: 58.45 | P116: 62.72 | Q116: 70.09 | R116: 78.54 | S116: 85.67 | T116: 90.19 | U116: 95.56 | V116: 123.31 | W116: 151.01 | X116: 196.3 | Z116: ASCENDIENTES45H148 | AA116: 45 | AB116: H | AC116: 148 | AD116: 295.39 | AE116: 108112.74 | AG116: POT- ASCENDIENTES45H148 | AH116: 736.16 | AI116: 566.22 | AJ116: 449.49 | AK116: 332.83 | AL116: 310.82 | AM116: 292.59 | AN116: 263.82 | AO116: 224.97 | AP116: 202.13 | AQ116: 189 | AR116: 176.4 | AS116: 152.9 | AT116: 133.02
A117: 12H111 | B117: 12 | C117: H | D117: 111 | E117: 12.82 | F117: 4692.12 | H117: POTEN12H111 | K117: 40.65 | L117: 44.95 | M117: 49.47 | N117: 53.51 | O117: 58.45 | P117: 62.72 | Q117: 70.09 | R117: 78.54 | S117: 85.67 | T117: 90.19 | U117: 95.56 | V117: 123.31 | W117: 151.01 | X117: 196.3 | Z117: ASCENDIENTES46H148 | AA117: 46 | AB117: H | AC117: 148 | AD117: 295.39 | AE117: 108112.74 | AG117: POT- ASCENDIENTES46H148 | AH117: 736.16 | AI117: 566.22 | AJ117: 449.49 | AK117: 332.83 | AL117: 310.82 | AM117: 292.59 | AN117: 263.82 | AO117: 224.97 | AP117: 202.13 | AQ117: 189 | AR117: 176.4 | AS117: 152.9 | AT117: 133.02
A118: 13H111 | B118: 13 | C118: H | D118: 111 | E118: 12.82 | F118: 4692.12 | H118: POTEN13H111 | K118: 40.65 | L118: 44.95 | M118: 49.47 | N118: 53.51 | O118: 58.45 | P118: 62.72 | Q118: 70.09 | R118: 78.54 | S118: 85.67 | T118: 90.19 | U118: 95.56 | V118: 123.31 | W118: 151.01 | X118: 196.3 | Z118: ASCENDIENTES47H148 | AA118: 47 | AB118: H | AC118: 148 | AD118: 295.39 | AE118: 108112.74 | AG118: POT- ASCENDIENTES47H148 | AH118: 736.16 | AI118: 566.22 | AJ118: 449.49 | AK118: 332.83 | AL118: 310.82 | AM118: 292.59 | AN118: 263.82 | AO118: 224.97 | AP118: 202.13 | AQ118: 189 | AR118: 176.4 | AS118: 152.9 | AT118: 133.02
A119: 14H111 | B119: 14 | C119: H | D119: 111 | E119: 12.82 | F119: 4692.12 | H119: POTEN14H111 | K119: 40.65 | L119: 44.95 | M119: 49.47 | N119: 53.51 | O119: 58.45 | P119: 62.72 | Q119: 70.09 | R119: 78.54 | S119: 85.67 | T119: 90.19 | U119: 95.56 | V119: 123.31 | W119: 151.01 | X119: 196.3 | Z119: ASCENDIENTES48H148 | AA119: 48 | AB119: H | AC119: 148 | AD119: 295.39 | AE119: 108112.74 | AG119: POT- ASCENDIENTES48H148 | AH119: 736.16 | AI119: 566.22 | AJ119: 449.49 | AK119: 332.83 | AL119: 310.82 | AM119: 292.59 | AN119: 263.82 | AO119: 224.97 | AP119: 202.13 | AQ119: 189 | AR119: 176.4 | AS119: 152.9 | AT119: 133.02
A120: 15H111 | B120: 15 | C120: H | D120: 111 | E120: 12.82 | F120: 4692.12 | H120: POTEN15H111 | K120: 40.65 | L120: 44.95 | M120: 49.47 | N120: 53.51 | O120: 58.45 | P120: 62.72 | Q120: 70.09 | R120: 78.54 | S120: 85.67 | T120: 90.19 | U120: 95.56 | V120: 123.31 | W120: 151.01 | X120: 196.3 | Z120: ASCENDIENTES49H148 | AA120: 49 | AB120: H | AC120: 148 | AD120: 295.39 | AE120: 108112.74 | AG120: POT- ASCENDIENTES49H148 | AH120: 736.16 | AI120: 566.22 | AJ120: 449.49 | AK120: 332.83 | AL120: 310.82 | AM120: 292.59 | AN120: 263.82 | AO120: 224.97 | AP120: 202.13 | AQ120: 189 | AR120: 176.4 | AS120: 152.9 | AT120: 133.02
A121: 16H111 | B121: 16 | C121: H | D121: 111 | E121: 12.82 | F121: 4692.12 | H121: POTEN16H111 | K121: 40.65 | L121: 44.95 | M121: 49.47 | N121: 53.51 | O121: 58.45 | P121: 62.72 | Q121: 70.09 | R121: 78.54 | S121: 85.67 | T121: 90.19 | U121: 95.56 | V121: 123.31 | W121: 151.01 | X121: 196.3 | Z121: ASCENDIENTES50H148 | AA121: 50 | AB121: H | AC121: 148 | AD121: 295.39 | AE121: 108112.74 | AG121: POT- ASCENDIENTES50H148 | AH121: 736.16 | AI121: 566.22 | AJ121: 449.49 | AK121: 332.83 | AL121: 310.82 | AM121: 292.59 | AN121: 263.82 | AO121: 224.97 | AP121: 202.13 | AQ121: 189 | AR121: 176.4 | AS121: 152.9 | AT121: 133.02
A122: 17H111 | B122: 17 | C122: H | D122: 111 | E122: 12.82 | F122: 4692.12 | H122: POTEN17H111 | K122: 40.65 | L122: 44.95 | M122: 49.47 | N122: 53.51 | O122: 58.45 | P122: 62.72 | Q122: 70.09 | R122: 78.54 | S122: 85.67 | T122: 90.19 | U122: 95.56 | V122: 123.31 | W122: 151.01 | X122: 196.3 | Z122: ASCENDIENTES51H148 | AA122: 51 | AB122: H | AC122: 148 | AD122: 295.39 | AE122: 108112.74 | AG122: POT- ASCENDIENTES51H148 | AH122: 736.16 | AI122: 566.22 | AJ122: 449.49 | AK122: 332.83 | AL122: 310.82 | AM122: 292.59 | AN122: 263.82 | AO122: 224.97 | AP122: 202.13 | AQ122: 189 | AR122: 176.4 | AS122: 152.9 | AT122: 133.02
A123: 18H111 | B123: 18 | C123: H | D123: 111 | E123: 12.82 | F123: 4692.12 | H123: POTEN18H111 | K123: 40.65 | L123: 44.95 | M123: 49.47 | N123: 53.51 | O123: 58.45 | P123: 62.72 | Q123: 70.09 | R123: 78.54 | S123: 85.67 | T123: 90.19 | U123: 95.56 | V123: 123.31 | W123: 151.01 | X123: 196.3 | Z123: ASCENDIENTES52H148 | AA123: 52 | AB123: H | AC123: 148 | AD123: 295.39 | AE123: 108112.74 | AG123: POT- ASCENDIENTES52H148 | AH123: 736.16 | AI123: 566.22 | AJ123: 449.49 | AK123: 332.83 | AL123: 310.82 | AM123: 292.59 | AN123: 263.82 | AO123: 224.97 | AP123: 202.13 | AQ123: 189 | AR123: 176.4 | AS123: 152.9 | AT123: 133.02
A124: 19H111 | B124: 19 | C124: H | D124: 111 | E124: 12.82 | F124: 4692.12 | H124: POTEN19H111 | K124: 40.65 | L124: 44.95 | M124: 49.47 | N124: 53.51 | O124: 58.45 | P124: 62.72 | Q124: 70.09 | R124: 78.54 | S124: 85.67 | T124: 90.19 | U124: 95.56 | V124: 123.31 | W124: 151.01 | X124: 196.3 | Z124: ASCENDIENTES53H148 | AA124: 53 | AB124: H | AC124: 148 | AD124: 295.39 | AE124: 108112.74 | AG124: POT- ASCENDIENTES53H148 | AH124: 736.16 | AI124: 566.22 | AJ124: 449.49 | AK124: 332.83 | AL124: 310.82 | AM124: 292.59 | AN124: 263.82 | AO124: 224.97 | AP124: 202.13 | AQ124: 189 | AR124: 176.4 | AS124: 152.9 | AT124: 133.02
A125: 20H111 | B125: 20 | C125: H | D125: 111 | E125: 17.7 | F125: 6478.2 | H125: POTEN20H111 | K125: 40.65 | L125: 44.95 | M125: 49.47 | N125: 53.51 | O125: 58.45 | P125: 62.72 | Q125: 70.09 | R125: 78.54 | S125: 85.67 | T125: 90.19 | U125: 95.56 | V125: 123.31 | W125: 151.01 | X125: 196.3 | Z125: ASCENDIENTES54H148 | AA125: 54 | AB125: H | AC125: 148 | AD125: 295.39 | AE125: 108112.74 | AG125: POT- ASCENDIENTES54H148 | AH125: 736.16 | AI125: 566.22 | AJ125: 449.49 | AK125: 332.83 | AL125: 310.82 | AM125: 292.59 | AN125: 263.82 | AO125: 224.97 | AP125: 202.13 | AQ125: 189 | AR125: 176.4 | AS125: 152.9 | AT125: 133.02
A126: 21H111 | B126: 21 | C126: H | D126: 111 | E126: 17.7 | F126: 6478.2 | H126: POTEN21H111 | K126: 40.65 | L126: 44.95 | M126: 49.47 | N126: 53.51 | O126: 58.45 | P126: 62.72 | Q126: 70.09 | R126: 78.54 | S126: 85.67 | T126: 90.19 | U126: 95.56 | V126: 123.31 | W126: 151.01 | X126: 196.3 | Z126: ASCENDIENTES55H148 | AA126: 55 | AB126: H | AC126: 148 | AD126: 295.39 | AE126: 108112.74 | AG126: POT- ASCENDIENTES55H148 | AH126: 736.16 | AI126: 566.22 | AJ126: 449.49 | AK126: 332.83 | AL126: 310.82 | AM126: 292.59 | AN126: 263.82 | AO126: 224.97 | AP126: 202.13 | AQ126: 189 | AR126: 176.4 | AS126: 152.9 | AT126: 133.02
A127: 22H111 | B127: 22 | C127: H | D127: 111 | E127: 17.7 | F127: 6478.2 | H127: POTEN22H111 | K127: 40.65 | L127: 44.95 | M127: 49.47 | N127: 53.51 | O127: 58.45 | P127: 62.72 | Q127: 70.09 | R127: 78.54 | S127: 85.67 | T127: 90.19 | U127: 95.56 | V127: 123.31 | W127: 151.01 | X127: 196.3 | Z127: ASCENDIENTES56H148 | AA127: 56 | AB127: H | AC127: 148 | AD127: 295.39 | AE127: 108112.74 | AG127: POT- ASCENDIENTES56H148 | AH127: 736.16 | AI127: 566.22 | AJ127: 449.49 | AK127: 332.83 | AL127: 310.82 | AM127: 292.59 | AN127: 263.82 | AO127: 224.97 | AP127: 202.13 | AQ127: 189 | AR127: 176.4 | AS127: 152.9 | AT127: 133.02
A128: 23H111 | B128: 23 | C128: H | D128: 111 | E128: 17.7 | F128: 6478.2 | H128: POTEN23H111 | K128: 40.65 | L128: 44.95 | M128: 49.47 | N128: 53.51 | O128: 58.45 | P128: 62.72 | Q128: 70.09 | R128: 78.54 | S128: 85.67 | T128: 90.19 | U128: 95.56 | V128: 123.31 | W128: 151.01 | X128: 196.3 | Z128: ASCENDIENTES57H148 | AA128: 57 | AB128: H | AC128: 148 | AD128: 295.39 | AE128: 108112.74 | AG128: POT- ASCENDIENTES57H148 | AH128: 736.16 | AI128: 566.22 | AJ128: 449.49 | AK128: 332.83 | AL128: 310.82 | AM128: 292.59 | AN128: 263.82 | AO128: 224.97 | AP128: 202.13 | AQ128: 189 | AR128: 176.4 | AS128: 152.9 | AT128: 133.02
A129: 24H111 | B129: 24 | C129: H | D129: 111 | E129: 17.7 | F129: 6478.2 | H129: POTEN24H111 | K129: 40.65 | L129: 44.95 | M129: 49.47 | N129: 53.51 | O129: 58.45 | P129: 62.72 | Q129: 70.09 | R129: 78.54 | S129: 85.67 | T129: 90.19 | U129: 95.56 | V129: 123.31 | W129: 151.01 | X129: 196.3 | Z129: ASCENDIENTES58H148 | AA129: 58 | AB129: H | AC129: 148 | AD129: 295.39 | AE129: 108112.74 | AG129: POT- ASCENDIENTES58H148 | AH129: 736.16 | AI129: 566.22 | AJ129: 449.49 | AK129: 332.83 | AL129: 310.82 | AM129: 292.59 | AN129: 263.82 | AO129: 224.97 | AP129: 202.13 | AQ129: 189 | AR129: 176.4 | AS129: 152.9 | AT129: 133.02
A130: 25H111 | B130: 25 | C130: H | D130: 111 | E130: 17.78 | F130: 6507.48 | H130: POTEN25H111 | K130: 40.65 | L130: 44.95 | M130: 49.47 | N130: 53.51 | O130: 58.45 | P130: 62.72 | Q130: 70.09 | R130: 78.54 | S130: 85.67 | T130: 90.19 | U130: 95.56 | V130: 123.31 | W130: 151.01 | X130: 196.3 | Z130: ASCENDIENTES59H148 | AA130: 59 | AB130: H | AC130: 148 | AD130: 295.39 | AE130: 108112.74 | AG130: POT- ASCENDIENTES59H148 | AH130: 736.16 | AI130: 566.22 | AJ130: 449.49 | AK130: 332.83 | AL130: 310.82 | AM130: 292.59 | AN130: 263.82 | AO130: 224.97 | AP130: 202.13 | AQ130: 189 | AR130: 176.4 | AS130: 152.9 | AT130: 133.02
A131: 26H111 | B131: 26 | C131: H | D131: 111 | E131: 17.78 | F131: 6507.48 | H131: POTEN26H111 | K131: 40.65 | L131: 44.95 | M131: 49.47 | N131: 53.51 | O131: 58.45 | P131: 62.72 | Q131: 70.09 | R131: 78.54 | S131: 85.67 | T131: 90.19 | U131: 95.56 | V131: 123.31 | W131: 151.01 | X131: 196.3 | Z131: ASCENDIENTES60H148 | AA131: 60 | AB131: H | AC131: 148 | AD131: 295.39 | AE131: 108112.74 | AG131: POT- ASCENDIENTES60H148 | AH131: 736.16 | AI131: 566.22 | AJ131: 449.49 | AK131: 332.83 | AL131: 310.82 | AM131: 292.59 | AN131: 263.82 | AO131: 224.97 | AP131: 202.13 | AQ131: 189 | AR131: 176.4 | AS131: 152.9 | AT131: 133.02
A132: 27H111 | B132: 27 | C132: H | D132: 111 | E132: 17.78 | F132: 6507.48 | H132: POTEN27H111 | K132: 40.65 | L132: 44.95 | M132: 49.47 | N132: 53.51 | O132: 58.45 | P132: 62.72 | Q132: 70.09 | R132: 78.54 | S132: 85.67 | T132: 90.19 | U132: 95.56 | V132: 123.31 | W132: 151.01 | X132: 196.3 | Z132: ASCENDIENTES61H148 | AA132: 61 | AB132: H | AC132: 148 | AD132: 295.39 | AE132: 108112.74 | AG132: POT- ASCENDIENTES61H148 | AH132: 736.16 | AI132: 566.22 | AJ132: 449.49 | AK132: 332.83 | AL132: 310.82 | AM132: 292.59 | AN132: 263.82 | AO132: 224.97 | AP132: 202.13 | AQ132: 189 | AR132: 176.4 | AS132: 152.9 | AT132: 133.02
A133: =+CONCATENATE($B133,$C133,$D133,) -> 28H111 | B133: 28 | C133: H | D133: 111 | E133: 17.78 | F133: =+E133*366 -> 6507.48 | H133: =+CONCATENATE($I$2,$B133,$C133,$D133,) -> POTEN28H111 | K133: 40.65 | L133: 44.95 | M133: 49.47 | N133: 53.51 | O133: 58.45 | P133: 62.72 | Q133: 70.09 | R133: 78.54 | S133: 85.67 | T133: 90.19 | U133: 95.56 | V133: 123.31 | W133: 151.01 | X133: 196.3 | Z133: =+CONCATENATE($AA$2,$AA133,$AB133,$AC133,) -> ASCENDIENTES62H148 | AA133: 62 | AB133: H | AC133: 148 | AD133: 295.39 | AE133: =+AD133*366 -> 108112.74 | AG133: =+CONCATENATE($AH$2,$AA133,$AB133,$AC133,) -> POT- ASCENDIENTES62H148 | AH133: 736.16 | AI133: 566.22 | AJ133: 449.49 | AK133: 332.83 | AL133: 310.82 | AM133: 292.59 | AN133: 263.82 | AO133: 224.97 | AP133: 202.13 | AQ133: 189 | AR133: 176.4 | AS133: 152.9 | AT133: 133.02
A134: 29H111 | B134: 29 | C134: H | D134: 111 | E134: 17.78 | F134: 6507.48 | H134: POTEN29H111 | K134: 40.65 | L134: 44.95 | M134: 49.47 | N134: 53.51 | O134: 58.45 | P134: 62.72 | Q134: 70.09 | R134: 78.54 | S134: 85.67 | T134: 90.19 | U134: 95.56 | V134: 123.31 | W134: 151.01 | X134: 196.3 | Z134: ASCENDIENTES63H148 | AA134: 63 | AB134: H | AC134: 148 | AD134: 295.39 | AE134: 108112.74 | AG134: POT- ASCENDIENTES63H148 | AH134: 736.16 | AI134: 566.22 | AJ134: 449.49 | AK134: 332.83 | AL134: 310.82 | AM134: 292.59 | AN134: 263.82 | AO134: 224.97 | AP134: 202.13 | AQ134: 189 | AR134: 176.4 | AS134: 152.9 | AT134: 133.02
A135: 30H111 | B135: 30 | C135: H | D135: 111 | E135: 20.57 | F135: 7528.62 | H135: POTEN30H111 | K135: 40.65 | L135: 44.95 | M135: 49.47 | N135: 53.51 | O135: 58.45 | P135: 62.72 | Q135: 70.09 | R135: 78.54 | S135: 85.67 | T135: 90.19 | U135: 95.56 | V135: 123.31 | W135: 151.01 | X135: 196.3 | Z135: ASCENDIENTES64H148 | AA135: 64 | AB135: H | AC135: 148 | AD135: 295.39 | AE135: 108112.74 | AG135: POT- ASCENDIENTES64H148 | AH135: 736.16 | AI135: 566.22 | AJ135: 449.49 | AK135: 332.83 | AL135: 310.82 | AM135: 292.59 | AN135: 263.82 | AO135: 224.97 | AP135: 202.13 | AQ135: 189 | AR135: 176.4 | AS135: 152.9 | AT135: 133.02
A136: 31H111 | B136: 31 | C136: H | D136: 111 | E136: 20.57 | F136: 7528.62 | H136: POTEN31H111 | K136: 40.65 | L136: 44.95 | M136: 49.47 | N136: 53.51 | O136: 58.45 | P136: 62.72 | Q136: 70.09 | R136: 78.54 | S136: 85.67 | T136: 90.19 | U136: 95.56 | V136: 123.31 | W136: 151.01 | X136: 196.3 | Z136: ASCENDIENTES65H148 | AA136: 65 | AB136: H | AC136: 148 | AD136: 295.39 | AE136: 108112.74 | AG136: POT- ASCENDIENTES65H148 | AH136: 736.16 | AI136: 566.22 | AJ136: 449.49 | AK136: 332.83 | AL136: 310.82 | AM136: 292.59 | AN136: 263.82 | AO136: 224.97 | AP136: 202.13 | AQ136: 189 | AR136: 176.4 | AS136: 152.9 | AT136: 133.02
A137: 32H111 | B137: 32 | C137: H | D137: 111 | E137: 20.57 | F137: 7528.62 | H137: POTEN32H111 | K137: 40.65 | L137: 44.95 | M137: 49.47 | N137: 53.51 | O137: 58.45 | P137: 62.72 | Q137: 70.09 | R137: 78.54 | S137: 85.67 | T137: 90.19 | U137: 95.56 | V137: 123.31 | W137: 151.01 | X137: 196.3 | Z137: ASCENDIENTES66H148 | AA137: 66 | AB137: H | AC137: 148 | AD137: 295.39 | AE137: 108112.74 | AG137: POT- ASCENDIENTES66H148 | AH137: 736.16 | AI137: 566.22 | AJ137: 449.49 | AK137: 332.83 | AL137: 310.82 | AM137: 292.59 | AN137: 263.82 | AO137: 224.97 | AP137: 202.13 | AQ137: 189 | AR137: 176.4 | AS137: 152.9 | AT137: 133.02
A138: 33H111 | B138: 33 | C138: H | D138: 111 | E138: 20.57 | F138: 7528.62 | H138: POTEN33H111 | K138: 40.65 | L138: 44.95 | M138: 49.47 | N138: 53.51 | O138: 58.45 | P138: 62.72 | Q138: 70.09 | R138: 78.54 | S138: 85.67 | T138: 90.19 | U138: 95.56 | V138: 123.31 | W138: 151.01 | X138: 196.3 | Z138: ASCENDIENTES67H148 | AA138: 67 | AB138: H | AC138: 148 | AD138: 295.39 | AE138: 108112.74 | AG138: POT- ASCENDIENTES67H148 | AH138: 736.16 | AI138: 566.22 | AJ138: 449.49 | AK138: 332.83 | AL138: 310.82 | AM138: 292.59 | AN138: 263.82 | AO138: 224.97 | AP138: 202.13 | AQ138: 189 | AR138: 176.4 | AS138: 152.9 | AT138: 133.02
A139: 34H111 | B139: 34 | C139: H | D139: 111 | E139: 20.57 | F139: 7528.62 | H139: POTEN34H111 | K139: 40.65 | L139: 44.95 | M139: 49.47 | N139: 53.51 | O139: 58.45 | P139: 62.72 | Q139: 70.09 | R139: 78.54 | S139: 85.67 | T139: 90.19 | U139: 95.56 | V139: 123.31 | W139: 151.01 | X139: 196.3 | Z139: ASCENDIENTES68H148 | AA139: 68 | AB139: H | AC139: 148 | AD139: 295.39 | AE139: 108112.74 | AG139: POT- ASCENDIENTES68H148 | AH139: 736.16 | AI139: 566.22 | AJ139: 449.49 | AK139: 332.83 | AL139: 310.82 | AM139: 292.59 | AN139: 263.82 | AO139: 224.97 | AP139: 202.13 | AQ139: 189 | AR139: 176.4 | AS139: 152.9 | AT139: 133.02
A140: 35H111 | B140: 35 | C140: H | D140: 111 | E140: 23.72 | F140: 8681.52 | H140: POTEN35H111 | K140: 40.65 | L140: 44.95 | M140: 49.47 | N140: 53.51 | O140: 58.45 | P140: 62.72 | Q140: 70.09 | R140: 78.54 | S140: 85.67 | T140: 90.19 | U140: 95.56 | V140: 123.31 | W140: 151.01 | X140: 196.3 | Z140: ASCENDIENTES69H148 | AA140: 69 | AB140: H | AC140: 148 | AD140: 295.39 | AE140: 108112.74 | AG140: POT- ASCENDIENTES69H148 | AH140: 736.16 | AI140: 566.22 | AJ140: 449.49 | AK140: 332.83 | AL140: 310.82 | AM140: 292.59 | AN140: 263.82 | AO140: 224.97 | AP140: 202.13 | AQ140: 189 | AR140: 176.4 | AS140: 152.9 | AT140: 133.02
A141: 36H111 | B141: 36 | C141: H | D141: 111 | E141: 23.72 | F141: 8681.52 | H141: POTEN36H111 | K141: 40.65 | L141: 44.95 | M141: 49.47 | N141: 53.51 | O141: 58.45 | P141: 62.72 | Q141: 70.09 | R141: 78.54 | S141: 85.67 | T141: 90.19 | U141: 95.56 | V141: 123.31 | W141: 151.01 | X141: 196.3 | Z141: ASCENDIENTES70H148 | AA141: 70 | AB141: H | AC141: 148 | AD141: 295.39 | AE141: 108112.74 | AG141: POT- ASCENDIENTES70H148 | AH141: 736.16 | AI141: 566.22 | AJ141: 449.49 | AK141: 332.83 | AL141: 310.82 | AM141: 292.59 | AN141: 263.82 | AO141: 224.97 | AP141: 202.13 | AQ141: 189 | AR141: 176.4 | AS141: 152.9 | AT141: 133.02
A142: 37H111 | B142: 37 | C142: H | D142: 111 | E142: 23.72 | F142: 8681.52 | H142: POTEN37H111 | K142: 40.65 | L142: 44.95 | M142: 49.47 | N142: 53.51 | O142: 58.45 | P142: 62.72 | Q142: 70.09 | R142: 78.54 | S142: 85.67 | T142: 90.19 | U142: 95.56 | V142: 123.31 | W142: 151.01 | X142: 196.3 | Z142: ASCENDIENTES71H148 | AA142: 71 | AB142: H | AC142: 148 | AD142: 295.39 | AE142: 108112.74 | AG142: POT- ASCENDIENTES71H148 | AH142: 897.49 | AI142: 690.36 | AJ142: 548.19 | AK142: 405.91 | AL142: 379.09 | AM142: 356.71 | AN142: 321.83 | AO142: 274.29 | AP142: 246.63 | AQ142: 230.43 | AR142: 215.09 | AS142: 186.59 | AT142: 162.26
A143: 38H111 | B143: 38 | C143: H | D143: 111 | E143: 23.72 | F143: 8681.52 | H143: POTEN38H111 | K143: 40.65 | L143: 44.95 | M143: 49.47 | N143: 53.51 | O143: 58.45 | P143: 62.72 | Q143: 70.09 | R143: 78.54 | S143: 85.67 | T143: 90.19 | U143: 95.56 | V143: 123.31 | W143: 151.01 | X143: 196.3 | Z143: ASCENDIENTES72H148 | AA143: 72 | AB143: H | AC143: 148 | AD143: 295.39 | AE143: 108112.74 | AG143: POT- ASCENDIENTES72H148 | AH143: 897.49 | AI143: 690.36 | AJ143: 548.19 | AK143: 405.91 | AL143: 379.09 | AM143: 356.71 | AN143: 321.83 | AO143: 274.29 | AP143: 246.63 | AQ143: 230.43 | AR143: 215.09 | AS143: 186.59 | AT143: 162.26
A144: 39H111 | B144: 39 | C144: H | D144: 111 | E144: 23.72 | F144: 8681.52 | H144: POTEN39H111 | K144: 40.65 | L144: 44.95 | M144: 49.47 | N144: 53.51 | O144: 58.45 | P144: 62.72 | Q144: 70.09 | R144: 78.54 | S144: 85.67 | T144: 90.19 | U144: 95.56 | V144: 123.31 | W144: 151.01 | X144: 196.3 | Z144: ASCENDIENTES73H148 | AA144: 73 | AB144: H | AC144: 148 | AD144: 295.39 | AE144: 108112.74 | AG144: POT- ASCENDIENTES73H148 | AH144: 897.49 | AI144: 690.36 | AJ144: 548.19 | AK144: 405.91 | AL144: 379.09 | AM144: 356.71 | AN144: 321.83 | AO144: 274.29 | AP144: 246.63 | AQ144: 230.43 | AR144: 215.09 | AS144: 186.59 | AT144: 162.26
A145: 40H111 | B145: 40 | C145: H | D145: 111 | E145: 28.06 | F145: 10269.96 | H145: POTEN40H111 | K145: 40.65 | L145: 44.95 | M145: 49.47 | N145: 53.51 | O145: 58.45 | P145: 62.72 | Q145: 70.09 | R145: 78.54 | S145: 85.67 | T145: 90.19 | U145: 95.56 | V145: 123.31 | W145: 151.01 | X145: 196.3 | Z145: ASCENDIENTES74H148 | AA145: 74 | AB145: H | AC145: 148 | AD145: 295.39 | AE145: 108112.74 | AG145: POT- ASCENDIENTES74H148 | AH145: 897.49 | AI145: 690.36 | AJ145: 548.19 | AK145: 405.91 | AL145: 379.09 | AM145: 356.71 | AN145: 321.83 | AO145: 274.29 | AP145: 246.63 | AQ145: 230.43 | AR145: 215.09 | AS145: 186.59 | AT145: 162.26
A146: 41H111 | B146: 41 | C146: H | D146: 111 | E146: 28.06 | F146: 10269.96 | H146: POTEN41H111 | K146: 40.65 | L146: 44.95 | M146: 49.47 | N146: 53.51 | O146: 58.45 | P146: 62.72 | Q146: 70.09 | R146: 78.54 | S146: 85.67 | T146: 90.19 | U146: 95.56 | V146: 123.31 | W146: 151.01 | X146: 196.3 | Z146: ASCENDIENTES75H148 | AA146: 75 | AB146: H | AC146: 148 | AD146: 295.39 | AE146: 108112.74 | AG146: POT- ASCENDIENTES75H148 | AH146: 897.49 | AI146: 690.36 | AJ146: 548.19 | AK146: 405.91 | AL146: 379.09 | AM146: 356.71 | AN146: 321.83 | AO146: 274.29 | AP146: 246.63 | AQ146: 230.43 | AR146: 215.09 | AS146: 186.59 | AT146: 162.26
A147: 42H111 | B147: 42 | C147: H | D147: 111 | E147: 28.06 | F147: 10269.96 | H147: POTEN42H111 | K147: 40.65 | L147: 44.95 | M147: 49.47 | N147: 53.51 | O147: 58.45 | P147: 62.72 | Q147: 70.09 | R147: 78.54 | S147: 85.67 | T147: 90.19 | U147: 95.56 | V147: 123.31 | W147: 151.01 | X147: 196.3 | Z147: ASCENDIENTES76H148 | AA147: 76 | AB147: H | AC147: 148 | AD147: 295.39 | AE147: 108112.74 | AG147: POT- ASCENDIENTES76H148 | AH147: 1079.55 | AI147: 830.42 | AJ147: 659.3 | AK147: 488.24 | AL147: 455.87 | AM147: 429.04 | AN147: 386.96 | AO147: 329.86 | AP147: 296.57 | AQ147: 277.16 | AR147: 258.75 | AS147: 224.33 | AT147: 195.19
A148: 43H111 | B148: 43 | C148: H | D148: 111 | E148: 28.06 | F148: 10269.96 | H148: POTEN43H111 | K148: 40.65 | L148: 44.95 | M148: 49.47 | N148: 53.51 | O148: 58.45 | P148: 62.72 | Q148: 70.09 | R148: 78.54 | S148: 85.67 | T148: 90.19 | U148: 95.56 | V148: 123.31 | W148: 151.01 | X148: 196.3 | Z148: ASCENDIENTES77H148 | AA148: 77 | AB148: H | AC148: 148 | AD148: 295.39 | AE148: 108112.74 | AG148: POT- ASCENDIENTES77H148 | AH148: 1079.55 | AI148: 830.42 | AJ148: 659.3 | AK148: 488.24 | AL148: 455.87 | AM148: 429.04 | AN148: 386.96 | AO148: 329.86 | AP148: 296.57 | AQ148: 277.16 | AR148: 258.75 | AS148: 224.33 | AT148: 195.19
A149: 44H111 | B149: 44 | C149: H | D149: 111 | E149: 28.06 | F149: 10269.96 | H149: POTEN44H111 | K149: 40.65 | L149: 44.95 | M149: 49.47 | N149: 53.51 | O149: 58.45 | P149: 62.72 | Q149: 70.09 | R149: 78.54 | S149: 85.67 | T149: 90.19 | U149: 95.56 | V149: 123.31 | W149: 151.01 | X149: 196.3 | Z149: ASCENDIENTES78H148 | AA149: 78 | AB149: H | AC149: 148 | AD149: 295.39 | AE149: 108112.74 | AG149: POT- ASCENDIENTES78H148 | AH149: 1079.55 | AI149: 830.42 | AJ149: 659.3 | AK149: 488.24 | AL149: 455.87 | AM149: 429.04 | AN149: 386.96 | AO149: 329.86 | AP149: 296.57 | AQ149: 277.16 | AR149: 258.75 | AS149: 224.33 | AT149: 195.19
A150: 45H111 | B150: 45 | C150: H | D150: 111 | E150: 34.64 | F150: 12678.24 | H150: POTEN45H111 | K150: 40.65 | L150: 44.95 | M150: 49.47 | N150: 53.51 | O150: 58.45 | P150: 62.72 | Q150: 70.09 | R150: 78.54 | S150: 85.67 | T150: 90.19 | U150: 95.56 | V150: 123.31 | W150: 151.01 | X150: 196.3 | Z150: ASCENDIENTES79H148 | AA150: 79 | AB150: H | AC150: 148 | AD150: 295.39 | AE150: 108112.74 | AG150: POT- ASCENDIENTES79H148 | AH150: 1079.55 | AI150: 830.42 | AJ150: 659.3 | AK150: 488.24 | AL150: 455.87 | AM150: 429.04 | AN150: 386.96 | AO150: 329.86 | AP150: 296.57 | AQ150: 277.16 | AR150: 258.75 | AS150: 224.33 | AT150: 195.19
A151: 46H111 | B151: 46 | C151: H | D151: 111 | E151: 34.64 | F151: 12678.24 | H151: POTEN46H111 | K151: 40.65 | L151: 44.95 | M151: 49.47 | N151: 53.51 | O151: 58.45 | P151: 62.72 | Q151: 70.09 | R151: 78.54 | S151: 85.67 | T151: 90.19 | U151: 95.56 | V151: 123.31 | W151: 151.01 | X151: 196.3 | Z151: ASCENDIENTES80H148 | AA151: 80 | AB151: H | AC151: 148 | AD151: 295.39 | AE151: 108112.74 | AG151: POT- ASCENDIENTES80H148 | AH151: 1079.55 | AI151: 830.42 | AJ151: 659.3 | AK151: 488.24 | AL151: 455.87 | AM151: 429.04 | AN151: 386.96 | AO151: 329.86 | AP151: 296.57 | AQ151: 277.16 | AR151: 258.75 | AS151: 224.33 | AT151: 195.19
A152: 47H111 | B152: 47 | C152: H | D152: 111 | E152: 34.64 | F152: 12678.24 | H152: POTEN47H111 | K152: 40.65 | L152: 44.95 | M152: 49.47 | N152: 53.51 | O152: 58.45 | P152: 62.72 | Q152: 70.09 | R152: 78.54 | S152: 85.67 | T152: 90.19 | U152: 95.56 | V152: 123.31 | W152: 151.01 | X152: 196.3 | Z152: ASCENDIENTES81H148 | AA152: 81 | AB152: H | AC152: 148 | AD152: 295.39 | AE152: 108112.74 | AG152: POT- ASCENDIENTES81H148 | AH152: 1187.5 | AI152: 913.41 | AJ152: 725.15 | AK152: 536.89 | AL152: 501.48 | AM152: 471.97 | AN152: 425.71 | AO152: 362.92 | AP152: 326.27 | AQ152: 304.89 | AR152: 284.55 | AS152: 246.79 | AT152: 214.7
A153: 48H111 | B153: 48 | C153: H | D153: 111 | E153: 34.64 | F153: 12678.24 | H153: POTEN48H111 | K153: 40.65 | L153: 44.95 | M153: 49.47 | N153: 53.51 | O153: 58.45 | P153: 62.72 | Q153: 70.09 | R153: 78.54 | S153: 85.67 | T153: 90.19 | U153: 95.56 | V153: 123.31 | W153: 151.01 | X153: 196.3 | Z153: ASCENDIENTES82H148 | AA153: 82 | AB153: H | AC153: 148 | AD153: 295.39 | AE153: 108112.74 | AG153: POT- ASCENDIENTES82H148 | AH153: 1187.5 | AI153: 913.41 | AJ153: 725.15 | AK153: 536.89 | AL153: 501.48 | AM153: 471.97 | AN153: 425.71 | AO153: 362.92 | AP153: 326.27 | AQ153: 304.89 | AR153: 284.55 | AS153: 246.79 | AT153: 214.7
A154: 49H111 | B154: 49 | C154: H | D154: 111 | E154: 34.64 | F154: 12678.24 | H154: POTEN49H111 | K154: 40.65 | L154: 44.95 | M154: 49.47 | N154: 53.51 | O154: 58.45 | P154: 62.72 | Q154: 70.09 | R154: 78.54 | S154: 85.67 | T154: 90.19 | U154: 95.56 | V154: 123.31 | W154: 151.01 | X154: 196.3 | Z154: ASCENDIENTES83H148 | AA154: 83 | AB154: H | AC154: 148 | AD154: 295.39 | AE154: 108112.74 | AG154: POT- ASCENDIENTES83H148 | AH154: 1187.5 | AI154: 913.41 | AJ154: 725.15 | AK154: 536.89 | AL154: 501.48 | AM154: 471.97 | AN154: 425.71 | AO154: 362.92 | AP154: 326.27 | AQ154: 304.89 | AR154: 284.55 | AS154: 246.79 | AT154: 214.7
A155: 50H111 | B155: 50 | C155: H | D155: 111 | E155: 44.88 | F155: 16426.08 | H155: POTEN50H111 | K155: 40.65 | L155: 44.95 | M155: 49.47 | N155: 53.51 | O155: 58.45 | P155: 62.72 | Q155: 70.09 | R155: 78.54 | S155: 85.67 | T155: 90.19 | U155: 95.56 | V155: 123.31 | W155: 151.01 | X155: 196.3 | Z155: ASCENDIENTES84H148 | AA155: 84 | AB155: H | AC155: 148 | AD155: 295.39 | AE155: 108112.74 | AG155: POT- ASCENDIENTES84H148 | AH155: 1187.5 | AI155: 913.41 | AJ155: 725.15 | AK155: 536.89 | AL155: 501.48 | AM155: 471.97 | AN155: 425.71 | AO155: 362.92 | AP155: 326.27 | AQ155: 304.89 | AR155: 284.55 | AS155: 246.79 | AT155: 214.7
A156: 51H111 | B156: 51 | C156: H | D156: 111 | E156: 44.88 | F156: 16426.08 | H156: POTEN51H111 | K156: 40.65 | L156: 44.95 | M156: 49.47 | N156: 53.51 | O156: 58.45 | P156: 62.72 | Q156: 70.09 | R156: 78.54 | S156: 85.67 | T156: 90.19 | U156: 95.56 | V156: 123.31 | W156: 151.01 | X156: 196.3 | Z156: ASCENDIENTES85H148 | AA156: 85 | AB156: H | AC156: 148 | AD156: 295.39 | AE156: 108112.74 | AG156: POT- ASCENDIENTES85H148 | AH156: 1187.5 | AI156: 913.41 | AJ156: 725.15 | AK156: 536.89 | AL156: 501.48 | AM156: 471.97 | AN156: 425.71 | AO156: 362.92 | AP156: 326.27 | AQ156: 304.89 | AR156: 284.55 | AS156: 246.79 | AT156: 214.7
A157: 52H111 | B157: 52 | C157: H | D157: 111 | E157: 44.88 | F157: 16426.08 | H157: POTEN52H111 | K157: 40.65 | L157: 44.95 | M157: 49.47 | N157: 53.51 | O157: 58.45 | P157: 62.72 | Q157: 70.09 | R157: 78.54 | S157: 85.67 | T157: 90.19 | U157: 95.56 | V157: 123.31 | W157: 151.01 | X157: 196.3 | Z157: ASCENDIENTES35H185 | AA157: 35 | AB157: H | AC157: 185 | AD157: 302.09 | AE157: 110564.94 | AG157: POT- ASCENDIENTES35H185 | AH157: 687.42 | AI157: 528.76 | AJ157: 414.14 | AK157: 299.54 | AL157: 278.17 | AM157: 260.58 | AN157: 233.13 | AO157: 198.07 | AP157: 173.54 | AQ157: 163.46 | AR157: 150.88 | AS157: 137.94
A158: 53H111 | B158: 53 | C158: H | D158: 111 | E158: 44.88 | F158: 16426.08 | H158: POTEN53H111 | K158: 40.65 | L158: 44.95 | M158: 49.47 | N158: 53.51 | O158: 58.45 | P158: 62.72 | Q158: 70.09 | R158: 78.54 | S158: 85.67 | T158: 90.19 | U158: 95.56 | V158: 123.31 | W158: 151.01 | X158: 196.3 | Z158: ASCENDIENTES36H185 | AA158: 36 | AB158: H | AC158: 185 | AD158: 302.09 | AE158: 110564.94 | AG158: POT- ASCENDIENTES36H185 | AH158: 687.42 | AI158: 528.76 | AJ158: 414.14 | AK158: 299.54 | AL158: 278.17 | AM158: 260.58 | AN158: 233.13 | AO158: 198.07 | AP158: 173.54 | AQ158: 163.46 | AR158: 150.88 | AS158: 137.94
A159: 54H111 | B159: 54 | C159: H | D159: 111 | E159: 44.88 | F159: 16426.08 | H159: POTEN54H111 | K159: 40.65 | L159: 44.95 | M159: 49.47 | N159: 53.51 | O159: 58.45 | P159: 62.72 | Q159: 70.09 | R159: 78.54 | S159: 85.67 | T159: 90.19 | U159: 95.56 | V159: 123.31 | W159: 151.01 | X159: 196.3 | Z159: ASCENDIENTES37H185 | AA159: 37 | AB159: H | AC159: 185 | AD159: 302.09 | AE159: 110564.94 | AG159: POT- ASCENDIENTES37H185 | AH159: 687.42 | AI159: 528.76 | AJ159: 414.14 | AK159: 299.54 | AL159: 278.17 | AM159: 260.58 | AN159: 233.13 | AO159: 198.07 | AP159: 173.54 | AQ159: 163.46 | AR159: 150.88 | AS159: 137.94
A160: 55H111 | B160: 55 | C160: H | D160: 111 | E160: 54.33 | F160: 19884.78 | H160: POTEN55H111 | K160: 40.65 | L160: 44.95 | M160: 49.47 | N160: 53.51 | O160: 58.45 | P160: 62.72 | Q160: 70.09 | R160: 78.54 | S160: 85.67 | T160: 90.19 | U160: 95.56 | V160: 123.31 | W160: 151.01 | X160: 196.3 | Z160: ASCENDIENTES38H185 | AA160: 38 | AB160: H | AC160: 185 | AD160: 302.09 | AE160: 110564.94 | AG160: POT- ASCENDIENTES38H185 | AH160: 687.42 | AI160: 528.76 | AJ160: 414.14 | AK160: 299.54 | AL160: 278.17 | AM160: 260.58 | AN160: 233.13 | AO160: 198.07 | AP160: 173.54 | AQ160: 163.46 | AR160: 150.88 | AS160: 137.94
A161: 56H111 | B161: 56 | C161: H | D161: 111 | E161: 54.33 | F161: 19884.78 | H161: POTEN56H111 | K161: 40.65 | L161: 44.95 | M161: 49.47 | N161: 53.51 | O161: 58.45 | P161: 62.72 | Q161: 70.09 | R161: 78.54 | S161: 85.67 | T161: 90.19 | U161: 95.56 | V161: 123.31 | W161: 151.01 | X161: 196.3 | Z161: ASCENDIENTES39H185 | AA161: 39 | AB161: H | AC161: 185 | AD161: 302.09 | AE161: 110564.94 | AG161: POT- ASCENDIENTES39H185 | AH161: 687.42 | AI161: 528.76 | AJ161: 414.14 | AK161: 299.54 | AL161: 278.17 | AM161: 260.58 | AN161: 233.13 | AO161: 198.07 | AP161: 173.54 | AQ161: 163.46 | AR161: 150.88 | AS161: 137.94
A162: 57H111 | B162: 57 | C162: H | D162: 111 | E162: 54.33 | F162: 19884.78 | H162: POTEN57H111 | K162: 40.65 | L162: 44.95 | M162: 49.47 | N162: 53.51 | O162: 58.45 | P162: 62.72 | Q162: 70.09 | R162: 78.54 | S162: 85.67 | T162: 90.19 | U162: 95.56 | V162: 123.31 | W162: 151.01 | X162: 196.3 | Z162: ASCENDIENTES40H185 | AA162: 40 | AB162: H | AC162: 185 | AD162: 302.09 | AE162: 110564.94 | AG162: POT- ASCENDIENTES40H185 | AH162: 687.42 | AI162: 528.76 | AJ162: 414.14 | AK162: 299.54 | AL162: 278.17 | AM162: 260.58 | AN162: 233.13 | AO162: 198.07 | AP162: 173.54 | AQ162: 163.46 | AR162: 150.88 | AS162: 137.94
A163: 58H111 | B163: 58 | C163: H | D163: 111 | E163: 54.33 | F163: 19884.78 | H163: POTEN58H111 | K163: 40.65 | L163: 44.95 | M163: 49.47 | N163: 53.51 | O163: 58.45 | P163: 62.72 | Q163: 70.09 | R163: 78.54 | S163: 85.67 | T163: 90.19 | U163: 95.56 | V163: 123.31 | W163: 151.01 | X163: 196.3 | Z163: ASCENDIENTES41H185 | AA163: 41 | AB163: H | AC163: 185 | AD163: 302.09 | AE163: 110564.94 | AG163: POT- ASCENDIENTES41H185 | AH163: 687.42 | AI163: 528.76 | AJ163: 414.14 | AK163: 299.54 | AL163: 278.17 | AM163: 260.58 | AN163: 233.13 | AO163: 198.07 | AP163: 173.54 | AQ163: 163.46 | AR163: 150.88 | AS163: 137.94
A164: 59H111 | B164: 59 | C164: H | D164: 111 | E164: 54.33 | F164: 19884.78 | H164: POTEN59H111 | K164: 40.65 | L164: 44.95 | M164: 49.47 | N164: 53.51 | O164: 58.45 | P164: 62.72 | Q164: 70.09 | R164: 78.54 | S164: 85.67 | T164: 90.19 | U164: 95.56 | V164: 123.31 | W164: 151.01 | X164: 196.3 | Z164: ASCENDIENTES42H185 | AA164: 42 | AB164: H | AC164: 185 | AD164: 302.09 | AE164: 110564.94 | AG164: POT- ASCENDIENTES42H185 | AH164: 687.42 | AI164: 528.76 | AJ164: 414.14 | AK164: 299.54 | AL164: 278.17 | AM164: 260.58 | AN164: 233.13 | AO164: 198.07 | AP164: 173.54 | AQ164: 163.46 | AR164: 150.88 | AS164: 137.94
A165: 60H111 | B165: 60 | C165: H | D165: 111 | E165: 67.6 | F165: 24741.6 | H165: POTEN60H111 | K165: 40.65 | L165: 44.95 | M165: 49.47 | N165: 53.51 | O165: 58.45 | P165: 62.72 | Q165: 70.09 | R165: 78.54 | S165: 85.67 | T165: 90.19 | U165: 95.56 | V165: 123.31 | W165: 151.01 | X165: 196.3 | Z165: ASCENDIENTES43H185 | AA165: 43 | AB165: H | AC165: 185 | AD165: 302.09 | AE165: 110564.94 | AG165: POT- ASCENDIENTES43H185 | AH165: 687.42 | AI165: 528.76 | AJ165: 414.14 | AK165: 299.54 | AL165: 278.17 | AM165: 260.58 | AN165: 233.13 | AO165: 198.07 | AP165: 173.54 | AQ165: 163.46 | AR165: 150.88 | AS165: 137.94
A166: 61H111 | B166: 61 | C166: H | D166: 111 | E166: 67.6 | F166: 24741.6 | H166: POTEN61H111 | K166: 40.65 | L166: 44.95 | M166: 49.47 | N166: 53.51 | O166: 58.45 | P166: 62.72 | Q166: 70.09 | R166: 78.54 | S166: 85.67 | T166: 90.19 | U166: 95.56 | V166: 123.31 | W166: 151.01 | X166: 196.3 | Z166: ASCENDIENTES44H185 | AA166: 44 | AB166: H | AC166: 185 | AD166: 302.09 | AE166: 110564.94 | AG166: POT- ASCENDIENTES44H185 | AH166: 687.42 | AI166: 528.76 | AJ166: 414.14 | AK166: 299.54 | AL166: 278.17 | AM166: 260.58 | AN166: 233.13 | AO166: 198.07 | AP166: 173.54 | AQ166: 163.46 | AR166: 150.88 | AS166: 137.94
A167: 62H111 | B167: 62 | C167: H | D167: 111 | E167: 67.6 | F167: 24741.6 | H167: POTEN62H111 | K167: 40.65 | L167: 44.95 | M167: 49.47 | N167: 53.51 | O167: 58.45 | P167: 62.72 | Q167: 70.09 | R167: 78.54 | S167: 85.67 | T167: 90.19 | U167: 95.56 | V167: 123.31 | W167: 151.01 | X167: 196.3 | Z167: ASCENDIENTES45H185 | AA167: 45 | AB167: H | AC167: 185 | AD167: 302.09 | AE167: 110564.94 | AG167: POT- ASCENDIENTES45H185 | AH167: 687.42 | AI167: 528.76 | AJ167: 414.14 | AK167: 299.54 | AL167: 278.17 | AM167: 260.58 | AN167: 233.13 | AO167: 198.07 | AP167: 173.54 | AQ167: 163.46 | AR167: 150.88 | AS167: 137.94
A168: 63H111 | B168: 63 | C168: H | D168: 111 | E168: 67.6 | F168: 24741.6 | H168: POTEN63H111 | K168: 40.65 | L168: 44.95 | M168: 49.47 | N168: 53.51 | O168: 58.45 | P168: 62.72 | Q168: 70.09 | R168: 78.54 | S168: 85.67 | T168: 90.19 | U168: 95.56 | V168: 123.31 | W168: 151.01 | X168: 196.3 | Z168: ASCENDIENTES46H185 | AA168: 46 | AB168: H | AC168: 185 | AD168: 302.09 | AE168: 110564.94 | AG168: POT- ASCENDIENTES46H185 | AH168: 687.42 | AI168: 528.76 | AJ168: 414.14 | AK168: 299.54 | AL168: 278.17 | AM168: 260.58 | AN168: 233.13 | AO168: 198.07 | AP168: 173.54 | AQ168: 163.46 | AR168: 150.88 | AS168: 137.94
A169: 64H111 | B169: 64 | C169: H | D169: 111 | E169: 67.6 | F169: 24741.6 | H169: POTEN64H111 | K169: 40.65 | L169: 44.95 | M169: 49.47 | N169: 53.51 | O169: 58.45 | P169: 62.72 | Q169: 70.09 | R169: 78.54 | S169: 85.67 | T169: 90.19 | U169: 95.56 | V169: 123.31 | W169: 151.01 | X169: 196.3 | Z169: ASCENDIENTES47H185 | AA169: 47 | AB169: H | AC169: 185 | AD169: 302.09 | AE169: 110564.94 | AG169: POT- ASCENDIENTES47H185 | AH169: 687.42 | AI169: 528.76 | AJ169: 414.14 | AK169: 299.54 | AL169: 278.17 | AM169: 260.58 | AN169: 233.13 | AO169: 198.07 | AP169: 173.54 | AQ169: 163.46 | AR169: 150.88 | AS169: 137.94
A170: 65H111 | B170: 65 | C170: H | D170: 111 | E170: 94.15 | F170: 34458.9 | H170: POTEN65H111 | K170: 40.65 | L170: 44.95 | M170: 49.47 | N170: 53.51 | O170: 58.45 | P170: 62.72 | Q170: 70.09 | R170: 78.54 | S170: 85.67 | T170: 90.19 | U170: 95.56 | V170: 123.31 | W170: 151.01 | X170: 196.3 | Z170: ASCENDIENTES48H185 | AA170: 48 | AB170: H | AC170: 185 | AD170: 302.09 | AE170: 110564.94 | AG170: POT- ASCENDIENTES48H185 | AH170: 687.42 | AI170: 528.76 | AJ170: 414.14 | AK170: 299.54 | AL170: 278.17 | AM170: 260.58 | AN170: 233.13 | AO170: 198.07 | AP170: 173.54 | AQ170: 163.46 | AR170: 150.88 | AS170: 137.94
A171: 66H111 | B171: 66 | C171: H | D171: 111 | E171: 94.15 | F171: 34458.9 | H171: POTEN66H111 | K171: 40.65 | L171: 44.95 | M171: 49.47 | N171: 53.51 | O171: 58.45 | P171: 62.72 | Q171: 70.09 | R171: 78.54 | S171: 85.67 | T171: 90.19 | U171: 95.56 | V171: 123.31 | W171: 151.01 | X171: 196.3 | Z171: ASCENDIENTES49H185 | AA171: 49 | AB171: H | AC171: 185 | AD171: 302.09 | AE171: 110564.94 | AG171: POT- ASCENDIENTES49H185 | AH171: 687.42 | AI171: 528.76 | AJ171: 414.14 | AK171: 299.54 | AL171: 278.17 | AM171: 260.58 | AN171: 233.13 | AO171: 198.07 | AP171: 173.54 | AQ171: 163.46 | AR171: 150.88 | AS171: 137.94
A172: 67H111 | B172: 67 | C172: H | D172: 111 | E172: 94.15 | F172: 34458.9 | H172: POTEN67H111 | K172: 40.65 | L172: 44.95 | M172: 49.47 | N172: 53.51 | O172: 58.45 | P172: 62.72 | Q172: 70.09 | R172: 78.54 | S172: 85.67 | T172: 90.19 | U172: 95.56 | V172: 123.31 | W172: 151.01 | X172: 196.3 | Z172: ASCENDIENTES50H185 | AA172: 50 | AB172: H | AC172: 185 | AD172: 302.09 | AE172: 110564.94 | AG172: POT- ASCENDIENTES50H185 | AH172: 687.42 | AI172: 528.76 | AJ172: 414.14 | AK172: 299.54 | AL172: 278.17 | AM172: 260.58 | AN172: 233.13 | AO172: 198.07 | AP172: 173.54 | AQ172: 163.46 | AR172: 150.88 | AS172: 137.94
A173: 68H111 | B173: 68 | C173: H | D173: 111 | E173: 94.15 | F173: 34458.9 | H173: POTEN68H111 | K173: 40.65 | L173: 44.95 | M173: 49.47 | N173: 53.51 | O173: 58.45 | P173: 62.72 | Q173: 70.09 | R173: 78.54 | S173: 85.67 | T173: 90.19 | U173: 95.56 | V173: 123.31 | W173: 151.01 | X173: 196.3 | Z173: ASCENDIENTES51H185 | AA173: 51 | AB173: H | AC173: 185 | AD173: 302.09 | AE173: 110564.94 | AG173: POT- ASCENDIENTES51H185 | AH173: 687.42 | AI173: 528.76 | AJ173: 414.14 | AK173: 299.54 | AL173: 278.17 | AM173: 260.58 | AN173: 233.13 | AO173: 198.07 | AP173: 173.54 | AQ173: 163.46 | AR173: 150.88 | AS173: 137.94
A174: 69H111 | B174: 69 | C174: H | D174: 111 | E174: 94.15 | F174: 34458.9 | H174: POTEN69H111 | K174: 40.65 | L174: 44.95 | M174: 49.47 | N174: 53.51 | O174: 58.45 | P174: 62.72 | Q174: 70.09 | R174: 78.54 | S174: 85.67 | T174: 90.19 | U174: 95.56 | V174: 123.31 | W174: 151.01 | X174: 196.3 | Z174: ASCENDIENTES52H185 | AA174: 52 | AB174: H | AC174: 185 | AD174: 302.09 | AE174: 110564.94 | AG174: POT- ASCENDIENTES52H185 | AH174: 687.42 | AI174: 528.76 | AJ174: 414.14 | AK174: 299.54 | AL174: 278.17 | AM174: 260.58 | AN174: 233.13 | AO174: 198.07 | AP174: 173.54 | AQ174: 163.46 | AR174: 150.88 | AS174: 137.94
A175: 70H111 | B175: 70 | C175: H | D175: 111 | E175: 126.34 | F175: 46240.44 | H175: POTEN70H111 | K175: 40.65 | L175: 44.95 | M175: 49.47 | N175: 53.51 | O175: 58.45 | P175: 62.72 | Q175: 70.09 | R175: 78.54 | S175: 85.67 | T175: 90.19 | U175: 95.56 | V175: 123.31 | W175: 151.01 | X175: 196.3 | Z175: ASCENDIENTES53H185 | AA175: 53 | AB175: H | AC175: 185 | AD175: 302.09 | AE175: 110564.94 | AG175: POT- ASCENDIENTES53H185 | AH175: 687.42 | AI175: 528.76 | AJ175: 414.14 | AK175: 299.54 | AL175: 278.17 | AM175: 260.58 | AN175: 233.13 | AO175: 198.07 | AP175: 173.54 | AQ175: 163.46 | AR175: 150.88 | AS175: 137.94
A176: 71H111 | B176: 71 | C176: H | D176: 111 | E176: 126.34 | F176: 46240.44 | H176: POTEN71H111 | K176: 40.65 | L176: 44.95 | M176: 49.47 | N176: 53.51 | O176: 58.45 | P176: 62.72 | Q176: 70.09 | R176: 78.54 | S176: 85.67 | T176: 90.19 | U176: 95.56 | V176: 123.31 | W176: 151.01 | X176: 196.3 | Z176: ASCENDIENTES54H185 | AA176: 54 | AB176: H | AC176: 185 | AD176: 302.09 | AE176: 110564.94 | AG176: POT- ASCENDIENTES54H185 | AH176: 687.42 | AI176: 528.76 | AJ176: 414.14 | AK176: 299.54 | AL176: 278.17 | AM176: 260.58 | AN176: 233.13 | AO176: 198.07 | AP176: 173.54 | AQ176: 163.46 | AR176: 150.88 | AS176: 137.94
A177: 72H111 | B177: 72 | C177: H | D177: 111 | E177: 126.34 | F177: 46240.44 | H177: POTEN72H111 | K177: 40.65 | L177: 44.95 | M177: 49.47 | N177: 53.51 | O177: 58.45 | P177: 62.72 | Q177: 70.09 | R177: 78.54 | S177: 85.67 | T177: 90.19 | U177: 95.56 | V177: 123.31 | W177: 151.01 | X177: 196.3 | Z177: ASCENDIENTES55H185 | AA177: 55 | AB177: H | AC177: 185 | AD177: 302.09 | AE177: 110564.94 | AG177: POT- ASCENDIENTES55H185 | AH177: 687.42 | AI177: 528.76 | AJ177: 414.14 | AK177: 299.54 | AL177: 278.17 | AM177: 260.58 | AN177: 233.13 | AO177: 198.07 | AP177: 173.54 | AQ177: 163.46 | AR177: 150.88 | AS177: 137.94
A178: 73H111 | B178: 73 | C178: H | D178: 111 | E178: 126.34 | F178: 46240.44 | H178: POTEN73H111 | K178: 40.65 | L178: 44.95 | M178: 49.47 | N178: 53.51 | O178: 58.45 | P178: 62.72 | Q178: 70.09 | R178: 78.54 | S178: 85.67 | T178: 90.19 | U178: 95.56 | V178: 123.31 | W178: 151.01 | X178: 196.3 | Z178: ASCENDIENTES56H185 | AA178: 56 | AB178: H | AC178: 185 | AD178: 302.09 | AE178: 110564.94 | AG178: POT- ASCENDIENTES56H185 | AH178: 687.42 | AI178: 528.76 | AJ178: 414.14 | AK178: 299.54 | AL178: 278.17 | AM178: 260.58 | AN178: 233.13 | AO178: 198.07 | AP178: 173.54 | AQ178: 163.46 | AR178: 150.88 | AS178: 137.94
A179: 74H111 | B179: 74 | C179: H | D179: 111 | E179: 126.34 | F179: 46240.44 | H179: POTEN74H111 | K179: 40.65 | L179: 44.95 | M179: 49.47 | N179: 53.51 | O179: 58.45 | P179: 62.72 | Q179: 70.09 | R179: 78.54 | S179: 85.67 | T179: 90.19 | U179: 95.56 | V179: 123.31 | W179: 151.01 | X179: 196.3 | Z179: ASCENDIENTES57H185 | AA179: 57 | AB179: H | AC179: 185 | AD179: 302.09 | AE179: 110564.94 | AG179: POT- ASCENDIENTES57H185 | AH179: 687.42 | AI179: 528.76 | AJ179: 414.14 | AK179: 299.54 | AL179: 278.17 | AM179: 260.58 | AN179: 233.13 | AO179: 198.07 | AP179: 173.54 | AQ179: 163.46 | AR179: 150.88 | AS179: 137.94
A180: 75H111 | B180: 75 | C180: H | D180: 111 | E180: 155.05 | F180: 56748.3 | H180: POTEN75H111 | K180: 40.65 | L180: 44.95 | M180: 49.47 | N180: 53.51 | O180: 58.45 | P180: 62.72 | Q180: 70.09 | R180: 78.54 | S180: 85.67 | T180: 90.19 | U180: 95.56 | V180: 123.31 | W180: 151.01 | X180: 196.3 | Z180: ASCENDIENTES58H185 | AA180: 58 | AB180: H | AC180: 185 | AD180: 302.09 | AE180: 110564.94 | AG180: POT- ASCENDIENTES58H185 | AH180: 687.42 | AI180: 528.76 | AJ180: 414.14 | AK180: 299.54 | AL180: 278.17 | AM180: 260.58 | AN180: 233.13 | AO180: 198.07 | AP180: 173.54 | AQ180: 163.46 | AR180: 150.88 | AS180: 137.94
A181: 76H111 | B181: 76 | C181: H | D181: 111 | E181: 155.05 | F181: 56748.3 | H181: POTEN76H111 | K181: 40.65 | L181: 44.95 | M181: 49.47 | N181: 53.51 | O181: 58.45 | P181: 62.72 | Q181: 70.09 | R181: 78.54 | S181: 85.67 | T181: 90.19 | U181: 95.56 | V181: 123.31 | W181: 151.01 | X181: 196.3 | Z181: ASCENDIENTES59H185 | AA181: 59 | AB181: H | AC181: 185 | AD181: 302.09 | AE181: 110564.94 | AG181: POT- ASCENDIENTES59H185 | AH181: 687.42 | AI181: 528.76 | AJ181: 414.14 | AK181: 299.54 | AL181: 278.17 | AM181: 260.58 | AN181: 233.13 | AO181: 198.07 | AP181: 173.54 | AQ181: 163.46 | AR181: 150.88 | AS181: 137.94
A182: 77H111 | B182: 77 | C182: H | D182: 111 | E182: 155.05 | F182: 56748.3 | H182: POTEN77H111 | K182: 40.65 | L182: 44.95 | M182: 49.47 | N182: 53.51 | O182: 58.45 | P182: 62.72 | Q182: 70.09 | R182: 78.54 | S182: 85.67 | T182: 90.19 | U182: 95.56 | V182: 123.31 | W182: 151.01 | X182: 196.3 | Z182: ASCENDIENTES60H185 | AA182: 60 | AB182: H | AC182: 185 | AD182: 302.09 | AE182: 110564.94 | AG182: POT- ASCENDIENTES60H185 | AH182: 687.42 | AI182: 528.76 | AJ182: 414.14 | AK182: 299.54 | AL182: 278.17 | AM182: 260.58 | AN182: 233.13 | AO182: 198.07 | AP182: 173.54 | AQ182: 163.46 | AR182: 150.88 | AS182: 137.94
A183: 78H111 | B183: 78 | C183: H | D183: 111 | E183: 155.05 | F183: 56748.3 | H183: POTEN78H111 | K183: 40.65 | L183: 44.95 | M183: 49.47 | N183: 53.51 | O183: 58.45 | P183: 62.72 | Q183: 70.09 | R183: 78.54 | S183: 85.67 | T183: 90.19 | U183: 95.56 | V183: 123.31 | W183: 151.01 | X183: 196.3 | Z183: ASCENDIENTES61H185 | AA183: 61 | AB183: H | AC183: 185 | AD183: 302.09 | AE183: 110564.94 | AG183: POT- ASCENDIENTES61H185 | AH183: 687.42 | AI183: 528.76 | AJ183: 414.14 | AK183: 299.54 | AL183: 278.17 | AM183: 260.58 | AN183: 233.13 | AO183: 198.07 | AP183: 173.54 | AQ183: 163.46 | AR183: 150.88 | AS183: 137.94
A184: 79H111 | B184: 79 | C184: H | D184: 111 | E184: 155.05 | F184: 56748.3 | H184: POTEN79H111 | K184: 40.65 | L184: 44.95 | M184: 49.47 | N184: 53.51 | O184: 58.45 | P184: 62.72 | Q184: 70.09 | R184: 78.54 | S184: 85.67 | T184: 90.19 | U184: 95.56 | V184: 123.31 | W184: 151.01 | X184: 196.3 | Z184: ASCENDIENTES62H185 | AA184: 62 | AB184: H | AC184: 185 | AD184: 302.09 | AE184: 110564.94 | AG184: POT- ASCENDIENTES62H185 | AH184: 687.42 | AI184: 528.76 | AJ184: 414.14 | AK184: 299.54 | AL184: 278.17 | AM184: 260.58 | AN184: 233.13 | AO184: 198.07 | AP184: 173.54 | AQ184: 163.46 | AR184: 150.88 | AS184: 137.94
A185: 80H111 | B185: 80 | C185: H | D185: 111 | E185: 155.05 | F185: 56748.3 | H185: POTEN80H111 | K185: 40.65 | L185: 44.95 | M185: 49.47 | N185: 53.51 | O185: 58.45 | P185: 62.72 | Q185: 70.09 | R185: 78.54 | S185: 85.67 | T185: 90.19 | U185: 95.56 | V185: 123.31 | W185: 151.01 | X185: 196.3 | Z185: ASCENDIENTES63H185 | AA185: 63 | AB185: H | AC185: 185 | AD185: 302.09 | AE185: 110564.94 | AG185: POT- ASCENDIENTES63H185 | AH185: 687.42 | AI185: 528.76 | AJ185: 414.14 | AK185: 299.54 | AL185: 278.17 | AM185: 260.58 | AN185: 233.13 | AO185: 198.07 | AP185: 173.54 | AQ185: 163.46 | AR185: 150.88 | AS185: 137.94
A186: 81H111 | B186: 81 | C186: H | D186: 111 | E186: 155.05 | F186: 56748.3 | H186: POTEN81H111 | K186: 40.65 | L186: 44.95 | M186: 49.47 | N186: 53.51 | O186: 58.45 | P186: 62.72 | Q186: 70.09 | R186: 78.54 | S186: 85.67 | T186: 90.19 | U186: 95.56 | V186: 123.31 | W186: 151.01 | X186: 196.3 | Z186: ASCENDIENTES64H185 | AA186: 64 | AB186: H | AC186: 185 | AD186: 302.09 | AE186: 110564.94 | AG186: POT- ASCENDIENTES64H185 | AH186: 687.42 | AI186: 528.76 | AJ186: 414.14 | AK186: 299.54 | AL186: 278.17 | AM186: 260.58 | AN186: 233.13 | AO186: 198.07 | AP186: 173.54 | AQ186: 163.46 | AR186: 150.88 | AS186: 137.94
A187: 82H111 | B187: 82 | C187: H | D187: 111 | E187: 155.05 | F187: 56748.3 | H187: POTEN82H111 | K187: 40.65 | L187: 44.95 | M187: 49.47 | N187: 53.51 | O187: 58.45 | P187: 62.72 | Q187: 70.09 | R187: 78.54 | S187: 85.67 | T187: 90.19 | U187: 95.56 | V187: 123.31 | W187: 151.01 | X187: 196.3 | Z187: ASCENDIENTES65H185 | AA187: 65 | AB187: H | AC187: 185 | AD187: 302.09 | AE187: 110564.94 | AG187: POT- ASCENDIENTES65H185 | AH187: 687.42 | AI187: 528.76 | AJ187: 414.14 | AK187: 299.54 | AL187: 278.17 | AM187: 260.58 | AN187: 233.13 | AO187: 198.07 | AP187: 173.54 | AQ187: 163.46 | AR187: 150.88 | AS187: 137.94
A188: 83H111 | B188: 83 | C188: H | D188: 111 | E188: 155.05 | F188: 56748.3 | H188: POTEN83H111 | K188: 40.65 | L188: 44.95 | M188: 49.47 | N188: 53.51 | O188: 58.45 | P188: 62.72 | Q188: 70.09 | R188: 78.54 | S188: 85.67 | T188: 90.19 | U188: 95.56 | V188: 123.31 | W188: 151.01 | X188: 196.3 | Z188: ASCENDIENTES66H185 | AA188: 66 | AB188: H | AC188: 185 | AD188: 302.09 | AE188: 110564.94 | AG188: POT- ASCENDIENTES66H185 | AH188: 687.42 | AI188: 528.76 | AJ188: 414.14 | AK188: 299.54 | AL188: 278.17 | AM188: 260.58 | AN188: 233.13 | AO188: 198.07 | AP188: 173.54 | AQ188: 163.46 | AR188: 150.88 | AS188: 137.94
A189: 84H111 | B189: 84 | C189: H | D189: 111 | E189: 155.05 | F189: 56748.3 | H189: POTEN84H111 | K189: 40.65 | L189: 44.95 | M189: 49.47 | N189: 53.51 | O189: 58.45 | P189: 62.72 | Q189: 70.09 | R189: 78.54 | S189: 85.67 | T189: 90.19 | U189: 95.56 | V189: 123.31 | W189: 151.01 | X189: 196.3 | Z189: ASCENDIENTES67H185 | AA189: 67 | AB189: H | AC189: 185 | AD189: 302.09 | AE189: 110564.94 | AG189: POT- ASCENDIENTES67H185 | AH189: 687.42 | AI189: 528.76 | AJ189: 414.14 | AK189: 299.54 | AL189: 278.17 | AM189: 260.58 | AN189: 233.13 | AO189: 198.07 | AP189: 173.54 | AQ189: 163.46 | AR189: 150.88 | AS189: 137.94
A190: 85H111 | B190: 85 | C190: H | D190: 111 | E190: 155.05 | F190: 56748.3 | H190: POTEN85H111 | K190: 40.65 | L190: 44.95 | M190: 49.47 | N190: 53.51 | O190: 58.45 | P190: 62.72 | Q190: 70.09 | R190: 78.54 | S190: 85.67 | T190: 90.19 | U190: 95.56 | V190: 123.31 | W190: 151.01 | X190: 196.3 | Z190: ASCENDIENTES68H185 | AA190: 68 | AB190: H | AC190: 185 | AD190: 302.09 | AE190: 110564.94 | AG190: POT- ASCENDIENTES68H185 | AH190: 687.42 | AI190: 528.76 | AJ190: 414.14 | AK190: 299.54 | AL190: 278.17 | AM190: 260.58 | AN190: 233.13 | AO190: 198.07 | AP190: 173.54 | AQ190: 163.46 | AR190: 150.88 | AS190: 137.94
A191: 86H111 | B191: 86 | C191: H | D191: 111 | E191: 155.05 | F191: 56748.3 | H191: POTEN86H111 | K191: 40.65 | L191: 44.95 | M191: 49.47 | N191: 53.51 | O191: 58.45 | P191: 62.72 | Q191: 70.09 | R191: 78.54 | S191: 85.67 | T191: 90.19 | U191: 95.56 | V191: 123.31 | W191: 151.01 | X191: 196.3 | Z191: ASCENDIENTES69H185 | AA191: 69 | AB191: H | AC191: 185 | AD191: 302.09 | AE191: 110564.94 | AG191: POT- ASCENDIENTES69H185 | AH191: 687.42 | AI191: 528.76 | AJ191: 414.14 | AK191: 299.54 | AL191: 278.17 | AM191: 260.58 | AN191: 233.13 | AO191: 198.07 | AP191: 173.54 | AQ191: 163.46 | AR191: 150.88 | AS191: 137.94
A192: 87H111 | B192: 87 | C192: H | D192: 111 | E192: 155.05 | F192: 56748.3 | H192: POTEN87H111 | K192: 40.65 | L192: 44.95 | M192: 49.47 | N192: 53.51 | O192: 58.45 | P192: 62.72 | Q192: 70.09 | R192: 78.54 | S192: 85.67 | T192: 90.19 | U192: 95.56 | V192: 123.31 | W192: 151.01 | X192: 196.3 | Z192: ASCENDIENTES70H185 | AA192: 70 | AB192: H | AC192: 185 | AD192: 302.09 | AE192: 110564.94 | AG192: POT- ASCENDIENTES70H185 | AH192: 687.42 | AI192: 528.76 | AJ192: 414.14 | AK192: 299.54 | AL192: 278.17 | AM192: 260.58 | AN192: 233.13 | AO192: 198.07 | AP192: 173.54 | AQ192: 163.46 | AR192: 150.88 | AS192: 137.94
A193: 88H111 | B193: 88 | C193: H | D193: 111 | E193: 155.05 | F193: 56748.3 | H193: POTEN88H111 | K193: 40.65 | L193: 44.95 | M193: 49.47 | N193: 53.51 | O193: 58.45 | P193: 62.72 | Q193: 70.09 | R193: 78.54 | S193: 85.67 | T193: 90.19 | U193: 95.56 | V193: 123.31 | W193: 151.01 | X193: 196.3 | Z193: ASCENDIENTES71H185 | AA193: 71 | AB193: H | AC193: 185 | AD193: 302.09 | AE193: 110564.94 | AG193: POT- ASCENDIENTES71H185 | AH193: 838.29 | AI193: 644.87 | AJ193: 504.98 | AK193: 365.23 | AL193: 339.31 | AM193: 317.85 | AN193: 284.28 | AO193: 241.54 | AP193: 211.73 | AQ193: 199.36 | AR193: 184 | AS193: 168.27
A194: 89H111 | B194: 89 | C194: H | D194: 111 | E194: 155.05 | F194: 56748.3 | H194: POTEN89H111 | K194: 40.65 | L194: 44.95 | M194: 49.47 | N194: 53.51 | O194: 58.45 | P194: 62.72 | Q194: 70.09 | R194: 78.54 | S194: 85.67 | T194: 90.19 | U194: 95.56 | V194: 123.31 | W194: 151.01 | X194: 196.3 | Z194: ASCENDIENTES72H185 | AA194: 72 | AB194: H | AC194: 185 | AD194: 302.09 | AE194: 110564.94 | AG194: POT- ASCENDIENTES72H185 | AH194: 838.29 | AI194: 644.87 | AJ194: 504.98 | AK194: 365.23 | AL194: 339.31 | AM194: 317.85 | AN194: 284.28 | AO194: 241.54 | AP194: 211.73 | AQ194: 199.36 | AR194: 184 | AS194: 168.27
A195: 90H111 | B195: 90 | C195: H | D195: 111 | E195: 155.05 | F195: 56748.3 | H195: POTEN90H111 | K195: 40.65 | L195: 44.95 | M195: 49.47 | N195: 53.51 | O195: 58.45 | P195: 62.72 | Q195: 70.09 | R195: 78.54 | S195: 85.67 | T195: 90.19 | U195: 95.56 | V195: 123.31 | W195: 151.01 | X195: 196.3 | Z195: ASCENDIENTES73H185 | AA195: 73 | AB195: H | AC195: 185 | AD195: 302.09 | AE195: 110564.94 | AG195: POT- ASCENDIENTES73H185 | AH195: 838.29 | AI195: 644.87 | AJ195: 504.98 | AK195: 365.23 | AL195: 339.31 | AM195: 317.85 | AN195: 284.28 | AO195: 241.54 | AP195: 211.73 | AQ195: 199.36 | AR195: 184 | AS195: 168.27
A196: 91H111 | B196: 91 | C196: H | D196: 111 | E196: 155.05 | F196: 56748.3 | H196: POTEN91H111 | K196: 40.65 | L196: 44.95 | M196: 49.47 | N196: 53.51 | O196: 58.45 | P196: 62.72 | Q196: 70.09 | R196: 78.54 | S196: 85.67 | T196: 90.19 | U196: 95.56 | V196: 123.31 | W196: 151.01 | X196: 196.3 | Z196: ASCENDIENTES74H185 | AA196: 74 | AB196: H | AC196: 185 | AD196: 302.09 | AE196: 110564.94 | AG196: POT- ASCENDIENTES74H185 | AH196: 838.29 | AI196: 644.87 | AJ196: 504.98 | AK196: 365.23 | AL196: 339.31 | AM196: 317.85 | AN196: 284.28 | AO196: 241.54 | AP196: 211.73 | AQ196: 199.36 | AR196: 184 | AS196: 168.27
A197: =+CONCATENATE($B197,$C197,$D197,) -> 92H111 | B197: 92 | C197: H | D197: 111 | E197: 155.05 | F197: =+E197*366 -> 56748.3 | H197: =+CONCATENATE($I$2,$B197,$C197,$D197,) -> POTEN92H111 | K197: 40.65 | L197: 44.95 | M197: 49.47 | N197: 53.51 | O197: 58.45 | P197: 62.72 | Q197: 70.09 | R197: 78.54 | S197: 85.67 | T197: 90.19 | U197: 95.56 | V197: 123.31 | W197: 151.01 | X197: 196.3 | Z197: =+CONCATENATE($AA$2,$AA197,$AB197,$AC197,) -> ASCENDIENTES75H185 | AA197: 75 | AB197: H | AC197: 185 | AD197: 302.09 | AE197: =+AD197*366 -> 110564.94 | AG197: =+CONCATENATE($AH$2,$AA197,$AB197,$AC197,) -> POT- ASCENDIENTES75H185 | AH197: 838.29 | AI197: 644.87 | AJ197: 504.98 | AK197: 365.23 | AL197: 339.31 | AM197: 317.85 | AN197: 284.28 | AO197: 241.54 | AP197: 211.73 | AQ197: 199.36 | AR197: 184 | AS197: 168.27
A198: 93H111 | B198: 93 | C198: H | D198: 111 | E198: 155.05 | F198: 56748.3 | H198: POTEN93H111 | K198: 40.65 | L198: 44.95 | M198: 49.47 | N198: 53.51 | O198: 58.45 | P198: 62.72 | Q198: 70.09 | R198: 78.54 | S198: 85.67 | T198: 90.19 | U198: 95.56 | V198: 123.31 | W198: 151.01 | X198: 196.3 | Z198: ASCENDIENTES76H185 | AA198: 76 | AB198: H | AC198: 185 | AD198: 302.09 | AE198: 110564.94 | AG198: POT- ASCENDIENTES76H185 | AH198: 1008.32 | AI198: 775.67 | AJ198: 607.49 | AK198: 439.33 | AL198: 408.05 | AM198: 382.16 | AN198: 341.91 | AO198: 290.49 | AP198: 254.56 | AQ198: 239.69 | AR198: 221.37 | AS198: 202.32
A199: 94H111 | B199: 94 | C199: H | D199: 111 | E199: 155.05 | F199: 56748.3 | H199: POTEN94H111 | K199: 40.65 | L199: 44.95 | M199: 49.47 | N199: 53.51 | O199: 58.45 | P199: 62.72 | Q199: 70.09 | R199: 78.54 | S199: 85.67 | T199: 90.19 | U199: 95.56 | V199: 123.31 | W199: 151.01 | X199: 196.3 | Z199: ASCENDIENTES77H185 | AA199: 77 | AB199: H | AC199: 185 | AD199: 302.09 | AE199: 110564.94 | AG199: POT- ASCENDIENTES77H185 | AH199: 1008.32 | AI199: 775.67 | AJ199: 607.49 | AK199: 439.33 | AL199: 408.05 | AM199: 382.16 | AN199: 341.91 | AO199: 290.49 | AP199: 254.56 | AQ199: 239.69 | AR199: 221.37 | AS199: 202.32
A200: 95H111 | B200: 95 | C200: H | D200: 111 | E200: 155.05 | F200: 56748.3 | H200: POTEN95H111 | K200: 40.65 | L200: 44.95 | M200: 49.47 | N200: 53.51 | O200: 58.45 | P200: 62.72 | Q200: 70.09 | R200: 78.54 | S200: 85.67 | T200: 90.19 | U200: 95.56 | V200: 123.31 | W200: 151.01 | X200: 196.3 | Z200: ASCENDIENTES78H185 | AA200: 78 | AB200: H | AC200: 185 | AD200: 302.09 | AE200: 110564.94 | AG200: POT- ASCENDIENTES78H185 | AH200: 1008.32 | AI200: 775.67 | AJ200: 607.49 | AK200: 439.33 | AL200: 408.05 | AM200: 382.16 | AN200: 341.91 | AO200: 290.49 | AP200: 254.56 | AQ200: 239.69 | AR200: 221.37 | AS200: 202.32
... 611 more rows

Sheet NIVEL_DE_PUESTO (hidden)
A1: NIVEL DE PUESTO
A2: Código | B2: PUESTO | C2: NIVEL | D2: SEGURO DE GASTOS MÉDICOS MAYORES (SUMA ASEGURADA BÁSICA) | I2: PUESTO | K2: SEGURO DE GASTOS MÉDICOS MAYORES (SUMA ASEGURADA BÁSICA) | M2: NIVEL | N2: DENOMINACIÓN
A3: FG0A001 | B3: FG0A001-Fiscal General | C3: AZ1 | D3: 74 | E3: UMAM | G3: =+CONCATENATE(A3,"-",B3) -> FG0A001-FG0A001-Fiscal General | I3: Fiscal General | K3: 74 | L3: UMA´s | M3: AZ1 | N3: Fiscal General
A4: FG0A002 | B4: FG0A002-Fiscal Especializado | C4: AY1 | D4: 74 | E4: UMAM | G4: =+CONCATENATE(A4,"-",B4) -> FG0A002-FG0A002-Fiscal Especializado | I4: Fiscal Especializado | K4: 74 | L4: UMA´s | M4: AY1 | N4: Fiscal Especializado
A5: FG0A003 | B5: FG0A003-Fiscal Especial | C5: AX1 | D5: 74 | E5: UMAM | G5: FG0A003-FG0A003-Fiscal Especial | I5: Fiscal Especial | K5: 74 | L5: UMA´s | M5: AX1 | N5: Fiscal Especial
A6: FG0A004 | B6: FG0A004-Fiscal Especial | C6: AX2 | D6: 74 | E6: UMAM | G6: FG0A004-FG0A004-Fiscal Especial | I6: Fiscal Especial | K6: 74 | L6: UMA´s | M6: AX2 | N6: Fiscal Especial
A7: FG0A005 | B7: FG0A005-Fiscal Especial | C7: AX3 | D7: 74 | E7: UMAM | G7: FG0A005-FG0A005-Fiscal Especial | I7: Fiscal Especial | K7: 74 | L7: UMA´s | M7: AX3 | N7: Fiscal Especial
A8: FG0A006 | B8: FG0A006-Fiscal Especial | C8: AW1 | D8: 74 | E8: UMAM | G8: FG0A006-FG0A006-Fiscal Especial | I8: Fiscal Especial | K8: 74 | L8: UMA´s | M8: AW1 | N8: Fiscal Especial
A9: FG0A007 | B9: FG0A007-Fiscal Especial | C9: AW2 | D9: 74 | E9: UMAM | G9: FG0A007-FG0A007-Fiscal Especial | I9: Fiscal Especial | K9: 74 | L9: UMA´s | M9: AW2 | N9: Fiscal Especial
A10: FG0A008 | B10: FG0A008-Fiscal Especial | C10: AW3 | D10: 74 | E10: UMAM | G10: FG0A008-FG0A008-Fiscal Especial | I10: Fiscal Especial | K10: 74 | L10: UMA´s | M10: AW3 | N10: Fiscal Especial
A11: FG0A009 | B11: FG0A009-Fiscal Federal | C11: AV1 | D11: 74 | E11: UMAM | G11: FG0A009-FG0A009-Fiscal Federal | I11: Fiscal Federal | K11: 74 | L11: UMA´s | M11: AV1 | N11: Fiscal Federal
A12: FG0A010 | B12: FG0A010-Fiscal Federal | C12: AV2 | D12: 74 | E12: UMAM | G12: FG0A010-FG0A010-Fiscal Federal | I12: Fiscal Federal | K12: 74 | L12: UMA´s | M12: AV2 | N12: Fiscal Federal
A13: FG0A011 | B13: FG0A011-Fiscal Federal | C13: AV3 | D13: 74 | E13: UMAM | G13: FG0A011-FG0A011-Fiscal Federal | I13: Fiscal Federal | K13: 74 | L13: UMA´s | M13: AV3 | N13: Fiscal Federal
A14: FG0A012 | B14: FG0A012-Fiscal Federal | C14: AU1 | D14: 74 | E14: UMAM | G14: FG0A012-FG0A012-Fiscal Federal | I14: Fiscal Federal | K14: 74 | L14: UMA´s | M14: AU1 | N14: Fiscal Federal
A15: FG0A013 | B15: FG0A013-Fiscal Federal | C15: AU2 | D15: 74 | E15: UMAM | G15: FG0A013-FG0A013-Fiscal Federal | I15: Fiscal Federal | K15: 74 | L15: UMA´s | M15: AU2 | N15: Fiscal Federal
A16: FG0A014 | B16: FG0A014-Fiscal Federal | C16: AU3 | D16: 74 | E16: UMAM | G16: FG0A014-FG0A014-Fiscal Federal | I16: Fiscal Federal | K16: 74 | L16: UMA´s | M16: AU3 | N16: Fiscal Federal
A17: FG0A015 | B17: FG0A015-Fiscal | C17: AT1 | D17: 74 | E17: UMAM | G17: FG0A015-FG0A015-Fiscal | I17: Fiscal | K17: 74 | L17: UMA´s | M17: AT1 | N17: Fiscal
A18: FG0A016 | B18: FG0A016-Fiscal | C18: AT2 | D18: 74 | E18: UMAM | G18: FG0A016-FG0A016-Fiscal | I18: Fiscal | K18: 74 | L18: UMA´s | M18: AT2 | N18: Fiscal
A19: FG0A017 | B19: FG0A017-Fiscal | C19: AT3 | D19: 74 | E19: UMAM | G19: FG0A017-FG0A017-Fiscal | I19: Fiscal | K19: 74 | L19: UMA´s | M19: AT3 | N19: Fiscal
A20: FG0A018 | B20: FG0A018-Fiscal | C20: AS1 | D20: 74 | E20: UMAM | G20: FG0A018-FG0A018-Fiscal | I20: Fiscal | K20: 74 | L20: UMA´s | M20: AS1 | N20: Fiscal
A21: FG0A019 | B21: FG0A019-Fiscal | C21: AS2 | D21: 74 | E21: UMAM | G21: FG0A019-FG0A019-Fiscal | I21: Fiscal | K21: 74 | L21: UMA´s | M21: AS2 | N21: Fiscal
A22: FG0A020 | B22: FG0A020-Fiscal | C22: AS3 | D22: 74 | E22: UMAM | G22: FG0A020-FG0A020-Fiscal | I22: Fiscal | K22: 74 | L22: UMA´s | M22: AS3 | N22: Fiscal
A23: FG0A021 | B23: FG0A021-Fiscal | C23: AR1 | D23: 74 | E23: UMAM | G23: FG0A021-FG0A021-Fiscal | I23: Fiscal | K23: 74 | L23: UMA´s | M23: AR1 | N23: Fiscal
A24: FG0A022 | B24: FG0A022-Fiscal | C24: AR2 | D24: 74 | E24: UMAM | G24: FG0A022-FG0A022-Fiscal | I24: Fiscal | K24: 74 | L24: UMA´s | M24: AR2 | N24: Fiscal
A25: FG0A023 | B25: FG0A023-Fiscal | C25: AR3 | D25: 74 | E25: UMAM | G25: FG0A023-FG0A023-Fiscal | I25: Fiscal | K25: 74 | L25: UMA´s | M25: AR3 | N25: Fiscal
A26: FG0A024 | B26: FG0A024-Fiscal | C26: AQ1 | D26: 74 | E26: UMAM | G26: FG0A024-FG0A024-Fiscal | I26: Fiscal | K26: 74 | L26: UMA´s | M26: AQ1 | N26: Fiscal
A27: FG0A025 | B27: FG0A025-Fiscal | C27: AQ2 | D27: 74 | E27: UMAM | G27: FG0A025-FG0A025-Fiscal | I27: Fiscal | K27: 74 | L27: UMA´s | M27: AQ2 | N27: Fiscal
A28: FG0A026 | B28: FG0A026-Fiscal | C28: AQ3 | D28: 74 | E28: UMAM | G28: FG0A026-FG0A026-Fiscal | I28: Fiscal | K28: 74 | L28: UMA´s | M28: AQ3 | N28: Fiscal
A29: FG0A027 | B29: FG0A027-Fiscal | C29: AP1 | D29: 74 | E29: UMAM | G29: FG0A027-FG0A027-Fiscal | I29: Fiscal | K29: 74 | L29: UMA´s | M29: AP1 | N29: Fiscal
A30: FG0A028 | B30: FG0A028-Fiscal | C30: AP2 | D30: 74 | E30: UMAM | G30: FG0A028-FG0A028-Fiscal | I30: Fiscal | K30: 74 | L30: UMA´s | M30: AP2 | N30: Fiscal
A31: FG0A029 | B31: FG0A029-Fiscal | C31: AP3 | D31: 74 | E31: UMAM | G31: FG0A029-FG0A029-Fiscal | I31: Fiscal | K31: 74 | L31: UMA´s | M31: AP3 | N31: Fiscal
A32: FG0B001 | B32: FG0B001-Titular de la Agencia de Investigación Criminal | C32: BZ1 | D32: 74 | E32: UMAM | G32: FG0B001-FG0B001-Titular de la Agencia de Investigación Criminal | I32: Titular de la Agencia de Investigación Criminal | K32: 74 | L32: UMA´s | M32: BZ1 | N32: Titular de la Agencia de Investigación Criminal
A33: FG0B011 | B33: FG0B011-Inspector General de Operaciones | C33: BZ2 | D33: 74 | E33: UMAM | G33: FG0B011-FG0B011-Inspector General de Operaciones | I33: Inspector General de Operaciones | K33: 74 | L33: UMA´s | M33: BZ2 | N33: Inspector General de Operaciones
A34: FG0B012 | B34: FG0B012-Inspector de Operaciones | C34: BZ3 | D34: 74 | E34: UMAM | G34: FG0B012-FG0B012-Inspector de Operaciones | I34: Inspector de Operaciones | K34: 74 | L34: UMA´s | M34: BZ3 | N34: Inspector de Operaciones
A35: FG0B002 | B35: FG0B002-Jefe de Unidad | C35: BY1 | D35: 74 | E35: UMAM | G35: FG0B002-FG0B002-Jefe de Unidad | I35: Jefe de Unidad | K35: 74 | L35: UMA´s | M35: BY1 | N35: Jefe de Unidad
A36: FG0B003 | B36: FG0B003-Jefe de Unidad | C36: BY2 | D36: 74 | E36: UMAM | G36: FG0B003-FG0B003-Jefe de Unidad | I36: Jefe de Unidad | K36: 74 | L36: UMA´s | M36: BY2 | N36: Jefe de Unidad
A37: FG0B004 | B37: FG0B004-Jefe de Unidad | C37: BY3 | D37: 74 | E37: UMAM | G37: FG0B004-FG0B004-Jefe de Unidad | I37: Jefe de Unidad | K37: 74 | L37: UMA´s | M37: BY3 | N37: Jefe de Unidad
A38: FG0B005 | B38: FG0B005-Titular de Unidad Especializada | C38: BX1 | D38: 74 | E38: UMAM | G38: FG0B005-FG0B005-Titular de Unidad Especializada | I38: Titular de Unidad Especializada | K38: 74 | L38: UMA´s | M38: BX1 | N38: Titular de Unidad Especializada
A39: FG0B006 | B39: FG0B006-Titular de Unidad Especializada | C39: BX2 | D39: 74 | E39: UMAM | G39: FG0B006-FG0B006-Titular de Unidad Especializada | I39: Titular de Unidad Especializada | K39: 74 | L39: UMA´s | M39: BX2 | N39: Titular de Unidad Especializada
A40: FG0B007 | B40: FG0B007-Titular de Unidad Especializada | C40: BX3 | D40: 74 | E40: UMAM | G40: FG0B007-FG0B007-Titular de Unidad Especializada | I40: Titular de Unidad Especializada | K40: 74 | L40: UMA´s | M40: BX3 | N40: Titular de Unidad Especializada
A41: FG0B013 | B41: FG0B013-Titular de Unidad Especializada | C41: BU3 | D41: 74 | E41: UMAM | G41: FG0B013-FG0B013-Titular de Unidad Especializada | I41: Titular de Unidad Especializada | K41: 74 | L41: UMA´s | M41: BU3 | N41: Titular de Unidad Especializada
A42: FG0F001 | B42: FG0F001-Agente del Ministerio Público de la Federación Jefe | C42: FZ1 | D42: 74 | E42: UMAM | G42: FG0F001-FG0F001-Agente del Ministerio Público de la Federación Jefe | I42: Agente del Ministerio Público de la Federación Jefe | K42: 74 | L42: UMA´s | M42: FZ1 | N42: Agente del Ministerio Público de la Federación Jefe
A43: FG0F002 | B43: FG0F002-Agente del Ministerio Público de la Federación Coordinador | C43: FZ2 | D43: 74 | E43: UMAM | G43: FG0F002-FG0F002-Agente del Ministerio Público de la Federación Coordinador | I43: Agente del Ministerio Público de la Federación Coordinador | K43: 74 | L43: UMA´s | M43: FZ2 | N43: Agente del Ministerio Público de la Federación Coordinador
A44: FG0F004 | B44: FG0F004-Agente del Ministerio Público de la Federación Supervisor | C44: FY1 | D44: 74 | E44: UMAM | G44: FG0F004-FG0F004-Agente del Ministerio Público de la Federación Supervisor | I44: Agente del Ministerio Público de la Federación Supervisor | K44: 74 | L44: UMA´s | M44: FY1 | N44: Agente del Ministerio Público de la Federación Supervisor
A45: FG0F008 | B45: FG0F008-Agente del Ministerio Público de la Federación Titular | C45: FX1 | D45: 111 | E45: UMAM | G45: FG0F008-FG0F008-Agente del Ministerio Público de la Federación Titular | I45: Agente del Ministerio Público de la Federación Titular | K45: 111 | L45: UMA´s | M45: FX1 | N45: Agente del Ministerio Público de la Federación Titular
A46: FG0F009 | B46: FG0F009-Agente del Ministerio Público de la Federación Revisor | C46: FX2 | D46: 148 | E46: UMAM | G46: FG0F009-FG0F009-Agente del Ministerio Público de la Federación Revisor | I46: Agente del Ministerio Público de la Federación Revisor | K46: 148 | L46: UMA´s | M46: FX2 | N46: Agente del Ministerio Público de la Federación Revisor
A47: FG0F010 | B47: FG0F010-Agente del Ministerio Público de la Federación Asistente | C47: FX3 | D47: 185 | E47: UMAM | G47: FG0F010-FG0F010-Agente del Ministerio Público de la Federación Asistente | I47: Agente del Ministerio Público de la Federación Asistente | K47: 185 | L47: UMA´s | M47: FX3 | N47: Agente del Ministerio Público de la Federación Asistente
A48: FG0F014 | B48: FG0F014-Auxiliar Ministerial A | C48: FV1 | D48: 74 | E48: UMAM | G48: FG0F014-FG0F014-Auxiliar Ministerial A | I48: Auxiliar Ministerial A | K48: 74 | L48: UMA´s | M48: FV1 | N48: Auxiliar Ministerial A
A49: FG0F015 | B49: FG0F015-Auxiliar Ministerial B | C49: FV2 | D49: 74 | E49: UMAM | G49: FG0F015-FG0F015-Auxiliar Ministerial B | I49: Auxiliar Ministerial B | K49: 74 | L49: UMA´s | M49: FV2 | N49: Auxiliar Ministerial B
A50: FG0F016 | B50: FG0F016-Auxiliar Ministerial C | C50: FV3 | D50: 74 | E50: UMAM | G50: FG0F016-FG0F016-Auxiliar Ministerial C | I50: Auxiliar Ministerial C | K50: 74 | L50: UMA´s | M50: FV3 | N50: Auxiliar Ministerial C
A51: FG0G001 | B51: FG0G001-Jefe Policial | C51: GZ1 | D51: 74 | E51: UMAM | G51: FG0G001-FG0G001-Jefe Policial | I51: Jefe Policial | K51: 74 | L51: UMA´s | M51: GZ1 | N51: Jefe Policial
A52: FG0G002 | B52: FG0G002-Comisario Investigador Jefe | C52: GZ2 | D52: 74 | E52: UMAM | G52: FG0G002-FG0G002-Comisario Investigador Jefe | I52: Comisario Investigador Jefe | K52: 74 | L52: UMA´s | M52: GZ2 | N52: Comisario Investigador Jefe
A53: FG0G003 | B53: FG0G003-Subjefe Policial | C53: GZ3 | D53: 74 | E53: UMAM | G53: FG0G003-FG0G003-Subjefe Policial | I53: Subjefe Policial | K53: 74 | L53: UMA´s | M53: GZ3 | N53: Subjefe Policial
A54: FG0G004 | B54: FG0G004-Comisario Investigador Coordinador | C54: GY1 | D54: 74 | E54: UMAM | G54: FG0G004-FG0G004-Comisario Investigador Coordinador | I54: Comisario Investigador Coordinador | K54: 74 | L54: UMA´s | M54: GY1 | N54: Comisario Investigador Coordinador
A55: FG0G006 | B55: FG0G006-Comisario Investigador | C55: GY3 | D55: 74 | E55: UMAM | G55: FG0G006-FG0G006-Comisario Investigador | I55: Comisario Investigador | K55: 74 | L55: UMA´s | M55: GY3 | N55: Comisario Investigador
A56: FG0G007 | B56: FG0G007-Supervisor Investigador General | C56: GX1 | D56: 74 | E56: UMAM | G56: FG0G007-FG0G007-Supervisor Investigador General | I56: Supervisor Investigador General | K56: 74 | L56: UMA´s | M56: GX1 | N56: Supervisor Investigador General
A57: FG0G008 | B57: FG0G008-Supervisor Investigador Jefe | C57: GX2 | D57: 74 | E57: UMAM | G57: FG0G008-FG0G008-Supervisor Investigador Jefe | I57: Supervisor Investigador Jefe | K57: 74 | L57: UMA´s | M57: GX2 | N57: Supervisor Investigador Jefe
A58: FG0G009 | B58: FG0G009-Supervisor Investigador Oficial | C58: GX3 | D58: 111 | E58: UMAM | G58: FG0G009-FG0G009-Supervisor Investigador Oficial | I58: Supervisor Investigador Oficial | K58: 111 | L58: UMA´s | M58: GX3 | N58: Supervisor Investigador Oficial
A59: FG0G010 | B59: FG0G010-Oficial Investigador A | C59: GW1 | D59: 148 | E59: UMAM | G59: FG0G010-FG0G010-Oficial Investigador A | I59: Oficial Investigador A | K59: 148 | L59: UMA´s | M59: GW1 | N59: Oficial Investigador A
A60: FG0G011 | B60: FG0G011-Oficial Investigador B | C60: GW2 | D60: 185 | E60: UMAM | G60: FG0G011-FG0G011-Oficial Investigador B | I60: Oficial Investigador B | K60: 185 | L60: UMA´s | M60: GW2 | N60: Oficial Investigador B
A61: FG0M013 | B61: FG0M013-Auxiliar Notificador | C61: GV1 | D61: 185 | E61: UMAM | G61: FG0M013-FG0M013-Auxiliar Notificador | I61: Auxiliar Notificador | K61: 185 | L61: UMA´s | M61: GV1 | N61: Auxiliar Notificador
A62: FG0M016 | B62: FG0M016-Auxiliar Policial A | C62: GU1 | D62: 185 | E62: UMAM | G62: FG0M016-FG0M016-Auxiliar Policial A | I62: Auxiliar Policial A | K62: 185 | L62: UMA´s | M62: GU1 | N62: Auxiliar Policial A
A63: FG0M017 | B63: FG0M017-Auxiliar Policial B | C63: GU2 | D63: 185 | E63: UMAM | G63: FG0M017-FG0M017-Auxiliar Policial B | I63: Auxiliar Policial B | K63: 185 | L63: UMA´s | M63: GU2 | N63: Auxiliar Policial B
A64: FG0M018 | B64: FG0M018-Auxiliar Policial C | C64: GU3 | D64: 185 | E64: UMAM | G64: FG0M018-FG0M018-Auxiliar Policial C | I64: Auxiliar Policial C | K64: 185 | L64: UMA´s | M64: GU3 | N64: Auxiliar Policial C
A65: FG0H001 | B65: FG0H001-Perito Profesional Jefe Regional | C65: HZ1 | D65: 74 | E65: UMAM | G65: FG0H001-FG0H001-Perito Profesional Jefe Regional | I65: Perito Profesional Jefe Regional | K65: 74 | L65: UMA´s | M65: HZ1 | N65: Perito Profesional Jefe Regional
A66: FG0H002 | B66: FG0H002-Perito Profesional Jefe Delegacional | C66: HZ2 | D66: 74 | E66: UMAM | G66: FG0H002-FG0H002-Perito Profesional Jefe Delegacional | I66: Perito Profesional Jefe Delegacional | K66: 74 | L66: UMA´s | M66: HZ2 | N66: Perito Profesional Jefe Delegacional
A67: FG0H003 | B67: FG0H003-Perito Profesional Coordinador | C67: HZ3 | D67: 74 | E67: UMAM | G67: FG0H003-FG0H003-Perito Profesional Coordinador | I67: Perito Profesional Coordinador | K67: 74 | L67: UMA´s | M67: HZ3 | N67: Perito Profesional Coordinador
A68: FG0H007 | B68: FG0H007-Perito Técnico Coordinador | C68: HX1 | D68: 74 | E68: UMAM | G68: =+CONCATENATE(A68,"-",B68) -> FG0H007-FG0H007-Perito Técnico Coordinador | I68: Perito Técnico Coordinador | K68: 74 | L68: UMA´s | M68: HX1 | N68: Perito Técnico Coordinador
A69: FG0H004 | B69: FG0H004-Perito Profesional Supervisor | C69: HY1 | D69: 74 | E69: UMAM | G69: FG0H004-FG0H004-Perito Profesional Supervisor | I69: Perito Profesional Supervisor | K69: 74 | L69: UMA´s | M69: HY1 | N69: Perito Profesional Supervisor
A70: FG0H005 | B70: FG0H005-Perito Profesional A | C70: HY2 | D70: 111 | E70: UMAM | G70: FG0H005-FG0H005-Perito Profesional A | I70: Perito Profesional A | K70: 111 | L70: UMA´s | M70: HY2 | N70: Perito Profesional A
A71: FG0H006 | B71: FG0H006-Perito Profesional B | C71: HY3 | D71: 148 | E71: UMAM | G71: FG0H006-FG0H006-Perito Profesional B | I71: Perito Profesional B | K71: 148 | L71: UMA´s | M71: HY3 | N71: Perito Profesional B
A72: FG0H008 | B72: FG0H008-Perito Técnico Supervisor | C72: HW1 | D72: 74 | E72: UMAM | G72: FG0H008-FG0H008-Perito Técnico Supervisor | I72: Perito Técnico Supervisor | K72: 74 | L72: UMA´s | M72: HW1 | N72: Perito Técnico Supervisor
A73: FG0H010 | B73: FG0H010-Perito Técnico A | C73: HW2 | D73: 74 | E73: UMAM | G73: FG0H010-FG0H010-Perito Técnico A | I73: Perito Técnico A | K73: 74 | L73: UMA´s | M73: HW2 | N73: Perito Técnico A
A74: FG0H011 | B74: FG0H011-Perito Técnico B | C74: HW3 | D74: 111 | E74: UMAM | G74: FG0H011-FG0H011-Perito Técnico B | I74: Perito Técnico B | K74: 111 | L74: UMA´s | M74: HW3 | N74: Perito Técnico B
A75: FG0H014 | B75: FG0H014-Auxiliar Pericial B | C75: HV2 | D75: 74 | E75: UMAM | G75: FG0H014-FG0H014-Auxiliar Pericial B | I75: Auxiliar Pericial B | K75: 74 | L75: UMA´s | M75: HV2 | N75: Auxiliar Pericial B
A76: FG0H015 | B76: FG0H015-Auxiliar Pericial C | C76: HV3 | D76: 74 | E76: UMAM | G76: FG0H015-FG0H015-Auxiliar Pericial C | I76: Auxiliar Pericial C | K76: 74 | L76: UMA´s | M76: HV3 | N76: Auxiliar Pericial C
A77: FG0I001 | B77: FG0I001-Analista Jefe de Inteligencia | C77: IZ1 | D77: 74 | E77: UMAM | G77: FG0I001-FG0I001-Analista Jefe de Inteligencia | I77: Analista Jefe de Inteligencia | K77: 74 | L77: UMA´s | M77: IZ1 | N77: Analista Jefe de Inteligencia
A78: FG0I002 | B78: FG0I002-Analista Jefe | C78: IZ2 | D78: 74 | E78: UMAM | G78: FG0I002-FG0I002-Analista Jefe | I78: Analista Jefe | K78: 74 | L78: UMA´s | M78: IZ2 | N78: Analista Jefe
A79: FG0I003 | B79: FG0I003-Analista Coordinador de Inteligencia | C79: IZ3 | D79: 74 | E79: UMAM | G79: FG0I003-FG0I003-Analista Coordinador de Inteligencia | I79: Analista Coordinador de Inteligencia | K79: 74 | L79: UMA´s | M79: IZ3 | N79: Analista Coordinador de Inteligencia
A80: FG0I004 | B80: FG0I004-Analista Especializado en Inteligencia | C80: IY1 | D80: 74 | E80: UMAM | G80: FG0I004-FG0I004-Analista Especializado en Inteligencia | I80: Analista Especializado en Inteligencia | K80: 74 | L80: UMA´s | M80: IY1 | N80: Analista Especializado en Inteligencia
A81: FG0I007 | B81: FG0I007-Analista de Inteligencia | C81: IX1 | D81: 74 | E81: UMAM | G81: FG0I007-FG0I007-Analista de Inteligencia | I81: Analista de Inteligencia | K81: 74 | L81: UMA´s | M81: IX1 | N81: Analista de Inteligencia
A82: FG0I008 | B82: FG0I008-Analista de Información | C82: IX2 | D82: 74 | E82: UMAM | G82: FG0I008-FG0I008-Analista de Información | I82: Analista de Información | K82: 74 | L82: UMA´s | M82: IX2 | N82: Analista de Información
A83: FG0I010 | B83: FG0I010-Analista Técnico A | C83: IW1 | D83: 74 | E83: UMAM | G83: FG0I010-FG0I010-Analista Técnico A | I83: Analista Técnico A | K83: 74 | L83: UMA´s | M83: IW1 | N83: Analista Técnico A
A84: FG0I011 | B84: FG0I011-Analista Técnico B | C84: IW2 | D84: 74 | E84: UMAM | G84: FG0I011-FG0I011-Analista Técnico B | I84: Analista Técnico B | K84: 74 | L84: UMA´s | M84: IW2 | N84: Analista Técnico B
A85: FG0I012 | B85: FG0I012-Analista Técnico C | C85: IW3 | D85: 74 | E85: UMAM | G85: FG0I012-FG0I012-Analista Técnico C | I85: Analista Técnico C | K85: 74 | L85: UMA´s | M85: IW3 | N85: Analista Técnico C
A86: FG0J001 | B86: FG0J001-Facilitador | C86: JZ2 | D86: 148 | E86: UMAM | G86: FG0J001-FG0J001-Facilitador | I86: Facilitador | K86: 148 | L86: UMA´s | M86: JZ2 | N86: Facilitador
A87: FG0J005 | B87: FG0J005-Invitador | C87: JY2 | D87: 148 | E87: UMAM | G87: FG0J005-FG0J005-Invitador | I87: Invitador | K87: 148 | L87: UMA´s | M87: JY2 | N87: Invitador
A88: FG0K001 | B88: FG0K001-Comandante al Mando de Vuelo Ala Fija A | C88: KZ1 | D88: 148 | E88: UMAM | G88: FG0K001-FG0K001-Comandante al Mando de Vuelo Ala Fija A | I88: Comandante al Mando de Vuelo Ala Fija A | K88: 148 | L88: UMA´s | M88: KZ1 | N88: Comandante al Mando de Vuelo Ala Fija A
A89: FG0K002 | B89: FG0K002-Comandante al Mando de Vuelo Ala Fija B | C89: KZ2 | D89: 148 | E89: UMAM | G89: FG0K002-FG0K002-Comandante al Mando de Vuelo Ala Fija B | I89: Comandante al Mando de Vuelo Ala Fija B | K89: 148 | L89: UMA´s | M89: KZ2 | N89: Comandante al Mando de Vuelo Ala Fija B
A90: FG0K003 | B90: FG0K003-Comandante al Mando de Vuelo Ala Fija C | C90: KZ3 | D90: 148 | E90: UMAM | G90: FG0K003-FG0K003-Comandante al Mando de Vuelo Ala Fija C | I90: Comandante al Mando de Vuelo Ala Fija C | K90: 148 | L90: UMA´s | M90: KZ3 | N90: Comandante al Mando de Vuelo Ala Fija C
A91: FG0K004 | B91: FG0K004-Comandante Aéreo Ala Fija | C91: KY1 | D91: 148 | E91: UMAM | G91: FG0K004-FG0K004-Comandante Aéreo Ala Fija | I91: Comandante Aéreo Ala Fija | K91: 148 | L91: UMA´s | M91: KY1 | N91: Comandante Aéreo Ala Fija
A92: FG0K005 | B92: FG0K005-Subcomandante Aéreo Ala Fija | C92: KY2 | D92: 148 | E92: UMAM | G92: FG0K005-FG0K005-Subcomandante Aéreo Ala Fija | I92: Subcomandante Aéreo Ala Fija | K92: 148 | L92: UMA´s | M92: KY2 | N92: Subcomandante Aéreo Ala Fija
A93: FG0K007 | B93: FG0K007-Comandante al Mando y Capacitador de Vuelo | C93: KX1 | D93: 148 | E93: UMAM | G93: FG0K007-FG0K007-Comandante al Mando y Capacitador de Vuelo | I93: Comandante al Mando y Capacitador de Vuelo | K93: 148 | L93: UMA´s | M93: KX1 | N93: Comandante al Mando y Capacitador de Vuelo
A94: FG0K008 | B94: FG0K008-Comandante al Mando de Vuelo Ala Rotativa | C94: KX2 | D94: 148 | E94: UMAM | G94: FG0K008-FG0K008-Comandante al Mando de Vuelo Ala Rotativa | I94: Comandante al Mando de Vuelo Ala Rotativa | K94: 148 | L94: UMA´s | M94: KX2 | N94: Comandante al Mando de Vuelo Ala Rotativa
A95: FG0K010 | B95: FG0K010-Comandante Aéreo Ala Rotativa | C95: KW1 | D95: 148 | E95: UMAM | G95: FG0K010-FG0K010-Comandante Aéreo Ala Rotativa | I95: Comandante Aéreo Ala Rotativa | K95: 148 | L95: UMA´s | M95: KW1 | N95: Comandante Aéreo Ala Rotativa
A96: FG0K011 | B96: FG0K011-Subcomandante Aéreo Ala Rotativa | C96: KW2 | D96: 148 | E96: UMAM | G96: FG0K011-FG0K011-Subcomandante Aéreo Ala Rotativa | I96: Subcomandante Aéreo Ala Rotativa | K96: 148 | L96: UMA´s | M96: KW2 | N96: Subcomandante Aéreo Ala Rotativa
A97: FG0K013 | B97: FG0K013-Capitán Aéreo | C97: KV1 | D97: 148 | E97: UMAM | G97: FG0K013-FG0K013-Capitán Aéreo | I97: Capitán Aéreo | K97: 148 | L97: UMA´s | M97: KV1 | N97: Capitán Aéreo
A98: FG0L001 | B98: FG0L001-Coordinador de Mantenimiento Aéreo | C98: LZ1 | D98: 185 | E98: UMAM | G98: FG0L001-FG0L001-Coordinador de Mantenimiento Aéreo | I98: Coordinador de Mantenimiento Aéreo | K98: 185 | L98: UMA´s | M98: LZ1 | N98: Coordinador de Mantenimiento Aéreo
A99: FG0L004 | B99: FG0L004-Supervisor de Normas y Procedimientos Aéreos | C99: LY1 | D99: 185 | E99: UMAM | G99: FG0L004-FG0L004-Supervisor de Normas y Procedimientos Aéreos | I99: Supervisor de Normas y Procedimientos Aéreos | K99: 185 | L99: UMA´s | M99: LY1 | N99: Supervisor de Normas y Procedimientos Aéreos
A100: FG0L007 | B100: FG0L007-Técnico de Control y Mantenimiento Aéreo | C100: LX1 | D100: 111 | E100: UMAM | G100: FG0L007-FG0L007-Técnico de Control y Mantenimiento Aéreo | I100: Técnico de Control y Mantenimiento Aéreo | K100: 111 | L100: UMA´s | M100: LX1 | N100: Técnico de Control y Mantenimiento Aéreo
A101: FG0L008 | B101: FG0L008-Técnico en Apoyo Terrestre | C101: LX2 | D101: 74 | E101: UMAM | G101: FG0L008-FG0L008-Técnico en Apoyo Terrestre | I101: Técnico en Apoyo Terrestre | K101: 74 | L101: UMA´s | M101: LX2 | N101: Técnico en Apoyo Terrestre
A102: FG0L011 | B102: FG0L011-Operador Auxiliar | C102: LW2 | D102: 74 | E102: UMAM | G102: FG0L011-FG0L011-Operador Auxiliar | I102: Operador Auxiliar | K102: 74 | L102: UMA´s | M102: LW2 | N102: Operador Auxiliar
A103: FG0Z001 | B103: FG0Z001-Coordinador de Atención a Víctimas | C103: ZY1 | D103: 74 | E103: UMAM | G103: FG0Z001-FG0Z001-Coordinador de Atención a Víctimas | I103: Coordinador de Atención a Víctimas | K103: 74 | L103: UMA´s | M103: ZY1 | N103: Coordinador de Atención a Víctimas
A104: FG0Z003 | B104: FG0Z003-Supervisor de Atención a Víctimas | C104: ZY3 | D104: 74 | E104: UMAM | G104: FG0Z003-FG0Z003-Supervisor de Atención a Víctimas | I104: Supervisor de Atención a Víctimas | K104: 74 | L104: UMA´s | M104: ZY3 | N104: Supervisor de Atención a Víctimas
A105: FG0Z005 | B105: FG0Z005-Auxiliar de Atención a Víctimas | C105: ZX2 | D105: 74 | E105: UMAM | G105: FG0Z005-FG0Z005-Auxiliar de Atención a Víctimas | I105: Auxiliar de Atención a Víctimas | K105: 74 | L105: UMA´s | M105: ZX2 | N105: Auxiliar de Atención a Víctimas
A106: FG0Q001 | B106: FG0Q001-Jefe de Protección a Personas | C106: QZ1 | D106: 185 | E106: UMAM | G106: FG0Q001-FG0Q001-Jefe de Protección a Personas | I106: Jefe de Protección a Personas | K106: 185 | L106: UMA´s | M106: QZ1 | N106: Jefe de Protección a Personas
A107: FG0Q004 | B107: FG0Q004-Subjefe de Protección a Personas | C107: QY1 | D107: 148 | E107: UMAM | G107: FG0Q004-FG0Q004-Subjefe de Protección a Personas | I107: Subjefe de Protección a Personas | K107: 148 | L107: UMA´s | M107: QY1 | N107: Subjefe de Protección a Personas
A108: FG0Q007 | B108: FG0Q007-Auxiliar de Protección a Personas A | C108: QX1 | D108: 148 | E108: UMAM | G108: FG0Q007-FG0Q007-Auxiliar de Protección a Personas A | I108: Auxiliar de Protección a Personas A | K108: 148 | L108: UMA´s | M108: QX1 | N108: Auxiliar de Protección a Personas A
A109: FG0Q008 | B109: FG0Q008-Auxiliar de Protección a Personas B | C109: QX2 | D109: 148 | E109: UMAM | G109: FG0Q008-FG0Q008-Auxiliar de Protección a Personas B | I109: Auxiliar de Protección a Personas B | K109: 148 | L109: UMA´s | M109: QX2 | N109: Auxiliar de Protección a Personas B
A110: FG0Q009 | B110: FG0Q009-Auxiliar de Protección a Personas C | C110: QX3 | D110: 148 | E110: UMAM | G110: FG0Q009-FG0Q009-Auxiliar de Protección a Personas C | I110: Auxiliar de Protección a Personas C | K110: 148 | L110: UMA´s | M110: QX3 | N110: Auxiliar de Protección a Personas C
A111: FG0R001 | B111: FG0R001-Jefe de Seguridad a Instalaciones | C111: RZ1 | D111: 74 | E111: UMAM | G111: FG0R001-FG0R001-Jefe de Seguridad a Instalaciones | I111: Jefe de Seguridad a Instalaciones | K111: 74 | L111: UMA´s | M111: RZ1 | N111: Jefe de Seguridad a Instalaciones
A112: FG0R003 | B112: FG0R003-Coordinador de Operaciones de Seguridad a Instalaciones | C112: RZ3 | D112: 74 | E112: UMAM | G112: FG0R003-FG0R003-Coordinador de Operaciones de Seguridad a Instalaciones | I112: Coordinador de Operaciones de Seguridad a Instalaciones | K112: 74 | L112: UMA´s | M112: RZ3 | N112: Coordinador de Operaciones de Seguridad a Instalaciones
A113: FG0R004 | B113: FG0R004-Jefe de Servicio de Seguridad en Instalaciones Estratégicas | C113: RY1 | D113: 74 | E113: UMAM | G113: FG0R004-FG0R004-Jefe de Servicio de Seguridad en Instalaciones Estratégicas | I113: Jefe de Servicio de Seguridad en Instalaciones Estratégicas | K113: 74 | L113: UMA´s | M113: RY1 | N113: Jefe de Servicio de Seguridad en Instalaciones Estratégicas
A114: FG0R005 | B114: FG0R005-Jefe de Servicio de Seguridad en Instalaciones | C114: RY2 | D114: 74 | E114: UMAM | G114: FG0R005-FG0R005-Jefe de Servicio de Seguridad en Instalaciones | I114: Jefe de Servicio de Seguridad en Instalaciones | K114: 74 | L114: UMA´s | M114: RY2 | N114: Jefe de Servicio de Seguridad en Instalaciones
A115: FG0R006 | B115: FG0R006-Jefe de Turno de Seguridad en Instalaciones | C115: RY3 | D115: 74 | E115: UMAM | G115: FG0R006-FG0R006-Jefe de Turno de Seguridad en Instalaciones | I115: Jefe de Turno de Seguridad en Instalaciones | K115: 74 | L115: UMA´s | M115: RY3 | N115: Jefe de Turno de Seguridad en Instalaciones
A116: FG0R007 | B116: FG0R007-Guardia de Seguridad a Instalaciones A | C116: RX1 | D116: 74 | E116: UMAM | G116: FG0R007-FG0R007-Guardia de Seguridad a Instalaciones A | I116: Guardia de Seguridad a Instalaciones A | K116: 74 | L116: UMA´s | M116: RX1 | N116: Guardia de Seguridad a Instalaciones A
A117: FG0R008 | B117: FG0R008-Guardia de Seguridad a Instalaciones B | C117: RX2 | D117: 74 | E117: UMAM | G117: FG0R008-FG0R008-Guardia de Seguridad a Instalaciones B | I117: Guardia de Seguridad a Instalaciones B | K117: 74 | L117: UMA´s | M117: RX2 | N117: Guardia de Seguridad a Instalaciones B
A118: FG0R009 | B118: FG0R009-Guardia de Seguridad a Instalaciones C | C118: RX3 | D118: 74 | E118: UMAM | G118: FG0R009-FG0R009-Guardia de Seguridad a Instalaciones C | I118: Guardia de Seguridad a Instalaciones C | K118: 74 | L118: UMA´s | M118: RX3 | N118: Guardia de Seguridad a Instalaciones C
